Workbook

Sheet Main
B10: 2018-07-02
B12: Sheet No. | C12: Template Name | D12: Summary
B13: 1 | C13: Future Intra | D13: For Intraday trading in F&O segment
B14: 2 | C14: Cash Intra | D14: For Intraday trading in cash market segment
B15: 3 | C15: Mid-cap Intra | D15: For Intraday trading in Mid-cap stocks
B16: 4 | C16: Bulk Deals | D16: Reveals Bulk Deals carried on NSE & BSE
B17: 5 | C17: Call Tracker

Sheet Future Intra
M5: Back to Main Page
A6: FOR INTRA DAY TRADING | L6: =Main!B10 -> 2018-07-02
A9: Sr.no | B9: Sector | C9: Scrip | D9: CLOSE RATE | E9: Pivot Point | F9: Supports | I9: Resistances
B10: Sector | D10: Point | E10: Point | F10: S1 | G10: S2 | H10: S3 | I10: R1 | J10: R2 | K10: R3 | L10: HIGH | M10: LOW | N10: OI | O10: % Change in OI
A11: 1 | B11: Index | C11: BANKNIFTY | D11: 26349.65 | E11: 26347.42 | F11: 26257.83 | G11: 26166.02 | H11: 26076.43 | I11: 26439.23 | J11: 26528.82 | K11: 26620.63 | L11: 26437 | M11: 26255.6 | N11: 1962560 | O11: 0.08%
A12: 2 | B12: Index | C12: NIFTY | D12: 10694.80 | E12: 10664.20 | F12: 10621.65 | G12: 10548.50 | H12: 10505.95 | I12: 10737.35 | J12: 10779.90 | K12: 10853.05 | L12: 10706.75 | M12: 10591.05 | N12: 20258775 | O12: 5.71%
A13: 3 | B13: Index | C13: NIFTYCPSE | D13: 2439.95 | E13: 813.32 | F13: 1626.63 | G13: 813.32 | H13: 1626.63 | I13: 1626.63 | J13: 813.32 | K13: 1626.63 | L13: 0 | M13: 0 | N13: 0 | O13: 0.00%
A14: 4 | B14: Index | C14: NIFTYINFRA | D14: 3500.75 | E14: 1166.92 | F14: 2333.83 | G14: 1166.92 | H14: 2333.83 | I14: 2333.83 | J14: 1166.92 | K14: 2333.83 | L14: 0 | M14: 0 | N14: 0 | O14: 0.00%
A15: 5 | B15: Index | C15: NIFTYIT | D15: 13973.00 | E15: 13942.33 | F15: 13881.67 | G15: 13790.33 | H15: 13729.67 | I15: 14033.67 | J15: 14094.33 | K15: 14185.67 | L15: 14003 | M15: 13851 | N15: 41500 | O15: 6.96%
A16: 6 | B16: Index | C16: NIFTYMID50 | D16: 4790.00 | E16: 4790.00 | F16: 4790.00 | G16: 4790.00 | H16: 4790.00 | I16: 4790.00 | J16: 4790.00 | K16: 4790.00 | L16: 4790 | M16: 4790 | N16: 591580 | O16: 0.02%
A17: 7 | B17: Index | C17: NIFTYPSE | D17: 3893.55 | E17: 1297.85 | F17: 2595.70 | G17: 1297.85 | H17: 2595.70 | I17: 2595.70 | J17: 1297.85 | K17: 2595.70 | L17: 0 | M17: 0 | N17: 0 | O17: 0.00%
A18: 8 | B18: Cement | C18: ACC | D18: 1330.75 | E18: 1326.17 | F18: 1303.38 | G18: 1276.02 | H18: 1253.23 | I18: 1353.53 | J18: 1376.32 | K18: 1403.68 | L18: 1348.95 | M18: 1298.8 | N18: 1904400 | O18: 1.00%
A19: 9 | B19: Others | C19: ADANIENT | D19: 113.35 | E19: 112.70 | F19: 111.20 | G19: 109.05 | H19: 107.55 | I19: 114.85 | J19: 116.35 | K19: 118.50 | L19: 114.2 | M19: 110.55 | N19: 13624000 | O19: 6.40%
A20: 10 | B20: Others | C20: ADANIPORTS | D20: 373.40 | E20: 369.65 | F20: 363.85 | G20: 354.30 | H20: 348.50 | I20: 379.20 | J20: 385.00 | K20: 394.55 | L20: 375.45 | M20: 360.1 | N20: 7875000 | O20: 6.06%
A21: 11 | B21: Power | C21: ADANIPOWER | D21: 16.20 | E21: 15.97 | F21: 15.43 | G21: 14.67 | H21: 14.13 | I21: 16.73 | J21: 17.27 | K21: 18.03 | L21: 16.5 | M21: 15.2 | N21: 98000000 | O21: -3.77%
A22: 12 | B22: Pharma | C22: AJANTPHARM | D22: 987.45 | E22: 984.02 | F22: 973.98 | G22: 960.52 | H22: 950.48 | I22: 997.48 | J22: 1007.52 | K22: 1020.98 | L22: 994.05 | M22: 970.55 | N22: 875000 | O22: 1.74%
A23: 13 | B23: Banking | C23: ALBK | D23: 42.05 | E23: 41.95 | F23: 41.25 | G23: 40.45 | H23: 39.75 | I23: 42.75 | J23: 43.45 | K23: 44.25 | L23: 42.65 | M23: 41.15 | N23: 12452000 | O23: 7.60%
A24: 14 | B24: Automobile | C24: AMARAJABAT | D24: 720.45 | E24: 717.70 | F24: 710.95 | G24: 701.45 | H24: 694.70 | I24: 727.20 | J24: 733.95 | K24: 743.45 | L24: 724.45 | M24: 708.2 | N24: 1388100 | O24: -1.25%
A25: 15 | B25: Cement | C25: AMBUJACEM | D25: 208.25 | E25: 206.68 | F25: 204.57 | G25: 200.88 | H25: 198.77 | I25: 210.37 | J25: 212.48 | K25: 216.17 | L25: 208.8 | M25: 203 | N25: 12940000 | O25: 7.41%
A26: 16 | B26: Banking | C26: ANDHRABANK | D26: 32.80 | E26: 32.77 | F26: 31.88 | G26: 30.97 | H26: 30.08 | I26: 33.68 | J26: 34.57 | K26: 35.48 | L26: 33.65 | M26: 31.85 | N26: 21996000 | O26: 6.35%
A27: 17 | B27: Others | C27: APOLLOHOSP | D27: 1052.70 | E27: 1040.57 | F27: 1022.13 | G27: 991.57 | H27: 973.13 | I27: 1071.13 | J27: 1089.57 | K27: 1120.13 | L27: 1059 | M27: 1010 | N27: 720000 | O27: 11.63%
A28: 18 | B28: Automobile | C28: APOLLOTYRE | D28: 252.30 | E28: 252.30 | F28: 249.10 | G28: 245.90 | H28: 242.70 | I28: 255.50 | J28: 258.70 | K28: 261.90 | L28: 255.5 | M28: 249.1 | N28: 8916000 | O28: 6.37%
A29: 19 | B29: Textile | C29: ARVIND | D29: 398.40 | E29: 395.92 | F29: 391.93 | G29: 385.47 | H29: 381.48 | I29: 402.38 | J29: 406.37 | K29: 412.83 | L29: 399.9 | M29: 389.45 | N29: 4602000 | O29: -3.03%
A30: 20 | B30: Automobile | C30: ASHOKLEY | D30: 123.95 | E30: 124.08 | F30: 122.77 | G30: 121.58 | H30: 120.27 | I30: 125.27 | J30: 126.58 | K30: 127.77 | L30: 125.4 | M30: 122.9 | N30: 83264000 | O30: 7.08%
A31: 21 | B31: FMCG | C31: ASIANPAINT | D31: 1268.90 | E31: 1268.20 | F31: 1258.80 | G31: 1248.70 | H31: 1239.30 | I31: 1278.30 | J31: 1287.70 | K31: 1297.80 | L31: 1277.6 | M31: 1258.1 | N31: 5047800 | O31: 0.78%
A32: 22 | B32: Pharma | C32: AUROPHARMA | D32: 609.45 | E32: 606.67 | F32: 601.33 | G32: 593.22 | H32: 587.88 | I32: 614.78 | J32: 620.12 | K32: 628.23 | L32: 612 | M32: 598.55 | N32: 19968000 | O32: 1.16%
A33: 23 | B33: Banking | C33: AXISBANK | D33: 511.05 | E33: 509.23 | F33: 502.82 | G33: 494.58 | H33: 488.17 | I33: 517.47 | J33: 523.88 | K33: 532.12 | L33: 515.65 | M33: 501 | N33: 39729600 | O33: 1.75%
A34: 24 | B34: Automobile | C34: BAJAJ-AUTO | D34: 2759.95 | E34: 2736.02 | F34: 2694.58 | G34: 2629.22 | H34: 2587.78 | I34: 2801.38 | J34: 2842.82 | K34: 2908.18 | L34: 2777.45 | M34: 2670.65 | N34: 3014000 | O34: 3.69%
A35: 25 | B35: Others | C35: BAJAJFINSV | D35: 5845.65 | E35: 5878.27 | F35: 5801.98 | G35: 5758.32 | H35: 5682.03 | I35: 5921.93 | J35: 5998.22 | K35: 6041.88 | L35: 5954.55 | M35: 5834.6 | N35: 745125 | O35: 2.07%
A36: 26 | B36: Finance | C36: BAJFINANCE | D36: 2302.50 | E36: 2303.17 | F36: 2279.33 | G36: 2256.17 | H36: 2232.33 | I36: 2326.33 | J36: 2350.17 | K36: 2373.33 | L36: 2327 | M36: 2280 | N36: 5133500 | O36: 5.49%
A37: 27 | B37: Others | C37: BALKRISIND | D37: 1041.95 | E37: 1035.00 | F37: 1022.95 | G37: 1003.95 | H37: 991.90 | I37: 1054.00 | J37: 1066.05 | K37: 1085.05 | L37: 1047.05 | M37: 1016 | N37: 1298400 | O37: 3.64%
A38: 28 | B38: Others | C38: BALRAMCHIN | D38: 64.70 | E38: 64.85 | F38: 63.85 | G38: 63.00 | H38: 62.00 | I38: 65.70 | J38: 66.70 | K38: 67.55 | L38: 65.85 | M38: 64 | N38: 14371000 | O38: 0.93%
A39: 29 | B39: Banking | C39: BANKBARODA | D39: 113.20 | E39: 113.93 | F39: 112.07 | G39: 110.93 | H39: 109.07 | I39: 115.07 | J39: 116.93 | K39: 118.07 | L39: 115.8 | M39: 112.8 | N39: 74524000 | O39: 4.03%
A40: 30 | B40: Banking | C40: BANKINDIA | D40: 87.85 | E40: 87.32 | F40: 86.08 | G40: 84.32 | H40: 83.08 | I40: 89.08 | J40: 90.32 | K40: 92.08 | L40: 88.55 | M40: 85.55 | N40: 28080000 | O40: -1.08%
A41: 31 | B41: FMCG | C41: BATAINDIA | D41: 859.20 | E41: 850.42 | F41: 838.98 | G41: 818.77 | H41: 807.33 | I41: 870.63 | J41: 882.07 | K41: 902.28 | L41: 861.85 | M41: 830.2 | N41: 2851200 | O41: 20.06%
A42: 32 | B42: Capital_Goods | C42: BEL | D42: 108.55 | E42: 107.62 | F42: 105.73 | G42: 102.92 | H42: 101.03 | I42: 110.43 | J42: 112.32 | K42: 115.13 | L42: 109.5 | M42: 104.8 | N42: 29898000 | O42: -2.74%
A43: 33 | B43: Infrastructure | C43: BEML | D43: 811.25 | E43: 802.52 | F43: 787.23 | G43: 763.22 | H43: 747.93 | I43: 826.53 | J43: 841.82 | K43: 865.83 | L43: 817.8 | M43: 778.5 | N43: 1925500 | O43: 1.26%
A44: 34 | B44: Others | C44: BERGEPAINT | D44: 280.50 | E44: 280.45 | F44: 275.65 | G44: 270.80 | H44: 266.00 | I44: 285.30 | J44: 290.10 | K44: 294.95 | L44: 285.25 | M44: 275.6 | N44: 1746800 | O44: 6.86%
A45: 35 | B45: Finance | C45: BHARATFIN | D45: 1161.05 | E45: 1169.57 | F45: 1149.78 | G45: 1138.52 | H45: 1118.73 | I45: 1180.83 | J45: 1200.62 | K45: 1211.88 | L45: 1189.35 | M45: 1158.3 | N45: 5658000 | O45: 2.07%
A46: 36 | B46: Automobile | C46: BHARATFORG | D46: 615.65 | E46: 613.12 | F46: 607.98 | G46: 600.32 | H46: 595.18 | I46: 620.78 | J46: 625.92 | K46: 633.58 | L46: 618.25 | M46: 605.45 | N46: 9088800 | O46: 2.68%
A47: 37 | B47: Telecom | C47: BHARTIARTL | D47: 381.45 | E47: 379.90 | F47: 377.05 | G47: 372.65 | H47: 369.80 | I47: 384.30 | J47: 387.15 | K47: 391.55 | L47: 382.75 | M47: 375.5 | N47: 46646300 | O47: 0.30%
A48: 38 | B48: Capital_Goods | C48: BHEL | D48: 72.05 | E48: 71.80 | F48: 71.10 | G48: 70.15 | H48: 69.45 | I48: 72.75 | J48: 73.45 | K48: 74.40 | L48: 72.5 | M48: 70.85 | N48: 48060000 | O48: 0.44%
A49: 39 | B49: Pharma | C49: BIOCON | D49: 621.15 | E49: 616.77 | F49: 610.13 | G49: 599.12 | H49: 592.48 | I49: 627.78 | J49: 634.42 | K49: 645.43 | L49: 623.4 | M49: 605.75 | N49: 8948700 | O49: 3.57%
A50: 40 | B50: Automobile | C50: BOSCHLTD | D50: 17571.80 | E50: 17513.87 | F50: 17407.88 | G50: 17243.97 | H50: 17137.98 | I50: 17677.78 | J50: 17783.77 | K50: 17947.68 | L50: 17619.85 | M50: 17349.95 | N50: 136110 | O50: 0.53%
A51: 41 | B51: Oil_Gas | C51: BPCL | D51: 368.30 | E51: 367.78 | F51: 361.07 | G51: 353.83 | H51: 347.12 | I51: 375.02 | J51: 381.73 | K51: 388.97 | L51: 374.5 | M51: 360.55 | N51: 12024000 | O51: 0.54%
A52: 42 | B52: FMCG | C52: BRITANNIA | D52: 6215.40 | E52: 6195.80 | F52: 6151.65 | G52: 6087.90 | H52: 6043.75 | I52: 6259.55 | J52: 6303.70 | K52: 6367.45 | L52: 6239.95 | M52: 6132.05 | N52: 752600 | O52: 3.64%
A53: 43 | B53: Pharma | C53: CADILAHC | D53: 379.25 | E53: 380.15 | F53: 372.80 | G53: 366.35 | H53: 359.00 | I53: 386.60 | J53: 393.95 | K53: 400.40 | L53: 387.5 | M53: 373.7 | N53: 7624000 | O53: 5.89%
A54: 44 | B54: Banking | C54: CANBK | D54: 252.30 | E54: 252.68 | F54: 248.37 | G54: 244.43 | H54: 240.12 | I54: 256.62 | J54: 260.93 | K54: 264.87 | L54: 257 | M54: 248.75 | N54: 13458000 | O54: 5.99%
A55: 45 | B55: Others | C55: CANFINHOME | D55: 341.25 | E55: 341.67 | F55: 336.63 | G55: 332.02 | H55: 326.98 | I55: 346.28 | J55: 351.32 | K55: 355.93 | L55: 346.7 | M55: 337.05 | N55: 3825000 | O55: 1.16%
A56: 46 | B56: Finance | C56: CAPF | D56: 518.35 | E56: 523.35 | F56: 511.00 | G56: 503.65 | H56: 491.30 | I56: 530.70 | J56: 543.05 | K56: 550.40 | L56: 535.7 | M56: 516 | N56: 8079200 | O56: 2.20%
A57: 47 | B57: Oil_Gas | C57: CASTROLIND | D57: 164.05 | E57: 162.95 | F57: 161.50 | G57: 158.95 | H57: 157.50 | I57: 165.50 | J57: 166.95 | K57: 169.50 | L57: 164.4 | M57: 160.4 | N57: 9858800 | O57: 2.15%
A58: 48 | B58: Automobile | C58: CEATLTD | D58: 1252.30 | E58: 1247.48 | F58: 1235.67 | G58: 1219.03 | H58: 1207.22 | I58: 1264.12 | J58: 1275.93 | K58: 1292.57 | L58: 1259.3 | M58: 1230.85 | N58: 1652700 | O58: 1.42%
A59: 49 | B59: Textile | C59: CENTURYTEX | D59: 886.70 | E59: 890.70 | F59: 877.10 | G59: 867.50 | H59: 853.90 | I59: 900.30 | J59: 913.90 | K59: 923.50 | L59: 904.3 | M59: 881.1 | N59: 6085200 | O59: 1.54%
A60: 50 | B60: Power | C60: CESC | D60: 916.55 | E60: 909.95 | F60: 898.90 | G60: 881.25 | H60: 870.20 | I60: 927.60 | J60: 938.65 | K60: 956.30 | L60: 921 | M60: 892.3 | N60: 6100600 | O60: -0.23%
A61: 51 | B61: Power | C61: CGPOWER | D61: 56.20 | E61: 56.15 | F61: 54.85 | G61: 53.50 | H61: 52.20 | I61: 57.50 | J61: 58.80 | K61: 60.15 | L61: 57.45 | M61: 54.8 | N61: 31752000 | O61: 0.15%
A62: 52 | B62: Others | C62: CHENNPETRO | D62: 291.25 | E62: 289.78 | F62: 286.62 | G62: 281.98 | H62: 278.82 | I62: 294.42 | J62: 297.58 | K62: 302.22 | L62: 292.95 | M62: 285.15 | N62: 1870500 | O62: 4.26%
A63: 53 | B63: Others | C63: CHOLAFIN | D63: 1517.95 | E63: 1512.32 | F63: 1480.73 | G63: 1443.52 | H63: 1411.93 | I63: 1549.53 | J63: 1581.12 | K63: 1618.33 | L63: 1543.9 | M63: 1475.1 | N63: 842500 | O63: -2.43%
A64: 54 | B64: Pharma | C64: CIPLA | D64: 614.90 | E64: 609.97 | F64: 603.53 | G64: 592.17 | H64: 585.73 | I64: 621.33 | J64: 627.77 | K64: 639.13 | L64: 616.4 | M64: 598.6 | N64: 8047000 | O64: 5.34%
A65: 55 | B65: Others | C65: COALINDIA | D65: 263.35 | E65: 262.72 | F65: 259.83 | G65: 256.32 | H65: 253.43 | I65: 266.23 | J65: 269.12 | K65: 272.63 | L65: 265.6 | M65: 259.2 | N65: 19245600 | O65: 4.04%
A66: 56 | B66: FMCG | C66: COLPAL | D66: 1186.90 | E66: 1179.13 | F66: 1167.72 | G66: 1148.53 | H66: 1137.12 | I66: 1198.32 | J66: 1209.73 | K66: 1228.92 | L66: 1190.55 | M66: 1159.95 | N66: 2139900 | O66: -1.70%
A67: 57 | B67: Others | C67: CONCOR | D67: 650.30 | E67: 637.60 | F67: 620.40 | G67: 590.50 | H67: 573.30 | I67: 667.50 | J67: 684.70 | K67: 714.60 | L67: 654.8 | M67: 607.7 | N67: 2945000 | O67: -2.16%
A68: 58 | B68: Capital_Goods | C68: CUMMINSIND | D68: 649.45 | E68: 649.48 | F68: 639.97 | G68: 630.48 | H68: 620.97 | I68: 658.97 | J68: 668.48 | K68: 677.97 | L68: 659 | M68: 640 | N68: 834400 | O68: -1.00%
A69: 59 | B69: FMCG | C69: DABUR | D69: 386.85 | E69: 385.77 | F69: 383.48 | G69: 380.12 | H69: 377.83 | I69: 389.13 | J69: 391.42 | K69: 394.78 | L69: 388.05 | M69: 382.4 | N69: 15137500 | O69: 2.80%
A70: 60 | B70: Cement | C70: DALMIABHA | D70: 2291.55 | E70: 2291.47 | F70: 2260.18 | G70: 2228.82 | H70: 2197.53 | I70: 2322.83 | J70: 2354.12 | K70: 2385.48 | L70: 2322.75 | M70: 2260.1 | N70: 690900 | O70: -2.62%
A71: 61 | B71: Banking | C71: DCBBANK | D71: 165.40 | E71: 165.25 | F71: 163.55 | G71: 161.70 | H71: 160.00 | I71: 167.10 | J71: 168.80 | K71: 170.65 | L71: 166.95 | M71: 163.4 | N71: 6876000 | O71: 8.14%
A72: 62 | B72: Finance | C72: DHFL | D72: 640.30 | E72: 641.77 | F72: 633.53 | G72: 626.77 | H72: 618.53 | I72: 648.53 | J72: 656.77 | K72: 663.53 | L72: 650 | M72: 635 | N72: 28159500 | O72: 8.51%
A73: 63 | B73: Media | C73: DISHTV | D73: 72.05 | E73: 71.60 | F73: 71.00 | G73: 69.95 | H73: 69.35 | I73: 72.65 | J73: 73.25 | K73: 74.30 | L73: 72.2 | M73: 70.55 | N73: 58712000 | O73: -0.98%
A74: 64 | B74: Pharma | C74: DIVISLAB | D74: 1038.70 | E74: 1029.60 | F74: 1016.40 | G74: 994.10 | H74: 980.90 | I74: 1051.90 | J74: 1065.10 | K74: 1087.40 | L74: 1042.8 | M74: 1007.3 | N74: 2720000 | O74: -1.05%
A75: 65 | B75: Realty | C75: DLF | D75: 189.60 | E75: 189.38 | F75: 187.02 | G75: 184.43 | H75: 182.07 | I75: 191.97 | J75: 194.33 | K75: 196.92 | L75: 191.75 | M75: 186.8 | N75: 32977500 | O75: 1.65%
A76: 66 | B76: Pharma | C76: DRREDDY | D76: 2219.05 | E76: 2235.42 | F76: 2194.68 | G76: 2170.32 | H76: 2129.58 | I76: 2259.78 | J76: 2300.52 | K76: 2324.88 | L76: 2276.15 | M76: 2211.05 | N76: 4608750 | O76: 4.64%
A77: 67 | B77: Automobile | C77: EICHERMOT | D77: 28617.65 | E77: 28666.75 | F77: 28434.60 | G77: 28251.55 | H77: 28019.40 | I77: 28849.80 | J77: 29081.95 | K77: 29265.00 | L77: 28898.9 | M77: 28483.7 | N77: 211650 | O77: 3.19%
A78: 68 | B78: Infrastructure | C78: ENGINERSIN | D78: 124.50 | E78: 123.75 | F78: 122.45 | G78: 120.40 | H78: 119.10 | I78: 125.80 | J78: 127.10 | K78: 129.15 | L78: 125.05 | M78: 121.7 | N78: 9562000 | O78: 0.77%
A79: 69 | B79: Finance | C79: EQUITAS | D79: 136.60 | E79: 136.53 | F79: 135.12 | G79: 133.63 | H79: 132.22 | I79: 138.02 | J79: 139.43 | K79: 140.92 | L79: 137.95 | M79: 135.05 | N79: 19848000 | O79: 0.69%
A80: 70 | B80: Automobile | C80: ESCORTS | D80: 874.45 | E80: 863.13 | F80: 849.47 | G80: 824.48 | H80: 810.82 | I80: 888.12 | J80: 901.78 | K80: 926.77 | L80: 876.8 | M80: 838.15 | N80: 4451700 | O80: -0.98%
A81: 71 | B81: Automobile | C81: EXIDEIND | D81: 258.75 | E81: 255.58 | F81: 251.62 | G81: 244.48 | H81: 240.52 | I81: 262.72 | J81: 266.68 | K81: 273.82 | L81: 259.55 | M81: 248.45 | N81: 8444000 | O81: 12.71%
A82: 72 | B82: Banking | C82: FEDERALBNK | D82: 81.80 | E82: 81.12 | F82: 79.98 | G82: 78.17 | H82: 77.03 | I82: 82.93 | J82: 84.07 | K82: 85.88 | L82: 82.25 | M82: 79.3 | N82: 62084000 | O82: -2.36%
A83: 73 | B83: Oil_Gas | C83: GAIL | D83: 338.65 | E83: 333.28 | F83: 325.82 | G83: 312.98 | H83: 305.52 | I83: 346.12 | J83: 353.58 | K83: 366.42 | L83: 340.75 | M83: 320.45 | N83: 13599033 | O83: 7.17%
A84: 74 | B84: Pharma | C84: GLENMARK | D84: 585.90 | E84: 583.72 | F84: 579.53 | G84: 573.17 | H84: 568.98 | I84: 590.08 | J84: 594.27 | K84: 600.63 | L84: 587.9 | M84: 577.35 | N84: 4483000 | O84: 1.22%
A85: 75 | B85: Infrastructure | C85: GMRINFRA | D85: 15.35 | E85: 15.42 | F85: 15.13 | G85: 14.92 | H85: 14.63 | I85: 15.63 | J85: 15.92 | K85: 16.13 | L85: 15.7 | M85: 15.2 | N85: 266085000 | O85: 2.73%
A86: 76 | B86: Others | C86: GODFRYPHLP | D86: 730.35 | E86: 729.20 | F86: 718.30 | G86: 706.25 | H86: 695.35 | I86: 741.25 | J86: 752.15 | K86: 764.20 | L86: 740.1 | M86: 717.15 | N86: 462000 | O86: 0.15%
A87: 77 | B87: FMCG | C87: GODREJCP | D87: 1227.10 | E87: 1226.55 | F87: 1213.10 | G87: 1199.10 | H87: 1185.65 | I87: 1240.55 | J87: 1254.00 | K87: 1268.00 | L87: 1240 | M87: 1212.55 | N87: 2092800 | O87: 2.15%
A88: 78 | B88: FMCG | C88: GODREJIND | D88: 626.50 | E88: 620.47 | F88: 608.98 | G88: 591.47 | H88: 579.98 | I88: 637.98 | J88: 649.47 | K88: 666.98 | L88: 631.95 | M88: 602.95 | N88: 1677000 | O88: 14.43%
A89: 79 | B89: Pharma | C89: GRANULES | D89: 80.95 | E89: 80.38 | F89: 79.27 | G89: 77.58 | H89: 76.47 | I89: 82.07 | J89: 83.18 | K89: 84.87 | L89: 81.5 | M89: 78.7 | N89: 11385000 | O89: -1.60%
A90: 80 | B90: Cement | C90: GRASIM | D90: 1011.55 | E90: 1010.02 | F90: 1001.53 | G90: 991.52 | H90: 983.03 | I90: 1020.03 | J90: 1028.52 | K90: 1038.53 | L90: 1018.5 | M90: 1000 | N90: 5249250 | O90: 2.82%
A91: 81 | B91: Others | C91: GSFC | D91: 104.95 | E91: 103.67 | F91: 101.93 | G91: 98.92 | H91: 97.18 | I91: 106.68 | J91: 108.42 | K91: 111.43 | L91: 105.4 | M91: 100.65 | N91: 15552000 | O91: 1.29%
A92: 82 | B92: Others | C92: HAVELLS | D92: 540.35 | E92: 535.57 | F92: 528.68 | G92: 517.02 | H92: 510.13 | I92: 547.23 | J92: 554.12 | K92: 565.78 | L92: 542.45 | M92: 523.9 | N92: 4252000 | O92: 1.12%
A93: 83 | B93: Others | C93: HCC | D93: 12.30 | E93: 11.95 | F93: 11.25 | G93: 10.20 | H93: 9.50 | I93: 13.00 | J93: 13.70 | K93: 14.75 | L93: 12.65 | M93: 10.9 | N93: 43974000 | O93: 2.26%
A94: 84 | B94: Technology | C94: HCLTECH | D94: 930.15 | E94: 927.68 | F94: 922.47 | G94: 914.78 | H94: 909.57 | I94: 935.37 | J94: 940.58 | K94: 948.27 | L94: 932.9 | M94: 920 | N94: 10192700 | O94: 3.26%
A95: 85 | B95: Finance | C95: HDFC | D95: 1895.60 | E95: 1887.33 | F95: 1874.87 | G95: 1854.13 | H95: 1841.67 | I95: 1908.07 | J95: 1920.53 | K95: 1941.27 | L95: 1899.8 | M95: 1866.6 | N95: 23742500 | O95: 1.67%
A96: 86 | B96: Banking | C96: HDFCBANK | D96: 2107.90 | E96: 2115.03 | F96: 2095.37 | G96: 2082.83 | H96: 2063.17 | I96: 2127.57 | J96: 2147.23 | K96: 2159.77 | L96: 2134.7 | M96: 2102.5 | N96: 18975500 | O96: -2.11%
A97: 88 | B97: Automobile | C97: HEROMOTOCO | D97: 3442.30 | E97: 3458.42 | F97: 3413.18 | G97: 3384.07 | H97: 3338.83 | I97: 3487.53 | J97: 3532.77 | K97: 3561.88 | L97: 3503.65 | M97: 3429.3 | N97: 1520200 | O97: 15.76%
A98: 89 | B98: Technology | C98: HEXAWARE | D98: 456.55 | E98: 453.03 | F98: 446.57 | G98: 436.58 | H98: 430.12 | I98: 463.02 | J98: 469.48 | K98: 479.47 | L98: 459.5 | M98: 443.05 | N98: 4426500 | O98: 2.04%
A99: 90 | B99: Metals | C99: HINDALCO | D99: 231.35 | E99: 228.90 | F99: 225.00 | G99: 218.65 | H99: 214.75 | I99: 235.25 | J99: 239.15 | K99: 245.50 | L99: 232.8 | M99: 222.55 | N99: 35833000 | O99: 2.62%
A100: 91 | B100: Oil_Gas | C100: HINDPETRO | D100: 260.25 | E100: 262.15 | F100: 255.70 | G100: 251.15 | H100: 244.70 | I100: 266.70 | J100: 273.15 | K100: 277.70 | L100: 268.6 | M100: 257.6 | N100: 28764225 | O100: 4.45%
A101: 92 | B101: FMCG | C101: HINDUNILVR | D101: 1647.30 | E101: 1636.92 | F101: 1623.38 | G101: 1599.47 | H101: 1585.93 | I101: 1660.83 | J101: 1674.37 | K101: 1698.28 | L101: 1650.45 | M101: 1613 | N101: 8913000 | O101: 3.98%
A102: 93 | B102: Metals | C102: HINDZINC | D102: 276.80 | E102: 275.95 | F102: 271.95 | G102: 267.10 | H102: 263.10 | I102: 280.80 | J102: 284.80 | K102: 289.65 | L102: 279.95 | M102: 271.1 | N102: 10246400 | O102: 9.43%
A103: 94 | B103: Finance | C103: IBULHSGFIN | D103: 1147.25 | E103: 1146.00 | F103: 1133.80 | G103: 1120.35 | H103: 1108.15 | I103: 1159.45 | J103: 1171.65 | K103: 1185.10 | L103: 1158.2 | M103: 1132.55 | N103: 16958500 | O103: 0.82%
A104: 95 | B104: Banking | C104: ICICIBANK | D104: 274.80 | E104: 273.35 | F104: 270.75 | G104: 266.70 | H104: 264.10 | I104: 277.40 | J104: 280.00 | K104: 284.05 | L104: 275.95 | M104: 269.3 | N104: 96346250 | O104: 3.64%
A105: 96 | B105: Others | C105: ICICIPRULI | D105: 379.30 | E105: 378.25 | F105: 374.50 | G105: 369.70 | H105: 365.95 | I105: 383.05 | J105: 386.80 | K105: 391.60 | L105: 382 | M105: 373.45 | N105: 8028800 | O105: 2.12%
A106: 97 | B106: Banking | C106: IDBI | D106: 55.20 | E106: 54.20 | F106: 52.25 | G106: 49.30 | H106: 47.35 | I106: 57.15 | J106: 59.10 | K106: 62.05 | L106: 56.15 | M106: 51.25 | N106: 65300000 | O106: 18.88%
A107: 98 | B107: Telecom | C107: IDEA | D107: 59.50 | E107: 58.43 | F107: 57.02 | G107: 54.53 | H107: 53.12 | I107: 60.92 | J107: 62.33 | K107: 64.82 | L107: 59.85 | M107: 55.95 | N107: 128184000 | O107: -1.56%
A108: 99 | B108: Finance | C108: IDFC | D108: 46.00 | E108: 45.55 | F108: 44.50 | G108: 43.00 | H108: 41.95 | I108: 47.05 | J108: 48.10 | K108: 49.60 | L108: 46.6 | M108: 44.05 | N108: 153133200 | O108: 1.81%
A109: 100 | B109: Banking | C109: IDFCBANK | D109: 38.65 | E109: 38.90 | F109: 38.15 | G109: 37.65 | H109: 36.90 | I109: 39.40 | J109: 40.15 | K109: 40.65 | L109: 39.65 | M109: 38.4 | N109: 196801000 | O109: 0.98%
A110: 101 | B110: Finance | C110: IFCI | D110: 15.00 | E110: 14.93 | F110: 14.77 | G110: 14.53 | H110: 14.37 | I110: 15.17 | J110: 15.33 | K110: 15.57 | L110: 15.1 | M110: 14.7 | N110: 64850000 | O110: 1.65%
A111: 102 | B111: Oil_Gas | C111: IGL | D111: 254.10 | E111: 251.35 | F111: 246.65 | G111: 239.20 | H111: 234.50 | I111: 258.80 | J111: 263.50 | K111: 270.95 | L111: 256.05 | M111: 243.9 | N111: 6281000 | O111: -0.31%
A112: 103 | B112: Cement | C112: INDIACEM | D112: 105.90 | E112: 105.52 | F112: 104.08 | G112: 102.27 | H112: 100.83 | I112: 107.33 | J112: 108.77 | K112: 110.58 | L112: 106.95 | M112: 103.7 | N112: 22928500 | O112: -1.37%
A113: 104 | B113: Banking | C113: INDIANB | D113: 339.05 | E113: 336.88 | F113: 332.62 | G113: 326.18 | H113: 321.92 | I113: 343.32 | J113: 347.58 | K113: 354.02 | L113: 341.15 | M113: 330.45 | N113: 2548000 | O113: 12.44%
A114: 105 | B114: Others | C114: INDIGO | D114: 1084.90 | E114: 1087.63 | F114: 1052.27 | G114: 1019.63 | H114: 984.27 | I114: 1120.27 | J114: 1155.63 | K114: 1188.27 | L114: 1123 | M114: 1055 | N114: 5017800 | O114: 2.22%
A115: 106 | B115: Banking | C115: INDUSINDBK | D115: 1921.55 | E115: 1932.35 | F115: 1903.70 | G115: 1885.85 | H115: 1857.20 | I115: 1950.20 | J115: 1978.85 | K115: 1996.70 | L115: 1961 | M115: 1914.5 | N115: 6465000 | O115: 4.81%
A116: 107 | B116: Technology | C116: INFIBEAM | D116: 149.90 | E116: 152.22 | F116: 146.83 | G116: 143.77 | H116: 138.38 | I116: 155.28 | J116: 160.67 | K116: 163.73 | L116: 157.6 | M116: 149.15 | N116: 43540000 | O116: 2.87%
A117: 108 | B117: Telecom | C117: INFRATEL | D117: 289.20 | E117: 290.90 | F117: 286.10 | G117: 283.00 | H117: 278.20 | I117: 294.00 | J117: 298.80 | K117: 301.90 | L117: 295.7 | M117: 287.8 | N117: 5504600 | O117: 9.99%
A118: 109 | B118: Technology | C118: INFY | D118: 1305.65 | E118: 1300.43 | F118: 1291.22 | G118: 1276.78 | H118: 1267.57 | I118: 1314.87 | J118: 1324.08 | K118: 1338.52 | L118: 1309.65 | M118: 1286 | N118: 27838800 | O118: -0.20%
A119: 110 | B119: Oil_Gas | C119: IOC | D119: 154.15 | E119: 154.22 | F119: 151.68 | G119: 149.22 | H119: 146.68 | I119: 156.68 | J119: 159.22 | K119: 161.68 | L119: 156.75 | M119: 151.75 | N119: 34263000 | O119: 6.95%
A120: 111 | B120: Infrastructure | C120: IRB | D120: 211.15 | E120: 209.87 | F120: 205.98 | G120: 200.82 | H120: 196.93 | I120: 215.03 | J120: 218.92 | K120: 224.08 | L120: 213.75 | M120: 204.7 | N120: 18010000 | O120: 0.28%
A121: 112 | B121: FMCG | C121: ITC | D121: 265.90 | E121: 264.22 | F121: 261.73 | G121: 257.57 | H121: 255.08 | I121: 268.38 | J121: 270.87 | K121: 275.03 | L121: 266.7 | M121: 260.05 | N121: 78192000 | O121: -1.18%
A122: 113 | B122: Others | C122: JETAIRWAYS | D122: 347.80 | E122: 342.90 | F122: 333.85 | G122: 319.90 | H122: 310.85 | I122: 356.85 | J122: 365.90 | K122: 379.85 | L122: 351.95 | M122: 328.95 | N122: 6981600 | O122: 3.73%
A123: 114 | B123: Metals | C123: JINDALSTEL | D123: 223.90 | E123: 221.32 | F123: 215.38 | G123: 206.87 | H123: 200.93 | I123: 229.83 | J123: 235.77 | K123: 244.28 | L123: 227.25 | M123: 212.8 | N123: 31905000 | O123: 3.53%
A124: 115 | B124: Others | C124: JISLJALEQS | D124: 77.00 | E124: 78.13 | F124: 73.32 | G124: 69.63 | H124: 64.82 | I124: 81.82 | J124: 86.63 | K124: 90.32 | L124: 82.95 | M124: 74.45 | N124: 43191000 | O124: 15.47%
A125: 116 | B125: Realty | C125: JPASSOCIAT | D125: 16.15 | E125: 16.22 | F125: 15.83 | G125: 15.52 | H125: 15.13 | I125: 16.53 | J125: 16.92 | K125: 17.23 | L125: 16.6 | M125: 15.9 | N125: 187816000 | O125: 2.98%
A126: 117 | B126: Metals | C126: JSWSTEEL | D126: 324.90 | E126: 324.08 | F126: 321.47 | G126: 318.03 | H126: 315.42 | I126: 327.52 | J126: 330.13 | K126: 333.57 | L126: 326.7 | M126: 320.65 | N126: 63573000 | O126: 1.41%
A127: 118 | B127: Others | C127: JUBLFOOD | D127: 1393.10 | E127: 1386.57 | F127: 1374.53 | G127: 1355.97 | H127: 1343.93 | I127: 1405.13 | J127: 1417.17 | K127: 1435.73 | L127: 1398.6 | M127: 1368 | N127: 3507000 | O127: 2.50%
A128: 119 | B128: Others | C128: JUSTDIAL | D128: 558.10 | E128: 554.20 | F128: 546.85 | G128: 535.60 | H128: 528.25 | I128: 565.45 | J128: 572.80 | K128: 584.05 | L128: 561.55 | M128: 542.95 | N128: 3351600 | O128: 4.82%
A129: 120 | B129: Others | C129: KAJARIACER | D129: 485.95 | E129: 486.87 | F129: 483.23 | G129: 480.52 | H129: 476.88 | I129: 489.58 | J129: 493.22 | K129: 495.93 | L129: 490.5 | M129: 484.15 | N129: 1727000 | O129: 5.30%
A130: 121 | B130: Banking | C130: KOTAKBANK | D130: 1340.05 | E130: 1342.92 | F130: 1328.78 | G130: 1317.52 | H130: 1303.38 | I130: 1354.18 | J130: 1368.32 | K130: 1379.58 | L130: 1357.05 | M130: 1331.65 | N130: 10561600 | O130: 5.11%
A131: 122 | B131: Technology | C131: KPIT | D131: 272.70 | E131: 270.95 | F131: 268.05 | G131: 263.40 | H131: 260.50 | I131: 275.60 | J131: 278.50 | K131: 283.15 | L131: 273.85 | M131: 266.3 | N131: 4365000 | O131: 3.08%
A132: 123 | B132: Others | C132: KSCL | D132: 560.70 | E132: 555.43 | F132: 548.42 | G132: 536.13 | H132: 529.12 | I132: 567.72 | J132: 574.73 | K132: 587.02 | L132: 562.45 | M132: 543.15 | N132: 1992000 | O132: 5.15%
A133: 124 | B133: Banking | C133: KTKBANK | D133: 106.65 | E133: 105.75 | F133: 104.40 | G133: 102.15 | H133: 100.80 | I133: 108.00 | J133: 109.35 | K133: 111.60 | L133: 107.1 | M133: 103.5 | N133: 19876500 | O133: -2.41%
A134: 125 | B134: Finance | C134: L&TFH | D134: 152.20 | E134: 152.12 | F134: 150.73 | G134: 149.27 | H134: 147.88 | I134: 153.58 | J134: 154.97 | K134: 156.43 | L134: 153.5 | M134: 150.65 | N134: 31428000 | O134: 3.70%
A135: 126 | B135: Finance | C135: LICHSGFIN | D135: 470.70 | E135: 471.60 | F135: 465.20 | G135: 459.70 | H135: 453.30 | I135: 477.10 | J135: 483.50 | K135: 489.00 | L135: 478 | M135: 466.1 | N135: 12328800 | O135: 2.63%
A136: 127 | B136: Capital_Goods | C136: LT | D136: 1270.40 | E136: 1260.65 | F136: 1247.30 | G136: 1224.20 | H136: 1210.85 | I136: 1283.75 | J136: 1297.10 | K136: 1320.20 | L136: 1274 | M136: 1237.55 | N136: 16260000 | O136: -2.92%
A137: 128 | B137: Pharma | C137: LUPIN | D137: 901.90 | E137: 903.17 | F137: 890.78 | G137: 879.67 | H137: 867.28 | I137: 914.28 | J137: 926.67 | K137: 937.78 | L137: 915.55 | M137: 892.05 | N137: 10339700 | O137: 3.43%
A138: 129 | B138: Automobile | C138: M&M | D138: 893.50 | E138: 898.37 | F138: 885.23 | G138: 876.97 | H138: 863.83 | I138: 906.63 | J138: 919.77 | K138: 928.03 | L138: 911.5 | M138: 890.1 | N138: 14851000 | O138: -1.52%
A139: 130 | B139: Finance | C139: M&MFIN | D139: 466.50 | E139: 464.32 | F139: 460.18 | G139: 453.87 | H139: 449.73 | I139: 470.63 | J139: 474.77 | K139: 481.08 | L139: 468.45 | M139: 458 | N139: 8490000 | O139: 0.37%
A140: 131 | B140: Others | C140: MANAPPURAM | D140: 98.90 | E140: 98.53 | F140: 97.87 | G140: 96.83 | H140: 96.17 | I140: 99.57 | J140: 100.23 | K140: 101.27 | L140: 99.2 | M140: 97.5 | N140: 18360000 | O140: -1.77%
A141: 132 | B141: FMCG | C141: MARICO | D141: 333.25 | E141: 333.32 | F141: 329.93 | G141: 326.62 | H141: 323.23 | I141: 336.63 | J141: 340.02 | K141: 343.33 | L141: 336.7 | M141: 330 | N141: 4682600 | O141: 4.83%
A142: 133 | B142: Automobile | C142: MARUTI | D142: 8858.65 | E142: 8861.07 | F142: 8803.18 | G142: 8747.72 | H142: 8689.83 | I142: 8916.53 | J142: 8974.42 | K142: 9029.88 | L142: 8918.95 | M142: 8805.6 | N142: 2277750 | O142: 3.13%
A143: 134 | B143: FMCG | C143: MCDOWELL-N | D143: 668.00 | E143: 667.72 | F143: 661.43 | G143: 654.87 | H143: 648.58 | I143: 674.28 | J143: 680.57 | K143: 687.13 | L143: 674 | M143: 661.15 | N143: 10078750 | O143: 2.53%
A144: 135 | B144: Others | C144: MCX | D144: 735.10 | E144: 735.65 | F144: 729.30 | G144: 723.50 | H144: 717.15 | I144: 741.45 | J144: 747.80 | K144: 753.60 | L144: 742 | M144: 729.85 | N144: 3577000 | O144: 2.75%
A145: 136 | B145: Finance | C145: MFSL | D145: 434.80 | E145: 432.97 | F145: 427.03 | G145: 419.27 | H145: 413.33 | I145: 440.73 | J145: 446.67 | K145: 454.43 | L145: 438.9 | M145: 425.2 | N145: 3081600 | O145: -1.19%
A146: 137 | B146: Others | C146: MGL | D146: 834.15 | E146: 825.68 | F146: 809.97 | G146: 785.78 | H146: 770.07 | I146: 849.87 | J146: 865.58 | K146: 889.77 | L146: 841.4 | M146: 801.5 | N146: 1494000 | O146: 0.57%
A147: 138 | B147: Technology | C147: MINDTREE | D147: 987.55 | E147: 980.18 | F147: 969.37 | G147: 951.18 | H147: 940.37 | I147: 998.37 | J147: 1009.18 | K147: 1027.37 | L147: 991 | M147: 962 | N147: 3930000 | O147: 2.79%
A148: 139 | B148: Automobile | C148: MOTHERSUMI | D148: 285.70 | E148: 284.52 | F148: 282.33 | G148: 278.97 | H148: 276.78 | I148: 287.88 | J148: 290.07 | K148: 293.43 | L148: 286.7 | M148: 281.15 | N148: 14004800 | O148: -1.80%
A149: 140 | B149: Automobile | C149: MRF | D149: 75156.90 | E149: 74660.62 | F149: 73871.28 | G149: 72585.67 | H149: 71796.33 | I149: 75946.23 | J149: 76735.57 | K149: 78021.18 | L149: 75449.95 | M149: 73375 | N149: 24290 | O149: -3.50%
A150: 141 | B150: Others | C150: MRPL | D150: 81.35 | E150: 79.92 | F150: 78.13 | G150: 74.92 | H150: 73.13 | I150: 83.13 | J150: 84.92 | K150: 88.13 | L150: 81.7 | M150: 76.7 | N150: 6898500 | O150: -1.98%
A151: 142 | B151: Finance | C151: MUTHOOTFIN | D151: 381.45 | E151: 381.37 | F151: 377.83 | G151: 374.22 | H151: 370.68 | I151: 384.98 | J151: 388.52 | K151: 392.13 | L151: 384.9 | M151: 377.75 | N151: 1677000 | O151: 1.54%
A152: 143 | B152: Others | C152: NATIONALUM | D152: 64.65 | E152: 64.05 | F152: 63.25 | G152: 61.85 | H152: 61.05 | I152: 65.45 | J152: 66.25 | K152: 67.65 | L152: 64.85 | M152: 62.65 | N152: 46304000 | O152: -3.00%
A153: 144 | B153: Others | C153: NBCC | D153: 75.15 | E153: 74.63 | F153: 73.77 | G153: 72.38 | H153: 71.52 | I153: 76.02 | J153: 76.88 | K153: 78.27 | L153: 75.5 | M153: 73.25 | N153: 21402000 | O153: -1.57%
A154: 145 | B154: Infrastructure | C154: NCC | D154: 96.25 | E154: 95.08 | F154: 93.37 | G154: 90.48 | H154: 88.77 | I154: 97.97 | J154: 99.68 | K154: 102.57 | L154: 96.8 | M154: 92.2 | N154: 45544000 | O154: 0.05%
A155: 146 | B155: Others | C155: NESTLEIND | D155: 9862.60 | E155: 9861.67 | F155: 9801.23 | G155: 9739.87 | H155: 9679.43 | I155: 9923.03 | J155: 9983.47 | K155: 10044.83 | L155: 9922.1 | M155: 9800.3 | N155: 262300 | O155: 4.79%
A156: 147 | B156: Power | C156: NHPC | D156: 23.50 | E156: 23.28 | F156: 22.97 | G156: 22.43 | H156: 22.12 | I156: 23.82 | J156: 24.13 | K156: 24.67 | L156: 23.6 | M156: 22.75 | N156: 28836000 | O156: -2.55%
A157: 148 | B157: Technology | C157: NIITTECH | D157: 1104.05 | E157: 1096.03 | F157: 1080.92 | G157: 1057.78 | H157: 1042.67 | I157: 1119.17 | J157: 1134.28 | K157: 1157.42 | L157: 1111.15 | M157: 1072.9 | N157: 1376250 | O157: 17.85%
A158: 149 | B158: Metals | C158: NMDC | D158: 108.50 | E158: 107.22 | F158: 105.68 | G158: 102.87 | H158: 101.33 | I158: 110.03 | J158: 111.57 | K158: 114.38 | L158: 108.75 | M158: 104.4 | N158: 24918000 | O158: -0.05%
A159: 150 | B159: Power | C159: NTPC | D159: 157.45 | E159: 156.18 | F159: 154.27 | G159: 151.08 | H159: 149.17 | I159: 159.37 | J159: 161.28 | K159: 164.47 | L159: 158.1 | M159: 153 | N159: 46816000 | O159: 5.25%
A160: 151 | B160: Technology | C160: OFSS | D160: 4004.95 | E160: 4043.82 | F160: 3937.73 | G160: 3870.52 | H160: 3764.43 | I160: 4111.03 | J160: 4217.12 | K160: 4284.33 | L160: 4149.9 | M160: 3976.6 | N160: 51450 | O160: 4.26%
A161: 152 | B161: Oil_Gas | C161: OIL | D161: 209.65 | E161: 207.25 | F161: 203.95 | G161: 198.25 | H161: 194.95 | I161: 212.95 | J161: 216.25 | K161: 221.95 | L161: 210.55 | M161: 201.55 | N161: 2654619 | O161: 4.97%
A162: 153 | B162: Oil_Gas | C162: ONGC | D162: 158.25 | E162: 157.25 | F162: 155.00 | G162: 151.75 | H162: 149.50 | I162: 160.50 | J162: 162.75 | K162: 166.00 | L162: 159.5 | M162: 154 | N162: 41741250 | O162: -2.02%
A163: 154 | B163: Banking | C163: ORIENTBANK | D163: 76.00 | E163: 75.05 | F163: 73.05 | G163: 70.10 | H163: 68.10 | I163: 78.00 | J163: 80.00 | K163: 82.95 | L163: 77.05 | M163: 72.1 | N163: 12750000 | O163: -0.28%
A164: 155 | B164: Textile | C164: PAGEIND | D164: 27945.95 | E164: 27924.20 | F164: 27577.70 | G164: 27209.45 | H164: 26862.95 | I164: 28292.45 | J164: 28638.95 | K164: 29007.20 | L164: 28270.7 | M164: 27555.95 | N164: 54800 | O164: 11.16%
A165: 156 | B165: Others | C165: PCJEWELLER | D165: 137.45 | E165: 137.57 | F165: 135.63 | G165: 133.82 | H165: 131.88 | I165: 139.38 | J165: 141.32 | K165: 143.13 | L165: 139.5 | M165: 135.75 | N165: 7257000 | O165: 0.85%
A166: 157 | B166: Pharma | C166: PEL | D166: 2522.85 | E166: 2540.98 | F166: 2496.97 | G166: 2471.08 | H166: 2427.07 | I166: 2566.87 | J166: 2610.88 | K166: 2636.77 | L166: 2585 | M166: 2515.1 | N166: 2033970 | O166: -0.09%
A167: 158 | B167: Oil_Gas | C167: PETRONET | D167: 219.15 | E167: 216.08 | F167: 211.72 | G167: 204.28 | H167: 199.92 | I167: 223.52 | J167: 227.88 | K167: 235.32 | L167: 220.45 | M167: 208.65 | N167: 16746000 | O167: -1.17%
A168: 159 | B168: Finance | C168: PFC | D168: 77.55 | E168: 76.85 | F168: 75.25 | G168: 72.95 | H168: 71.35 | I168: 79.15 | J168: 80.75 | K168: 83.05 | L168: 78.45 | M168: 74.55 | N168: 85116000 | O168: -1.42%
A169: 160 | B169: FMCG | C169: PIDILITIND | D169: 1067.45 | E169: 1058.55 | F169: 1046.05 | G169: 1024.65 | H169: 1012.15 | I169: 1079.95 | J169: 1092.45 | K169: 1113.85 | L169: 1071.05 | M169: 1037.15 | N169: 3503000 | O169: -1.07%
A170: 161 | B170: Banking | C170: PNB | D170: 76.40 | E170: 75.65 | F170: 74.60 | G170: 72.80 | H170: 71.75 | I170: 77.45 | J170: 78.50 | K170: 80.30 | L170: 76.7 | M170: 73.85 | N170: 84579000 | O170: -0.38%
A171: 162 | B171: Power | C171: POWERGRID | D171: 185.40 | E171: 185.72 | F171: 182.88 | G171: 180.37 | H171: 177.53 | I171: 188.23 | J171: 191.07 | K171: 193.58 | L171: 188.55 | M171: 183.2 | N171: 58428000 | O171: 1.91%
A172: 163 | B172: Power | C172: PTC | D172: 76.05 | E172: 75.30 | F172: 73.45 | G172: 70.85 | H172: 69.00 | I172: 77.90 | J172: 79.75 | K172: 82.35 | L172: 77.15 | M172: 72.7 | N172: 17888000 | O172: 1.73%
A173: 164 | B173: Others | C173: PVR | D173: 1375.15 | E173: 1381.33 | F173: 1349.62 | G173: 1324.08 | H173: 1292.37 | I173: 1406.87 | J173: 1438.58 | K173: 1464.12 | L173: 1413.05 | M173: 1355.8 | N173: 868800 | O173: 3.04%
A174: 165 | B174: Cement | C174: RAMCOCEM | D174: 691.35 | E174: 686.88 | F174: 680.07 | G174: 668.78 | H174: 661.97 | I174: 698.17 | J174: 704.98 | K174: 716.27 | L174: 693.7 | M174: 675.6 | N174: 884800 | O174: 0.55%
A175: 166 | B175: Others | C175: RAYMOND | D175: 921.80 | E175: 915.60 | F175: 906.20 | G175: 890.60 | H175: 881.20 | I175: 931.20 | J175: 940.60 | K175: 956.20 | L175: 925 | M175: 900 | N175: 4865600 | O175: 0.96%
A176: 167 | B176: Banking | C176: RBLBANK | D176: 554.85 | E176: 553.15 | F176: 548.75 | G176: 542.65 | H176: 538.25 | I176: 559.25 | J176: 563.65 | K176: 569.75 | L176: 557.55 | M176: 547.05 | N176: 3847200 | O176: -0.80%
A177: 168 | B177: Telecom | C177: RCOM | D177: 13.85 | E177: 13.93 | F177: 13.42 | G177: 12.98 | H177: 12.47 | I177: 14.37 | J177: 14.88 | K177: 15.32 | L177: 14.45 | M177: 13.5 | N177: 86044000 | O177: 2.30%
A178: 169 | B178: Power | C178: RECLTD | D178: 105.00 | E178: 104.25 | F178: 101.75 | G178: 98.50 | H178: 96.00 | I178: 107.50 | J178: 110.00 | K178: 113.25 | L178: 106.75 | M178: 101 | N178: 40674000 | O178: -0.62%
A179: 170 | B179: Finance | C179: RELCAPITAL | D179: 389.15 | E179: 390.62 | F179: 383.58 | G179: 378.02 | H179: 370.98 | I179: 396.18 | J179: 403.22 | K179: 408.78 | L179: 397.65 | M179: 385.05 | N179: 8866500 | O179: 5.33%
A180: 171 | B180: Oil_Gas | C180: RELIANCE | D180: 974.80 | E180: 968.35 | F180: 958.00 | G180: 941.20 | H180: 930.85 | I180: 985.15 | J180: 995.50 | K180: 1012.30 | L180: 978.7 | M180: 951.55 | N180: 48306000 | O180: -0.14%
A181: 172 | B181: Power | C181: RELINFRA | D181: 393.30 | E181: 397.05 | F181: 387.30 | G181: 381.30 | H181: 371.55 | I181: 403.05 | J181: 412.80 | K181: 418.80 | L181: 406.8 | M181: 391.05 | N181: 7121400 | O181: 9.85%
A182: 173 | B182: Others | C182: REPCOHOME | D182: 551.00 | E182: 551.10 | F182: 544.05 | G182: 537.10 | H182: 530.05 | I182: 558.05 | J182: 565.10 | K182: 572.05 | L182: 558.15 | M182: 544.15 | N182: 533700 | O182: -2.79%
A183: 174 | B183: Power | C183: RPOWER | D183: 32.20 | E183: 32.37 | F183: 31.58 | G183: 30.97 | H183: 30.18 | I183: 32.98 | J183: 33.77 | K183: 34.38 | L183: 33.15 | M183: 31.75 | N183: 50232000 | O183: 2.96%
A184: 175 | B184: Metals | C184: SAIL | D184: 83.35 | E184: 83.25 | F184: 81.90 | G184: 80.45 | H184: 79.10 | I184: 84.70 | J184: 86.05 | K184: 87.50 | L184: 84.6 | M184: 81.8 | N184: 86196000 | O184: 3.67%
A185: 176 | B185: Banking | C185: SBIN | D185: 260.35 | E185: 261.40 | F185: 258.30 | G185: 256.25 | H185: 253.15 | I185: 263.45 | J185: 266.55 | K185: 268.60 | L185: 264.5 | M185: 259.35 | N185: 74607000 | O185: 0.84%
A186: 177 | B186: Cement | C186: SHREECEM | D186: 15607.60 | E186: 15656.20 | F186: 15452.40 | G186: 15297.20 | H186: 15093.40 | I186: 15811.40 | J186: 16015.20 | K186: 16170.40 | L186: 15860 | M186: 15501 | N186: 85750 | O186: 6.00%
A187: 178 | B187: Capital_Goods | C187: SIEMENS | D187: 985.40 | E187: 979.33 | F187: 966.37 | G187: 947.33 | H187: 934.37 | I187: 998.37 | J187: 1011.33 | K187: 1030.37 | L187: 992.3 | M187: 960.3 | N187: 1113000 | O187: 0.72%
A188: 179 | B188: Banking | C188: SOUTHBANK | D188: 22.00 | E188: 21.80 | F188: 21.55 | G188: 21.10 | H188: 20.85 | I188: 22.25 | J188: 22.50 | K188: 22.95 | L188: 22.05 | M188: 21.35 | N188: 150062448 | O188: 0.44%
A189: 180 | B189: Others | C189: SREINFRA | D189: 61.95 | E189: 62.62 | F189: 60.83 | G189: 59.72 | H189: 57.93 | I189: 63.73 | J189: 65.52 | K189: 66.63 | L189: 64.4 | M189: 61.5 | N189: 20489000 | O189: 1.81%
A190: 181 | B190: Textile | C190: SRF | D190: 1700.60 | E190: 1692.05 | F190: 1670.70 | G190: 1640.80 | H190: 1619.45 | I190: 1721.95 | J190: 1743.30 | K190: 1773.20 | L190: 1713.4 | M190: 1662.15 | N190: 698500 | O190: -1.41%
A191: 182 | B191: Finance | C191: SRTRANSFIN | D191: 1299.10 | E191: 1309.53 | F191: 1272.92 | G191: 1246.73 | H191: 1210.12 | I191: 1335.72 | J191: 1372.33 | K191: 1398.52 | L191: 1346.15 | M191: 1283.35 | N191: 4569000 | O191: 7.13%
A192: 183 | B192: Pharma | C192: STAR | D192: 395.10 | E192: 394.12 | F192: 390.23 | G192: 385.37 | H192: 381.48 | I192: 398.98 | J192: 402.87 | K192: 407.73 | L192: 398 | M192: 389.25 | N192: 3977600 | O192: 2.68%
A193: 184 | B193: Pharma | C193: SUNPHARMA | D193: 565.90 | E193: 567.58 | F193: 560.42 | G193: 554.93 | H193: 547.77 | I193: 573.07 | J193: 580.23 | K193: 585.72 | L193: 574.75 | M193: 562.1 | N193: 42049700 | O193: 1.74%
A194: 185 | B194: Media | C194: SUNTV | D194: 785.35 | E194: 787.62 | F194: 778.68 | G194: 772.02 | H194: 763.08 | I194: 794.28 | J194: 803.22 | K194: 809.88 | L194: 796.55 | M194: 780.95 | N194: 7092000 | O194: 4.76%
A195: 186 | B195: Power | C195: SUZLON | D195: 7.55 | E195: 7.58 | F195: 7.42 | G195: 7.28 | H195: 7.12 | I195: 7.72 | J195: 7.88 | K195: 8.02 | L195: 7.75 | M195: 7.45 | N195: 290160000 | O195: 1.24%
A196: 187 | B196: Banking | C196: SYNDIBANK | D196: 41.15 | E196: 40.62 | F196: 39.73 | G196: 38.32 | H196: 37.43 | I196: 42.03 | J196: 42.92 | K196: 44.33 | L196: 41.5 | M196: 39.2 | N196: 27162000 | O196: 2.97%
A197: 188 | B197: Fertilisers | C197: TATACHEM | D197: 677.45 | E197: 674.45 | F197: 669.10 | G197: 660.75 | H197: 655.40 | I197: 682.80 | J197: 688.15 | K197: 696.50 | L197: 679.8 | M197: 666.1 | N197: 3410250 | O197: 0.60%
A198: 189 | B198: Telecom | C198: TATACOMM | D198: 594.55 | E198: 589.15 | F198: 581.30 | G198: 568.05 | H198: 560.20 | I198: 602.40 | J198: 610.25 | K198: 623.50 | L198: 597 | M198: 575.9 | N198: 3208800 | O198: -1.33%
A199: 190 | B199: Technology | C199: TATAELXSI | D199: 1326.85 | E199: 1314.32 | F199: 1298.63 | G199: 1270.42 | H199: 1254.73 | I199: 1342.53 | J199: 1358.22 | K199: 1386.43 | L199: 1330 | M199: 1286.1 | N199: 1240800 | O199: 6.97%
A200: 191 | B200: FMCG | C200: TATAGLOBAL | D200: 270.30 | E200: 268.35 | F200: 265.40 | G200: 260.50 | H200: 257.55 | I200: 273.25 | J200: 276.20 | K200: 281.10 | L200: 271.3 | M200: 263.45 | N200: 12622500 | O200: 2.22%
A201: 192 | B201: Automobile | C201: TATAMOTORS | D201: 270.30 | E201: 268.48 | F201: 265.57 | G201: 260.83 | H201: 257.92 | I201: 273.22 | J201: 276.13 | K201: 280.87 | L201: 271.4 | M201: 263.75 | N201: 92115000 | O201: 0.94%
A202: 193 | B202: Automobile | C202: TATAMTRDVR | D202: 159.40 | E202: 159.18 | F202: 157.62 | G202: 155.83 | H202: 154.27 | I202: 160.97 | J202: 162.53 | K202: 164.32 | L202: 160.75 | M202: 157.4 | N202: 25900000 | O202: 3.26%
A203: 194 | B203: Power | C203: TATAPOWER | D203: 72.30 | E203: 71.90 | F203: 71.30 | G203: 70.30 | H203: 69.70 | I203: 72.90 | J203: 73.50 | K203: 74.50 | L203: 72.5 | M203: 70.9 | N203: 44082000 | O203: 1.34%
A204: 195 | B204: Metals | C204: TATASTEEL | D204: 559.55 | E204: 555.02 | F204: 548.03 | G204: 536.52 | H204: 529.53 | I204: 566.53 | J204: 573.52 | K204: 585.03 | L204: 562 | M204: 543.5 | N204: 43072356 | O204: 1.61%
A205: 196 | B205: Technology | C205: TCS | D205: 1853.15 | E205: 1854.58 | F205: 1841.72 | G205: 1830.28 | H205: 1817.42 | I205: 1866.02 | J205: 1878.88 | K205: 1890.32 | L205: 1867.45 | M205: 1843.15 | N205: 11102000 | O205: 1.45%
A206: 197 | B206: Technology | C206: TECHM | D206: 643.75 | E206: 643.15 | F206: 623.20 | G206: 602.65 | H206: 582.70 | I206: 663.70 | J206: 683.65 | K206: 704.20 | L206: 663.1 | M206: 622.6 | N206: 17448000 | O206: 6.09%
... 35 more rows

Sheet Cash Intra
M5: Back to Main Page
A6: FOR INTRA DAY TRADING | K6: =Main!B10 -> 2018-07-02
A8: Sr.no | B8: Scrip | C8: CLOSE RATE | D8: Pivot Point | E8: Supports | H8: Resistances
C9: Point | E9: S1 | F9: S2 | G9: S3 | H9: R1 | I9: R2 | J9: R3 | K9: HIGH | L9: LOW | M9: Total Trade Quanity in Lakhs
A10: 1 | B10: Nifty 50 | C10: 10714.3 | D10: 10683.23 | E10: 10643.42 | F10: 10572.53 | G10: 10532.72 | H10: 10754.12 | I10: 10793.93 | J10: 10864.82 | K10: 10723.05 | L10: 10612.35
A11: 2 | B11: Nifty Bank | C11: 26364.2 | D11: 26373.52 | E11: 26282.03 | F11: 26199.87 | G11: 26108.38 | H11: 26455.68 | I11: 26547.17 | J11: 26629.33 | K11: 26465 | L11: 26291.35
A12: 3 | B12: Nifty CPSE | C12: 2221.9 | D12: 2203.38 | E12: 2177.27 | F12: 2132.63 | G12: 2106.52 | H12: 2248.02 | I12: 2274.13 | J12: 2318.77 | K12: 2229.5 | L12: 2158.75
A13: 4 | B13: Nifty Infra | C13: 3125.7 | D13: 3103.72 | E13: 3076.53 | F13: 3027.37 | G13: 3000.18 | H13: 3152.88 | I13: 3180.07 | J13: 3229.23 | K13: 3130.9 | L13: 3054.55
A14: 5 | B14: Nifty IT | C14: 13989.5 | D14: 13956.32 | E14: 13891.88 | F14: 13794.27 | G14: 13729.83 | H14: 14053.93 | I14: 14118.37 | J14: 14215.98 | K14: 14020.75 | L14: 13858.7
A15: 6 | B15: Nifty PSE | C15: 3527.45 | D15: 3505.50 | E15: 3472.85 | F15: 3418.25 | G15: 3385.60 | H15: 3560.10 | I15: 3592.75 | J15: 3647.35 | K15: 3538.15 | L15: 3450.9
A16: 7 | B16: Nifty Midcap 50 | C16: 4850.7 | D16: 4828.27 | E16: 4800.43 | F16: 4750.17 | G16: 4722.33 | H16: 4878.53 | I16: 4906.37 | J16: 4956.63 | K16: 4856.1 | L16: 4778
A17: 8 | B17: ABB | C17: 1178.5 | D17: 1183.15 | E17: 1155.30 | F17: 1132.10 | G17: 1104.25 | H17: 1206.35 | I17: 1234.20 | J17: 1257.40 | K17: 1211 | L17: 1159.95 | M17: 0.80288
A18: 9 | B18: ACC | C18: 1339.9 | D18: 1331.72 | E18: 1305.18 | F18: 1270.47 | G18: 1243.93 | H18: 1366.43 | I18: 1392.97 | J18: 1427.68 | K18: 1358.25 | L18: 1297 | M18: 10.31272
A19: 10 | B19: AIAENG | C19: 1500.1 | D19: 1497.40 | E19: 1487.30 | F19: 1474.50 | G19: 1464.40 | H19: 1510.20 | I19: 1520.30 | J19: 1533.10 | K19: 1507.5 | L19: 1484.6 | M19: 0.30141
A20: 11 | B20: AUBANK | C20: 655.75 | D20: 661.80 | E20: 648.60 | F20: 641.45 | G20: 628.25 | H20: 668.95 | I20: 682.15 | J20: 689.30 | K20: 675 | L20: 654.65 | M20: 0.82847
A21: 12 | B21: ADANIENT | C21: 113.15 | D21: 112.48 | E21: 110.77 | F21: 108.38 | G21: 106.67 | H21: 114.87 | I21: 116.58 | J21: 118.97 | K21: 114.2 | L21: 110.1 | M21: 62.66086
A22: 13 | B22: ADANIPORTS | C22: 373.15 | D22: 369.87 | E22: 362.33 | F22: 351.52 | G22: 343.98 | H22: 380.68 | I22: 388.22 | J22: 399.03 | K22: 377.4 | L22: 359.05 | M22: 32.41005
A23: 14 | B23: ADANIPOWER | C23: 16.15 | D23: 16.00 | E23: 15.55 | F23: 14.95 | G23: 14.50 | H23: 16.60 | I23: 17.05 | J23: 17.65 | K23: 16.45 | L23: 15.4 | M23: 184.5816
A24: 15 | B24: ABFRL | C24: 138 | D24: 137.37 | E24: 135.73 | F24: 133.47 | G24: 131.83 | H24: 139.63 | I24: 141.27 | J24: 143.53 | K24: 139 | L24: 135.1 | M24: 3.16048
A25: 16 | B25: AJANTPHARM | C25: 982.7 | D25: 980.25 | E25: 968.50 | F25: 954.30 | G25: 942.55 | H25: 994.45 | I25: 1006.20 | J25: 1020.40 | K25: 992 | L25: 966.05 | M25: 3.57965
A26: 17 | B26: ALKEM | C26: 1891.15 | D26: 1901.23 | E26: 1869.92 | F26: 1848.68 | G26: 1817.37 | H26: 1922.47 | I26: 1953.78 | J26: 1975.02 | K26: 1932.55 | L26: 1880 | M26: 0.31841
A27: 18 | B27: AMARAJABAT | C27: 726.15 | D27: 727.98 | E27: 719.42 | F27: 712.68 | G27: 704.12 | H27: 734.72 | I27: 743.28 | J27: 750.02 | K27: 736.55 | L27: 721.25 | M27: 3.587
A28: 19 | B28: AMBUJACEM | C28: 207.45 | D28: 205.72 | E28: 203.43 | F28: 199.42 | G28: 197.13 | H28: 209.73 | I28: 212.02 | J28: 216.03 | K28: 208 | L28: 201.7 | M28: 37.4907
A29: 20 | B29: APOLLOHOSP | C29: 1047.45 | D29: 1036.72 | E29: 1017.08 | F29: 986.72 | G29: 967.08 | H29: 1067.08 | I29: 1086.72 | J29: 1117.08 | K29: 1056.35 | L29: 1006.35 | M29: 5.23238
A30: 21 | B30: APOLLOTYRE | C30: 254 | D30: 254.53 | E30: 250.22 | F30: 246.43 | G30: 242.12 | H30: 258.32 | I30: 262.63 | J30: 266.42 | K30: 258.85 | L30: 250.75 | M30: 24.01324
A31: 22 | B31: ARVIND | C31: 398.7 | D31: 395.87 | E31: 391.93 | F31: 385.17 | G31: 381.23 | H31: 402.63 | I31: 406.57 | J31: 413.33 | K31: 399.8 | L31: 389.1 | M31: 11.6917
A32: 23 | B32: ASHOKLEY | C32: 125.8 | D32: 125.87 | E32: 124.53 | F32: 123.27 | G32: 121.93 | H32: 127.13 | I32: 128.47 | J32: 129.73 | K32: 127.2 | L32: 124.6 | M32: 154.60744
A33: 24 | B33: ASIANPAINT | C33: 1264.45 | D33: 1262.57 | E33: 1254.03 | F33: 1243.62 | G33: 1235.08 | H33: 1272.98 | I33: 1281.52 | J33: 1291.93 | K33: 1271.1 | L33: 1252.15 | M33: 6.2268
A34: 25 | B34: AUROPHARMA | C34: 607.1 | D34: 604.37 | E34: 599.23 | F34: 591.37 | G34: 586.23 | H34: 612.23 | I34: 617.37 | J34: 625.23 | K34: 609.5 | L34: 596.5 | M34: 23.00166
A35: 26 | B35: DMART | C35: 1485.4 | D35: 1473.13 | E35: 1450.87 | F35: 1416.33 | G35: 1394.07 | H35: 1507.67 | I35: 1529.93 | J35: 1564.47 | K35: 1495.4 | L35: 1438.6 | M35: 6.12439
A36: 27 | B36: AXISBANK | C36: 510.8 | D36: 508.02 | E36: 501.53 | F36: 492.27 | G36: 485.78 | H36: 517.28 | I36: 523.77 | J36: 533.03 | K36: 514.5 | L36: 498.75 | M36: 77.47444
A37: 28 | B37: BAJAJ-AUTO | C37: 2810.3 | D37: 2786.15 | E37: 2744.30 | F37: 2678.30 | G37: 2636.45 | H37: 2852.15 | I37: 2894.00 | J37: 2960.00 | K37: 2828 | L37: 2720.15 | M37: 4.2521
A38: 29 | B38: BAJFINANCE | C38: 2296.35 | D38: 2295.65 | E38: 2271.30 | F38: 2246.25 | G38: 2221.90 | H38: 2320.70 | I38: 2345.05 | J38: 2370.10 | K38: 2320 | L38: 2270.6 | M38: 13.78421
A39: 30 | B39: BAJAJFINSV | C39: 5821.1 | D39: 5853.93 | E39: 5775.17 | F39: 5729.23 | G39: 5650.47 | H39: 5899.87 | I39: 5978.63 | J39: 6024.57 | K39: 5932.7 | L39: 5808 | M39: 1.53569
A40: 31 | B40: BALKRISIND | C40: 1041.5 | D40: 1035.40 | E40: 1019.80 | F40: 998.10 | G40: 982.50 | H40: 1057.10 | I40: 1072.70 | J40: 1094.40 | K40: 1051 | L40: 1013.7 | M40: 4.92197
A41: 32 | B41: BANKBARODA | C41: 112.65 | D41: 113.32 | E41: 111.48 | F41: 110.32 | G41: 108.48 | H41: 114.48 | I41: 116.32 | J41: 117.48 | K41: 115.15 | L41: 112.15 | M41: 142.74242
A42: 33 | B42: BANKINDIA | C42: 87.5 | D42: 87.05 | E42: 85.95 | F42: 84.40 | G42: 83.30 | H42: 88.60 | I42: 89.70 | J42: 91.25 | K42: 88.15 | L42: 85.5 | M42: 67.14586
A43: 34 | B43: BATAINDIA | C43: 859.4 | D43: 851.33 | E43: 838.07 | F43: 816.73 | G43: 803.47 | H43: 872.67 | I43: 885.93 | J43: 907.27 | K43: 864.6 | L43: 830 | M43: 15.75834
A44: 35 | B44: BERGEPAINT | C44: 281 | D44: 280.53 | E44: 276.07 | F44: 271.13 | G44: 266.67 | H44: 285.47 | I44: 289.93 | J44: 294.87 | K44: 285 | L44: 275.6 | M44: 6.47971
A45: 36 | B45: BEL | C45: 108.65 | D45: 107.45 | E45: 105.60 | F45: 102.55 | G45: 100.70 | H45: 110.50 | I45: 112.35 | J45: 115.40 | K45: 109.3 | L45: 104.4 | M45: 64.235
A46: 37 | B46: BHARATFIN | C46: 1156.5 | D46: 1164.65 | E46: 1145.00 | F46: 1133.50 | G46: 1113.85 | H46: 1176.15 | I46: 1195.80 | J46: 1207.30 | K46: 1184.3 | L46: 1153.15 | M46: 7.04534
A47: 38 | B47: BHARATFORG | C47: 612.7 | D47: 610.30 | E47: 604.90 | F47: 597.10 | G47: 591.70 | H47: 618.10 | I47: 623.50 | J47: 631.30 | K47: 615.7 | L47: 602.5 | M47: 6.97986
A48: 39 | B48: BHEL | C48: 71.75 | D48: 71.55 | E48: 70.75 | F48: 69.75 | G48: 68.95 | H48: 72.55 | I48: 73.35 | J48: 74.35 | K48: 72.35 | L48: 70.55 | M48: 103.74286
A49: 40 | B49: BPCL | C49: 373.3 | D49: 371.35 | E49: 363.80 | F49: 354.30 | G49: 346.75 | H49: 380.85 | I49: 388.40 | J49: 397.90 | K49: 378.9 | L49: 361.85 | M49: 69.23201
A50: 41 | B50: BHARTIARTL | C50: 381.95 | D50: 380.18 | E50: 377.07 | F50: 372.18 | G50: 369.07 | H50: 385.07 | I50: 388.18 | J50: 393.07 | K50: 383.3 | L50: 375.3 | M50: 34.43146
A51: 42 | B51: INFRATEL | C51: 300.55 | D51: 301.37 | E51: 294.78 | F51: 289.02 | G51: 282.43 | H51: 307.13 | I51: 313.72 | J51: 319.48 | K51: 307.95 | L51: 295.6 | M51: 38.71075
A52: 43 | B52: BIOCON | C52: 619.55 | D52: 615.27 | E52: 608.63 | F52: 597.72 | G52: 591.08 | H52: 626.18 | I52: 632.82 | J52: 643.73 | K52: 621.9 | L52: 604.35 | M52: 16.80332
A53: 44 | B53: BOSCHLTD | C53: 17509.95 | D53: 17442.10 | E53: 17319.85 | F53: 17129.75 | G53: 17007.50 | H53: 17632.20 | I53: 17754.45 | J53: 17944.55 | K53: 17564.35 | L53: 17252 | M53: 0.18972
A54: 45 | B54: BRITANNIA | C54: 6213.75 | D54: 6194.67 | E54: 6131.38 | F54: 6049.02 | G54: 5985.73 | H54: 6277.03 | I54: 6340.32 | J54: 6422.68 | K54: 6257.95 | L54: 6112.3 | M54: 1.57611
A55: 46 | B55: CRISIL | C55: 1799.6 | D55: 1792.53 | E55: 1780.07 | F55: 1760.53 | G55: 1748.07 | H55: 1812.07 | I55: 1824.53 | J55: 1844.07 | K55: 1805 | L55: 1773 | M55: 0.01553
A56: 47 | B56: CADILAHC | C56: 377.4 | D56: 378.07 | E56: 371.63 | F56: 365.87 | G56: 359.43 | H56: 383.83 | I56: 390.27 | J56: 396.03 | K56: 384.5 | L56: 372.3 | M56: 13.95303
A57: 48 | B57: CANBK | C57: 251.55 | D57: 252.13 | E57: 248.47 | F57: 245.38 | G57: 241.72 | H57: 255.22 | I57: 258.88 | J57: 261.97 | K57: 255.8 | L57: 249.05 | M57: 52.69689
A58: 49 | B58: CASTROLIND | C58: 163.7 | D58: 164.00 | E58: 160.75 | F58: 157.80 | G58: 154.55 | H58: 166.95 | I58: 170.20 | J58: 173.15 | K58: 167.25 | L58: 161.05 | M58: 20.76372
A59: 50 | B59: CENTRALBK | C59: 69.2 | D59: 69.05 | E59: 68.30 | F59: 67.40 | G59: 66.65 | H59: 69.95 | I59: 70.70 | J59: 71.60 | K59: 69.8 | L59: 68.15 | M59: 2.12442
A60: 51 | B60: CENTURYTEX | C60: 888.7 | D60: 892.85 | E60: 879.20 | F60: 869.70 | G60: 856.05 | H60: 902.35 | I60: 916.00 | J60: 925.50 | K60: 906.5 | L60: 883.35 | M60: 6.65452
A61: 52 | B61: CHOLAFIN | C61: 1512.6 | D61: 1509.80 | E61: 1476.70 | F61: 1440.80 | G61: 1407.70 | H61: 1545.70 | I61: 1578.80 | J61: 1614.70 | K61: 1542.9 | L61: 1473.9 | M61: 4.14817
A62: 53 | B62: CIPLA | C62: 616.65 | D62: 612.15 | E62: 604.40 | F62: 592.15 | G62: 584.40 | H62: 624.40 | I62: 632.15 | J62: 644.40 | K62: 619.9 | L62: 599.9 | M62: 15.25608
A63: 54 | B63: COALINDIA | C63: 264.35 | D63: 262.85 | E63: 260.50 | F63: 256.65 | G63: 254.30 | H63: 266.70 | I63: 269.05 | J63: 272.90 | K63: 265.2 | L63: 259 | M63: 19.58214
A64: 55 | B64: COLPAL | C64: 1184.85 | D64: 1175.75 | E64: 1163.60 | F64: 1142.35 | G64: 1130.20 | H64: 1197.00 | I64: 1209.15 | J64: 1230.40 | K64: 1187.9 | L64: 1154.5 | M64: 2.60757
A65: 56 | B65: CONCOR | C65: 652.25 | D65: 639.27 | E65: 620.98 | F65: 589.72 | G65: 571.43 | H65: 670.53 | I65: 688.82 | J65: 720.08 | K65: 657.55 | L65: 608 | M65: 13.47255
A66: 57 | B66: COROMANDEL | C66: 393.6 | D66: 392.73 | E66: 387.07 | F66: 380.53 | G66: 374.87 | H66: 399.27 | I66: 404.93 | J66: 411.47 | K66: 398.4 | L66: 386.2 | M66: 1.37024
A67: 58 | B67: CROMPTON | C67: 226.2 | D67: 224.73 | E67: 220.57 | F67: 214.93 | G67: 210.77 | H67: 230.37 | I67: 234.53 | J67: 240.17 | K67: 228.9 | L67: 219.1 | M67: 4.00902
A68: 59 | B68: CUMMINSIND | C68: 647.65 | D68: 647.08 | E68: 636.67 | F68: 625.68 | G68: 615.27 | H68: 658.07 | I68: 668.48 | J68: 679.47 | K68: 657.5 | L68: 636.1 | M68: 3.66363
A69: 60 | B69: DLF | C69: 188.8 | D69: 188.70 | E69: 186.35 | F69: 183.90 | G69: 181.55 | H69: 191.15 | I69: 193.50 | J69: 195.95 | K69: 191.05 | L69: 186.25 | M69: 42.02492
A70: 61 | B70: DABUR | C70: 391.45 | D70: 390.28 | E70: 387.67 | F70: 383.88 | G70: 381.27 | H70: 394.07 | I70: 396.68 | J70: 400.47 | K70: 392.9 | L70: 386.5 | M70: 15.51244
A71: 62 | B71: DALMIABHA | C71: 2280.05 | D71: 2281.53 | E71: 2248.52 | F71: 2216.98 | G71: 2183.97 | H71: 2313.07 | I71: 2346.08 | J71: 2377.62 | K71: 2314.55 | L71: 2250 | M71: 1.41367
A72: 63 | B72: DHFL | C72: 637.55 | D72: 640.02 | E72: 632.53 | F72: 627.52 | G72: 620.03 | H72: 645.03 | I72: 652.52 | J72: 657.53 | K72: 647.5 | L72: 635 | M72: 84.68463
A73: 64 | B73: DISHTV | C73: 71.8 | D73: 71.57 | E73: 71.13 | F73: 70.47 | G73: 70.03 | H73: 72.23 | I73: 72.67 | J73: 73.33 | K73: 72 | L73: 70.9 | M73: 53.48981
A74: 65 | B74: DIVISLAB | C74: 1038.6 | D74: 1028.03 | E74: 1013.57 | F74: 988.53 | G74: 974.07 | H74: 1053.07 | I74: 1067.53 | J74: 1092.57 | K74: 1042.5 | L74: 1003 | M74: 3.74782
A75: 66 | B75: LALPATHLAB | C75: 957.7 | D75: 957.48 | E75: 930.32 | F75: 902.93 | G75: 875.77 | H75: 984.87 | I75: 1012.03 | J75: 1039.42 | K75: 984.65 | L75: 930.1 | M75: 1.03628
A76: 67 | B76: DRREDDY | C76: 2235.05 | D76: 2247.35 | E76: 2210.70 | F76: 2186.35 | G76: 2149.70 | H76: 2271.70 | I76: 2308.35 | J76: 2332.70 | K76: 2284 | L76: 2223 | M76: 8.98423
A77: 68 | B77: EDELWEISS | C77: 294.5 | D77: 289.13 | E77: 281.37 | F77: 268.23 | G77: 260.47 | H77: 302.27 | I77: 310.03 | J77: 323.17 | K77: 296.9 | L77: 276 | M77: 27.69109
A78: 69 | B78: EICHERMOT | C78: 28590.45 | D78: 28593.08 | E78: 28397.37 | F78: 28204.28 | G78: 28008.57 | H78: 28786.17 | I78: 28981.88 | J78: 29174.97 | K78: 28788.8 | L78: 28400 | M78: 0.81517
A79: 70 | B79: EMAMILTD | C79: 529.15 | D79: 522.72 | E79: 510.43 | F79: 491.72 | G79: 479.43 | H79: 541.43 | I79: 553.72 | J79: 572.43 | K79: 535 | L79: 504 | M79: 4.54663
A80: 71 | B80: ENDURANCE | C80: 1249.2 | D80: 1243.70 | E80: 1224.40 | F80: 1199.60 | G80: 1180.30 | H80: 1268.50 | I80: 1287.80 | J80: 1312.60 | K80: 1263 | L80: 1218.9 | M80: 0.33401
A81: 72 | B81: ENGINERSIN | C81: 124.2 | D81: 123.50 | E81: 122.25 | F81: 120.30 | G81: 119.05 | H81: 125.45 | I81: 126.70 | J81: 128.65 | K81: 124.75 | L81: 121.55 | M81: 10.56021
A82: 73 | B82: EXIDEIND | C82: 258.3 | D82: 255.00 | E82: 251.00 | F82: 243.70 | G82: 239.70 | H82: 262.30 | I82: 266.30 | J82: 273.60 | K82: 259 | L82: 247.7 | M82: 16.88686
A83: 74 | B83: FEDERALBNK | C83: 81.85 | D83: 81.03 | E83: 79.87 | F83: 77.88 | G83: 76.72 | H83: 83.02 | I83: 84.18 | J83: 86.17 | K83: 82.2 | L83: 79.05 | M83: 88.10557
A84: 75 | B84: GAIL | C84: 340.25 | D84: 336.57 | E84: 324.33 | F84: 308.42 | G84: 296.18 | H84: 352.48 | I84: 364.72 | J84: 380.63 | K84: 348.8 | L84: 320.65 | M84: 75.93016
A85: 76 | B85: GMRINFRA | C85: 15.3 | D85: 15.38 | E85: 15.07 | F85: 14.83 | G85: 14.52 | H85: 15.62 | I85: 15.93 | J85: 16.17 | K85: 15.7 | L85: 15.15 | M85: 282.40543
A86: 77 | B86: GSKCONS | C86: 6504.8 | D86: 6468.52 | E86: 6312.03 | F86: 6119.27 | G86: 5962.78 | H86: 6661.28 | I86: 6817.77 | J86: 7010.53 | K86: 6625 | L86: 6275.75 | M86: 0.3122
A87: 78 | B87: GLAXO | C87: 2796.45 | D87: 2797.08 | E87: 2769.37 | F87: 2742.28 | G87: 2714.57 | H87: 2824.17 | I87: 2851.88 | J87: 2878.97 | K87: 2824.8 | L87: 2770 | M87: 0.13465
A88: 79 | B88: GLENMARK | C88: 583.05 | D88: 581.02 | E88: 577.03 | F88: 571.02 | G88: 567.03 | H88: 587.03 | I88: 591.02 | J88: 597.03 | K88: 585 | L88: 575 | M88: 8.34893
A89: 80 | B89: GODREJCP | C89: 1225.7 | D89: 1224.20 | E89: 1211.55 | F89: 1197.40 | G89: 1184.75 | H89: 1238.35 | I89: 1251.00 | J89: 1265.15 | K89: 1236.85 | L89: 1210.05 | M89: 6.74286
A90: 81 | B90: GODREJIND | C90: 623.7 | D90: 616.42 | E90: 602.83 | F90: 581.97 | G90: 568.38 | H90: 637.28 | I90: 650.87 | J90: 671.73 | K90: 630 | L90: 595.55 | M90: 4.71079
A91: 82 | B91: GRUH | C91: 304.15 | D91: 305.58 | E91: 301.67 | F91: 299.18 | G91: 295.27 | H91: 308.07 | I91: 311.98 | J91: 314.47 | K91: 309.5 | L91: 303.1 | M91: 6.19099
A92: 83 | B92: GPPL | C92: 105.5 | D92: 105.83 | E92: 104.67 | F92: 103.83 | G92: 102.67 | H92: 106.67 | I92: 107.83 | J92: 108.67 | K92: 107 | L92: 105 | M92: 2.28808
A93: 84 | B93: GSPL | C93: 179.95 | D93: 179.92 | E93: 177.03 | F93: 174.12 | G93: 171.23 | H93: 182.83 | I93: 185.72 | J93: 188.63 | K93: 182.8 | L93: 177 | M93: 6.54178
A94: 85 | B94: HCLTECH | C94: 926.25 | D94: 922.78 | E94: 916.82 | F94: 907.38 | G94: 901.42 | H94: 932.22 | I94: 938.18 | J94: 947.62 | K94: 928.75 | L94: 913.35 | M94: 30.29777
A95: 86 | B95: HDFCBANK | C95: 2108.45 | D95: 2117.85 | E95: 2095.70 | F95: 2082.95 | G95: 2060.80 | H95: 2130.60 | I95: 2152.75 | J95: 2165.50 | K95: 2140 | L95: 2105.1 | M95: 48.6453
A96: 87 | B96: HAVELLS | C96: 543.35 | D96: 537.38 | E96: 529.07 | F96: 514.78 | G96: 506.47 | H96: 551.67 | I96: 559.98 | J96: 574.27 | K96: 545.7 | L96: 523.1 | M96: 14.15809
A97: 88 | B97: HEROMOTOCO | C97: 3473.5 | D97: 3488.27 | E97: 3441.58 | F97: 3409.67 | G97: 3362.98 | H97: 3520.18 | I97: 3566.87 | J97: 3598.78 | K97: 3534.95 | L97: 3456.35 | M97: 3.98443
A98: 89 | B98: HEXAWARE | C98: 458.15 | D98: 455.10 | E98: 448.55 | F98: 438.95 | G98: 432.40 | H98: 464.70 | I98: 471.25 | J98: 480.85 | K98: 461.65 | L98: 445.5 | M98: 12.06377
A99: 90 | B99: HINDALCO | C99: 230.5 | D99: 228.02 | E99: 224.03 | F99: 217.57 | G99: 213.58 | H99: 234.48 | I99: 238.47 | J99: 244.93 | K99: 232 | L99: 221.55 | M99: 104.41528
A100: 91 | B100: HINDPETRO | C100: 259.2 | D100: 261.08 | E100: 254.67 | F100: 250.13 | G100: 243.72 | H100: 265.62 | I100: 272.03 | J100: 276.57 | K100: 267.5 | L100: 256.55 | M100: 96.00336
A101: 92 | B101: HINDUNILVR | C101: 1641.15 | D101: 1630.53 | E101: 1616.07 | F101: 1590.98 | G101: 1576.52 | H101: 1655.62 | I101: 1670.08 | J101: 1695.17 | K101: 1645 | L101: 1605.45 | M101: 17.22592
A102: 93 | B102: HINDZINC | C102: 274.5 | D102: 274.40 | E102: 269.65 | F102: 264.80 | G102: 260.05 | H102: 279.25 | I102: 284.00 | J102: 288.85 | K102: 279.15 | L102: 269.55 | M102: 16.88334
A103: 94 | B103: HUDCO | C103: 56.45 | D103: 56.47 | E103: 55.98 | F103: 55.52 | G103: 55.03 | H103: 56.93 | I103: 57.42 | J103: 57.88 | K103: 56.95 | L103: 56 | M103: 5.54001
A104: 95 | B104: HDFC | C104: 1908.1 | D104: 1898.03 | E104: 1883.07 | F104: 1858.03 | G104: 1843.07 | H104: 1923.07 | I104: 1938.03 | J104: 1963.07 | K104: 1913 | L104: 1873 | M104: 40.22628
A105: 96 | B105: ITC | C105: 266.2 | D105: 264.68 | E105: 261.82 | F105: 257.43 | G105: 254.57 | H105: 269.07 | I105: 271.93 | J105: 276.32 | K105: 267.55 | L105: 260.3 | M105: 109.0702
A106: 97 | B106: ICICIBANK | C106: 275.4 | D106: 273.67 | E106: 271.33 | F106: 267.27 | G106: 264.93 | H106: 277.73 | I106: 280.07 | J106: 284.13 | K106: 276 | L106: 269.6 | M106: 209.30477
A107: 98 | B107: ICICIPRULI | C107: 377.3 | D107: 375.93 | E107: 371.77 | F107: 366.23 | G107: 362.07 | H107: 381.47 | I107: 385.63 | J107: 391.17 | K107: 380.1 | L107: 370.4 | M107: 10.57114
A108: 99 | B108: IDBI | C108: 54.9 | D108: 53.82 | E108: 51.83 | F108: 48.77 | G108: 46.78 | H108: 56.88 | I108: 58.87 | J108: 61.93 | K108: 55.8 | L108: 50.75 | M108: 758.46989
A109: 100 | B109: IDFCBANK | C109: 38.85 | D109: 39.18 | E109: 38.42 | F109: 37.98 | G109: 37.22 | H109: 39.62 | I109: 40.38 | J109: 40.82 | K109: 39.95 | L109: 38.75 | M109: 111.19123
A110: 101 | B110: IDFC | C110: 46.2 | D110: 45.77 | E110: 44.68 | F110: 43.17 | G110: 42.08 | H110: 47.28 | I110: 48.37 | J110: 49.88 | K110: 46.85 | L110: 44.25 | M110: 77.70039
A111: 102 | B111: IRB | C111: 210.9 | D111: 209.12 | E111: 204.78 | F111: 198.67 | G111: 194.33 | H111: 215.23 | I111: 219.57 | J111: 225.68 | K111: 213.45 | L111: 203 | M111: 16.16453
A112: 103 | B112: IDEA | C112: 59.35 | D112: 58.32 | E112: 56.83 | F112: 54.32 | G112: 52.83 | H112: 60.83 | I112: 62.32 | J112: 64.83 | K112: 59.8 | L112: 55.8 | M112: 132.11851
A113: 104 | B113: IBULHSGFIN | C113: 1142.5 | D113: 1141.77 | E113: 1129.73 | F113: 1116.97 | G113: 1104.93 | H113: 1154.53 | I113: 1166.57 | J113: 1179.33 | K113: 1153.8 | L113: 1129 | M113: 11.69844
A114: 105 | B114: INDIANB | C114: 343.7 | D114: 343.75 | E114: 338.90 | F114: 334.10 | G114: 329.25 | H114: 348.55 | I114: 353.40 | J114: 358.20 | K114: 348.6 | L114: 338.95 | M114: 16.81249
A115: 106 | B115: INDHOTEL | C115: 132.05 | D115: 130.97 | E115: 129.33 | F115: 126.62 | G115: 124.98 | H115: 133.68 | I115: 135.32 | J115: 138.03 | K115: 132.6 | L115: 128.25 | M115: 5.11207
A116: 107 | B116: IOC | C116: 156 | D116: 156.00 | E116: 153.80 | F116: 151.60 | G116: 149.40 | H116: 158.20 | I116: 160.40 | J116: 162.60 | K116: 158.2 | L116: 153.8 | M116: 86.75702
A117: 108 | B117: IGL | C117: 254.3 | D117: 250.90 | E117: 245.90 | F117: 237.50 | G117: 232.50 | H117: 259.30 | I117: 264.30 | J117: 272.70 | K117: 255.9 | L117: 242.5 | M117: 26.70544
A118: 109 | B118: INDUSINDBK | C118: 1932.2 | D118: 1946.92 | E118: 1914.83 | F118: 1897.47 | G118: 1865.38 | H118: 1964.28 | I118: 1996.37 | J118: 2013.73 | K118: 1979 | L118: 1929.55 | M118: 13.24639
A119: 110 | B119: NAUKRI | C119: 1186.35 | D119: 1168.45 | E119: 1144.05 | F119: 1101.75 | G119: 1077.35 | H119: 1210.75 | I119: 1235.15 | J119: 1277.45 | K119: 1192.85 | L119: 1126.15 | M119: 2.42754
A120: 111 | B120: INFY | C120: 1307.2 | D120: 1301.82 | E120: 1288.63 | F120: 1270.07 | G120: 1256.88 | H120: 1320.38 | I120: 1333.57 | J120: 1352.13 | K120: 1315 | L120: 1283.25 | M120: 49.833
A121: 112 | B121: INDIGO | C121: 1088.5 | D121: 1094.77 | E121: 1063.83 | F121: 1039.17 | G121: 1008.23 | H121: 1119.43 | I121: 1150.37 | J121: 1175.03 | K121: 1125.7 | L121: 1070.1 | M121: 31.16223
A122: 113 | B122: IPCALAB | C122: 699.6 | D122: 697.92 | E122: 692.38 | F122: 685.17 | G122: 679.63 | H122: 705.13 | I122: 710.67 | J122: 717.88 | K122: 703.45 | L122: 690.7 | M122: 3.84767
A123: 114 | B123: JSWENERGY | C123: 65.6 | D123: 65.70 | E123: 64.50 | F123: 63.40 | G123: 62.20 | H123: 66.80 | I123: 68.00 | J123: 69.10 | K123: 66.9 | L123: 64.6 | M123: 6.74683
A124: 115 | B124: JSWSTEEL | C124: 326.8 | D124: 325.95 | E124: 323.60 | F124: 320.40 | G124: 318.05 | H124: 329.15 | I124: 331.50 | J124: 334.70 | K124: 328.3 | L124: 322.75 | M124: 41.7639
A125: 116 | B125: JINDALSTEL | C125: 223.05 | D125: 220.42 | E125: 214.63 | F125: 206.22 | G125: 200.43 | H125: 228.83 | I125: 234.62 | J125: 243.03 | K125: 226.2 | L125: 212 | M125: 76.14771
A126: 117 | B126: JUBLFOOD | C126: 1386.45 | D126: 1382.17 | E126: 1369.43 | F126: 1352.42 | G126: 1339.68 | H126: 1399.18 | I126: 1411.92 | J126: 1428.93 | K126: 1394.9 | L126: 1365.15 | M126: 6.88648
A127: 118 | B127: JUBILANT | C127: 699.15 | D127: 700.25 | E127: 684.55 | F127: 669.95 | G127: 654.25 | H127: 714.85 | I127: 730.55 | J127: 745.15 | K127: 715.95 | L127: 685.65 | M127: 3.88884
A128: 119 | B128: KARURVYSYA | C128: 103.7 | D128: 103.23 | E128: 102.47 | F128: 101.23 | G128: 100.47 | H128: 104.47 | I128: 105.23 | J128: 106.47 | K128: 104 | L128: 102 | M128: 2.84783
A129: 120 | B129: KOTAKBANK | C129: 1342.95 | D129: 1346.08 | E129: 1332.17 | F129: 1321.38 | G129: 1307.47 | H129: 1356.87 | I129: 1370.78 | J129: 1381.57 | K129: 1360 | L129: 1335.3 | M129: 23.05393
A130: 121 | B130: L&TFH | C130: 151.65 | D130: 151.22 | E130: 149.48 | F130: 147.32 | G130: 145.58 | H130: 153.38 | I130: 155.12 | J130: 157.28 | K130: 152.95 | L130: 149.05 | M130: 30.28744
A131: 122 | B131: LICHSGFIN | C131: 468.65 | D131: 469.65 | E131: 463.40 | F131: 458.15 | G131: 451.90 | H131: 474.90 | I131: 481.15 | J131: 486.40 | K131: 475.9 | L131: 464.4 | M131: 15.60038
A132: 123 | B132: LT | C132: 1275.1 | D132: 1262.03 | E132: 1246.12 | F132: 1217.13 | G132: 1201.22 | H132: 1291.02 | I132: 1306.93 | J132: 1335.92 | K132: 1277.95 | L132: 1233.05 | M132: 23.24572
A133: 124 | B133: LUPIN | C133: 903.8 | D133: 903.73 | E133: 893.67 | F133: 883.53 | G133: 873.47 | H133: 913.87 | I133: 923.93 | J133: 934.07 | K133: 913.8 | L133: 893.6 | M133: 24.18127
A134: 125 | B134: MRF | C134: 74974.45 | D134: 74556.47 | E134: 73715.68 | F134: 72456.92 | G134: 71616.13 | H134: 75815.23 | I134: 76656.02 | J134: 77914.78 | K134: 75397.25 | L134: 73297.7 | M134: 0.06906
A135: 126 | B135: MGL | C135: 829.55 | D135: 821.83 | E135: 804.67 | F135: 779.78 | G135: 762.62 | H135: 846.72 | I135: 863.88 | J135: 888.77 | K135: 839 | L135: 796.95 | M135: 3.81186
A136: 127 | B136: M&MFIN | C136: 469.65 | D136: 466.55 | E136: 461.10 | F136: 452.55 | G136: 447.10 | H136: 475.10 | I136: 480.55 | J136: 489.10 | K136: 472 | L136: 458 | M136: 9.16494
A137: 128 | B137: M&M | C137: 897.7 | D137: 902.48 | E137: 890.07 | F137: 882.43 | G137: 870.02 | H137: 910.12 | I137: 922.53 | J137: 930.17 | K137: 914.9 | L137: 894.85 | M137: 24.41612
A138: 129 | B138: MANAPPURAM | C138: 98.5 | D138: 98.00 | E138: 97.10 | F138: 95.70 | G138: 94.80 | H138: 99.40 | I138: 100.30 | J138: 101.70 | K138: 98.9 | L138: 96.6 | M138: 23.55344
A139: 130 | B139: MRPL | C139: 81.05 | D139: 80.05 | E139: 78.60 | F139: 76.15 | G139: 74.70 | H139: 82.50 | I139: 83.95 | J139: 86.40 | K139: 81.5 | L139: 77.6 | M139: 19.19244
A140: 131 | B140: MARICO | C140: 331.65 | D140: 331.77 | E140: 328.28 | F140: 324.92 | G140: 321.43 | H140: 335.13 | I140: 338.62 | J140: 341.98 | K140: 335.25 | L140: 328.4 | M140: 12.40526
A141: 132 | B141: MARUTI | C141: 8825.6 | D141: 8825.30 | E141: 8750.60 | F141: 8675.60 | G141: 8600.90 | H141: 8900.30 | I141: 8975.00 | J141: 9050.00 | K141: 8900 | L141: 8750.3 | M141: 4.58807
A142: 133 | B142: MFSL | C142: 432.55 | D142: 430.90 | E142: 424.35 | F142: 416.15 | G142: 409.60 | H142: 439.10 | I142: 445.65 | J142: 453.85 | K142: 437.45 | L142: 422.7 | M142: 4.47873
A143: 134 | B143: MINDTREE | C143: 986.9 | D143: 979.92 | E143: 965.03 | F143: 943.17 | G143: 928.28 | H143: 1001.78 | I143: 1016.67 | J143: 1038.53 | K143: 994.8 | L143: 958.05 | M143: 10.49747
A144: 135 | B144: MOTHERSUMI | C144: 284.7 | D144: 283.47 | E144: 281.28 | F144: 277.87 | G144: 275.68 | H144: 286.88 | I144: 289.07 | J144: 292.48 | K144: 285.65 | L144: 280.05 | M144: 28.12838
A145: 136 | B145: MPHASIS | C145: 1084.2 | D145: 1082.73 | E145: 1071.47 | F145: 1058.73 | G145: 1047.47 | H145: 1095.47 | I145: 1106.73 | J145: 1119.47 | K145: 1094 | L145: 1070 | M145: 3.8892
A146: 137 | B146: MUTHOOTFIN | C146: 379.5 | D146: 380.18 | E146: 375.97 | F146: 372.43 | G146: 368.22 | H146: 383.72 | I146: 387.93 | J146: 391.47 | K146: 384.4 | L146: 376.65 | M146: 2.95285
A147: 138 | B147: NATCOPHARM | C147: 805.7 | D147: 801.65 | E147: 791.30 | F147: 776.90 | G147: 766.55 | H147: 816.05 | I147: 826.40 | J147: 840.80 | K147: 812 | L147: 787.25 | M147: 1.38556
A148: 139 | B148: NBCC | C148: 74.95 | D148: 74.43 | E148: 73.57 | F148: 72.18 | G148: 71.32 | H148: 75.82 | I148: 76.68 | J148: 78.07 | K148: 75.3 | L148: 73.05 | M148: 51.34921
A149: 140 | B149: NHPC | C149: 23.45 | D149: 23.25 | E149: 22.95 | F149: 22.45 | G149: 22.15 | H149: 23.75 | I149: 24.05 | J149: 24.55 | K149: 23.55 | L149: 22.75 | M149: 50.78399
A150: 141 | B150: NMDC | C150: 108.1 | D150: 106.68 | E150: 104.92 | F150: 101.73 | G150: 99.97 | H150: 109.87 | I150: 111.63 | J150: 114.82 | K150: 108.45 | L150: 103.5 | M150: 23.30032
A151: 142 | B151: NTPC | C151: 159.65 | D151: 158.05 | E151: 155.20 | F151: 150.75 | G151: 147.90 | H151: 162.50 | I151: 165.35 | J151: 169.80 | K151: 160.9 | L151: 153.6 | M151: 55.49364
A152: 143 | B152: NATIONALUM | C152: 64.7 | D152: 63.95 | E152: 63.05 | F152: 61.40 | G152: 60.50 | H152: 65.60 | I152: 66.50 | J152: 68.15 | K152: 64.85 | L152: 62.3 | M152: 98.58263
A153: 144 | B153: OBEROIRLTY | C153: 477.35 | D153: 473.42 | E153: 465.03 | F153: 452.72 | G153: 444.33 | H153: 485.73 | I153: 494.12 | J153: 506.43 | K153: 481.8 | L153: 461.1 | M153: 5.06445
A154: 145 | B154: ONGC | C154: 158.4 | D154: 157.30 | E154: 155.25 | F154: 152.10 | G154: 150.05 | H154: 160.45 | I154: 162.50 | J154: 165.65 | K154: 159.35 | L154: 154.15 | M154: 70.79407
A155: 146 | B155: OIL | C155: 209.85 | D155: 207.57 | E155: 203.93 | F155: 198.02 | G155: 194.38 | H155: 213.48 | I155: 217.12 | J155: 223.03 | K155: 211.2 | L155: 201.65 | M155: 7.10864
A156: 147 | B156: OFSS | C156: 4074.7 | D156: 4099.88 | E156: 4009.82 | F156: 3944.93 | G156: 3854.87 | H156: 4164.77 | I156: 4254.83 | J156: 4319.72 | K156: 4189.95 | L156: 4035 | M156: 0.22984
A157: 148 | B157: PCJEWELLER | C157: 136.75 | D157: 137.00 | E157: 135.30 | F157: 133.85 | G157: 132.15 | H157: 138.45 | I157: 140.15 | J157: 141.60 | K157: 138.7 | L157: 135.55 | M157: 59.42089
A158: 149 | B158: PIIND | C158: 753.05 | D158: 754.35 | E158: 743.70 | F158: 734.35 | G158: 723.70 | H158: 763.70 | I158: 774.35 | J158: 783.70 | K158: 765 | L158: 745 | M158: 0.49789
A159: 150 | B159: PNBHOUSING | C159: 1128.65 | D159: 1143.57 | E159: 1105.13 | F159: 1081.62 | G159: 1043.18 | H159: 1167.08 | I159: 1205.52 | J159: 1229.03 | K159: 1182 | L159: 1120.05 | M159: 2.29579
A160: 151 | B160: PAGEIND | C160: 27814.25 | D160: 27757.50 | E160: 27381.00 | F160: 26947.75 | G160: 26571.25 | H160: 28190.75 | I160: 28567.25 | J160: 29000.50 | K160: 28134 | L160: 27324.25 | M160: 0.23067
A161: 152 | B161: PETRONET | C161: 219.2 | D161: 215.72 | E161: 210.88 | F161: 202.57 | G161: 197.73 | H161: 224.03 | I161: 228.87 | J161: 237.18 | K161: 220.55 | L161: 207.4 | M161: 49.79351
A162: 153 | B162: PIDILITIND | C162: 1063.5 | D162: 1055.48 | E162: 1042.02 | F162: 1020.53 | G162: 1007.07 | H162: 1076.97 | I162: 1090.43 | J162: 1111.92 | K162: 1068.95 | L162: 1034 | M162: 6.42171
A163: 154 | B163: PEL | C163: 2536.3 | D163: 2552.85 | E163: 2508.70 | F163: 2481.10 | G163: 2436.95 | H163: 2580.45 | I163: 2624.60 | J163: 2652.20 | K163: 2597 | L163: 2525.25 | M163: 1.71708
A164: 155 | B164: PFC | C164: 77.3 | D164: 76.50 | E164: 74.90 | F164: 72.50 | G164: 70.90 | H164: 78.90 | I164: 80.50 | J164: 82.90 | K164: 78.1 | L164: 74.1 | M164: 70.94203
A165: 156 | B165: POWERGRID | C165: 186.85 | D165: 187.10 | E165: 183.85 | F165: 180.85 | G165: 177.60 | H165: 190.10 | I165: 193.35 | J165: 196.35 | K165: 190.35 | L165: 184.1 | M165: 47.45135
A166: 157 | B166: PRESTIGE | C166: 270.05 | D166: 270.45 | E166: 268.25 | F166: 266.45 | G166: 264.25 | H166: 272.25 | I166: 274.45 | J166: 276.25 | K166: 272.65 | L166: 268.65 | M166: 1.23638
A167: 158 | B167: PGHH | C167: 9924.75 | D167: 9904.60 | E167: 9810.20 | F167: 9695.65 | G167: 9601.25 | H167: 10019.15 | I167: 10113.55 | J167: 10228.10 | K167: 9999 | L167: 9790.05 | M167: 0.06706
A168: 159 | B168: PNB | C168: 76.15 | D168: 75.35 | E168: 74.35 | F168: 72.55 | G168: 71.55 | H168: 77.15 | I168: 78.15 | J168: 79.95 | K168: 76.35 | L168: 73.55 | M168: 304.36895
A169: 160 | B169: RBLBANK | C169: 552.05 | D169: 549.87 | E169: 544.83 | F169: 537.62 | G169: 532.58 | H169: 557.08 | I169: 562.12 | J169: 569.33 | K169: 554.9 | L169: 542.65 | M169: 12.17218
A170: 161 | B170: RAJESHEXPO | C170: 601.5 | D170: 604.03 | E170: 595.77 | F170: 590.03 | G170: 581.77 | H170: 609.77 | I170: 618.03 | J170: 623.77 | K170: 612.3 | L170: 598.3 | M170: 5.00334
A171: 162 | B171: RELCAPITAL | C171: 387.75 | D171: 389.32 | E171: 382.63 | F171: 377.52 | G171: 370.83 | H171: 394.43 | I171: 401.12 | J171: 406.23 | K171: 396 | L171: 384.2 | M171: 39.43639
A172: 163 | B172: RCOM | C172: 13.75 | D172: 13.87 | E172: 13.33 | F172: 12.92 | G172: 12.38 | H172: 14.28 | I172: 14.82 | J172: 15.23 | K172: 14.4 | L172: 13.45 | M172: 797.47928
A173: 164 | B173: RELIANCE | C173: 972.45 | D173: 965.65 | E173: 955.80 | F173: 939.15 | G173: 929.30 | H173: 982.30 | I173: 992.15 | J173: 1008.80 | K173: 975.5 | L173: 949 | M173: 79.66401
A174: 165 | B174: RELINFRA | C174: 391.75 | D174: 395.17 | E174: 385.83 | F174: 379.92 | G174: 370.58 | H174: 401.08 | I174: 410.42 | J174: 416.33 | K174: 404.5 | L174: 389.25 | M174: 35.55391
A175: 166 | B175: RPOWER | C175: 32 | D175: 32.20 | E175: 31.45 | F175: 30.90 | G175: 30.15 | H175: 32.75 | I175: 33.50 | J175: 34.05 | K175: 32.95 | L175: 31.65 | M175: 66.21648
A176: 167 | B176: RECLTD | C176: 104.65 | D176: 103.88 | E176: 101.42 | F176: 98.18 | G176: 95.72 | H176: 107.12 | I176: 109.58 | J176: 112.82 | K176: 106.35 | L176: 100.65 | M176: 70.10458
A177: 168 | B177: SRF | C177: 1696.6 | D177: 1683.03 | E177: 1659.07 | F177: 1621.53 | G177: 1597.57 | H177: 1720.57 | I177: 1744.53 | J177: 1782.07 | K177: 1707 | L177: 1645.5 | M177: 4.77024
A178: 169 | B178: SHREECEM | C178: 15554.2 | D178: 15600.82 | E178: 15371.63 | F178: 15189.07 | G178: 14959.88 | H178: 15783.38 | I178: 16012.57 | J178: 16195.13 | K178: 15830 | L178: 15418.25 | M178: 0.2285
A179: 170 | B179: SRTRANSFIN | C179: 1299.45 | D179: 1308.72 | E179: 1272.73 | F179: 1246.02 | G179: 1210.03 | H179: 1335.43 | I179: 1371.42 | J179: 1398.13 | K179: 1344.7 | L179: 1282 | M179: 15.08485
A180: 171 | B180: SIEMENS | C180: 980.35 | D180: 974.62 | E180: 961.23 | F180: 942.12 | G180: 928.73 | H180: 993.73 | I180: 1007.12 | J180: 1026.23 | K180: 988 | L180: 955.5 | M180: 1.29931
A181: 172 | B181: SBIN | C181: 259.35 | D181: 260.33 | E181: 257.22 | F181: 255.08 | G181: 251.97 | H181: 262.47 | I181: 265.58 | J181: 267.72 | K181: 263.45 | L181: 258.2 | M181: 162.44724
A182: 173 | B182: SAIL | C182: 83 | D182: 82.87 | E182: 81.58 | F182: 80.17 | G182: 78.88 | H182: 84.28 | I182: 85.57 | J182: 86.98 | K182: 84.15 | L182: 81.45 | M182: 143.27798
A183: 174 | B183: SPARC | C183: 371.25 | D183: 370.82 | E183: 366.83 | F183: 362.42 | G183: 358.43 | H183: 375.23 | I183: 379.22 | J183: 383.63 | K183: 374.8 | L183: 366.4 | M183: 1.37276
A184: 175 | B184: SUNPHARMA | C184: 564 | D184: 565.35 | E184: 558.80 | F184: 553.60 | G184: 547.05 | H184: 570.55 | I184: 577.10 | J184: 582.30 | K184: 571.9 | L184: 560.15 | M184: 44.1694
A185: 176 | B185: SUNTV | C185: 782.3 | D185: 784.48 | E185: 775.77 | F185: 769.23 | G185: 760.52 | H185: 791.02 | I185: 799.73 | J185: 806.27 | K185: 793.2 | L185: 777.95 | M185: 15.08172
A186: 177 | B186: SUZLON | C186: 7.5 | D186: 7.55 | E186: 7.35 | F186: 7.20 | G186: 7.00 | H186: 7.70 | I186: 7.90 | J186: 8.05 | K186: 7.75 | L186: 7.4 | M186: 278.58724
A187: 178 | B187: SYNDIBANK | C187: 40.95 | D187: 40.53 | E187: 39.87 | F187: 38.78 | G187: 38.12 | H187: 41.62 | I187: 42.28 | J187: 43.37 | K187: 41.2 | L187: 39.45 | M187: 46.21191
A188: 179 | B188: SYNGENE | C188: 609.95 | D188: 603.75 | E188: 592.55 | F188: 575.15 | G188: 563.95 | H188: 621.15 | I188: 632.35 | J188: 649.75 | K188: 614.95 | L188: 586.35 | M188: 0.75037
A189: 180 | B189: TV18BRDCST | C189: 52.75 | D189: 52.65 | E189: 51.95 | F189: 51.15 | G189: 50.45 | H189: 53.45 | I189: 54.15 | J189: 54.95 | K189: 53.35 | L189: 51.85 | M189: 34.96333
A190: 181 | B190: TVSMOTOR | C190: 552.85 | D190: 554.30 | E190: 546.40 | F190: 539.95 | G190: 532.05 | H190: 560.75 | I190: 568.65 | J190: 575.10 | K190: 562.2 | L190: 547.85 | M190: 12.42629
A191: 182 | B191: TATACHEM | C191: 697.85 | D191: 694.70 | E191: 688.40 | F191: 678.95 | G191: 672.65 | H191: 704.15 | I191: 710.45 | J191: 719.90 | K191: 701 | L191: 685.25 | M191: 3.48712
A192: 183 | B192: TATACOMM | C192: 592.75 | D192: 587.68 | E192: 579.37 | F192: 565.98 | G192: 557.67 | H192: 601.07 | I192: 609.38 | J192: 622.77 | K192: 596 | L192: 574.3 | M192: 2.94532
A193: 184 | B193: TCS | C193: 1847.75 | D193: 1852.48 | E193: 1837.57 | F193: 1827.38 | G193: 1812.47 | H193: 1862.67 | I193: 1877.58 | J193: 1887.77 | K193: 1867.4 | L193: 1842.3 | M193: 35.06276
A194: 185 | B194: TATAGLOBAL | C194: 269.35 | D194: 267.40 | E194: 264.65 | F194: 259.95 | G194: 257.20 | H194: 272.10 | I194: 274.85 | J194: 279.55 | K194: 270.15 | L194: 262.7 | M194: 20.77927
A195: 186 | B195: TATAMTRDVR | C195: 158.65 | D195: 158.47 | E195: 156.98 | F195: 155.32 | G195: 153.83 | H195: 160.13 | I195: 161.62 | J195: 163.28 | K195: 159.95 | L195: 156.8 | M195: 22.88159
A196: 187 | B196: TATAMOTORS | C196: 269.3 | D196: 267.48 | E196: 264.47 | F196: 259.63 | G196: 256.62 | H196: 272.32 | I196: 275.33 | J196: 280.17 | K196: 270.5 | L196: 262.65 | M196: 147.65516
A197: 188 | B197: TATAPOWER | C197: 73.25 | D197: 72.90 | E197: 72.15 | F197: 71.05 | G197: 70.30 | H197: 74.00 | I197: 74.75 | J197: 75.85 | K197: 73.65 | L197: 71.8 | M197: 36.6811
A198: 189 | B198: TATASTEEL | C198: 567.75 | D198: 562.87 | E198: 555.93 | F198: 544.12 | G198: 537.18 | H198: 574.68 | I198: 581.62 | J198: 593.43 | K198: 569.8 | L198: 551.05 | M198: 94.77384
A199: 190 | B199: TECHM | C199: 655.45 | D199: 655.13 | E199: 634.47 | F199: 613.48 | G199: 592.82 | H199: 676.12 | I199: 696.78 | J199: 717.77 | K199: 675.8 | L199: 634.15 | M199: 108.90801
A200: 191 | B200: RAMCOCEM | C200: 702.4 | D200: 697.50 | E200: 690.95 | F200: 679.50 | G200: 672.95 | H200: 708.95 | I200: 715.50 | J200: 726.95 | K200: 704.05 | L200: 686.05 | M200: 3.09077
A201: 192 | B201: TITAN | C201: 878.5 | D201: 862.12 | E201: 842.43 | F201: 806.37 | G201: 786.68 | H201: 898.18 | I201: 917.87 | J201: 953.93 | K201: 881.8 | L201: 826.05 | M201: 49.60179
A202: 193 | B202: TORNTPHARM | C202: 1401.15 | D202: 1408.53 | E202: 1387.97 | F202: 1374.78 | G202: 1354.22 | H202: 1421.72 | I202: 1442.28 | J202: 1455.47 | K202: 1429.1 | L202: 1395.35 | M202: 1.69559
A203: 194 | B203: TORNTPOWER | C203: 227.15 | D203: 228.47 | E203: 224.23 | F203: 221.32 | G203: 217.08 | H203: 231.38 | I203: 235.62 | J203: 238.53 | K203: 232.7 | L203: 225.55 | M203: 8.11187
A204: 195 | B204: UPL | C204: 618.8 | D204: 615.15 | E204: 608.65 | F204: 598.50 | G204: 592.00 | H204: 625.30 | I204: 631.80 | J204: 641.95 | K204: 621.65 | L204: 605 | M204: 20.04445
A205: 196 | B205: ULTRACEMCO | C205: 3818.6 | D205: 3788.02 | E205: 3745.63 | F205: 3672.67 | G205: 3630.28 | H205: 3860.98 | I205: 3903.37 | J205: 3976.33 | K205: 3830.4 | L205: 3715.05 | M205: 3.20835
... 30 more rows

Sheet MidCap Intra
L5: Back To Main Page
A6: FOR INTRA DAY TRADING | K6: =Main!B10 -> 2018-07-02
A9: Sr.no | B9: Scrip | C9: CLOSE RATE | D9: Pivot Point | E9: Supports | H9: Resistances
C10: Point | E10: S1 | F10: S2 | G10: S3 | H10: R1 | I10: R2 | J10: R3 | K10: HIGH | L10: LOW | M10: Total Trade Quanity in Lakhs
A11: 1 | B11: 3MINDIA | C11: 19637.1 | D11: 19562.35 | E11: 19374.75 | F11: 19112.40 | G11: 18924.80 | H11: 19824.70 | I11: 20012.30 | J11: 20274.65 | K11: 19749.95 | L11: 19300 | M11: 0.00478
A12: 2 | B12: 8KMILES | C12: 490.25 | D12: 486.60 | E12: 477.65 | F12: 465.05 | G12: 456.10 | H12: 499.20 | I12: 508.15 | J12: 520.75 | K12: 495.55 | L12: 474 | M12: 3.46733
A13: 3 | B13: AARTIIND | C13: 1229 | D13: 1224.35 | E13: 1204.65 | F13: 1180.30 | G13: 1160.60 | H13: 1248.70 | I13: 1268.40 | J13: 1292.75 | K13: 1244.05 | L13: 1200 | M13: 0.11306
A14: 4 | B14: ABAN | C14: 112.3 | D14: 112.73 | E14: 111.17 | F14: 110.03 | G14: 108.47 | H14: 113.87 | I14: 115.43 | J14: 116.57 | K14: 114.3 | L14: 111.6 | M14: 4.30245
A15: 5 | B15: ABB | C15: 1178.5 | D15: 1183.15 | E15: 1155.30 | F15: 1132.10 | G15: 1104.25 | H15: 1206.35 | I15: 1234.20 | J15: 1257.40 | K15: 1211 | L15: 1159.95 | M15: 0.80288
A16: 6 | B16: ABCAPITAL | C16: 133.2 | D16: 131.90 | E16: 129.85 | F16: 126.50 | G16: 124.45 | H16: 135.25 | I16: 137.30 | J16: 140.65 | K16: 133.95 | L16: 128.55 | M16: 23.82296
A17: 7 | B17: ABFRL | C17: 138 | D17: 137.37 | E17: 135.73 | F17: 133.47 | G17: 131.83 | H17: 139.63 | I17: 141.27 | J17: 143.53 | K17: 139 | L17: 135.1 | M17: 3.16048
A18: 8 | B18: ACC | C18: 1339.9 | D18: 1331.72 | E18: 1305.18 | F18: 1270.47 | G18: 1243.93 | H18: 1366.43 | I18: 1392.97 | J18: 1427.68 | K18: 1358.25 | L18: 1297 | M18: 10.31272
A19: 9 | B19: ADANIPORTS | C19: 373.15 | D19: 369.87 | E19: 362.33 | F19: 351.52 | G19: 343.98 | H19: 380.68 | I19: 388.22 | J19: 399.03 | K19: 377.4 | L19: 359.05 | M19: 32.41005
A20: 10 | B20: ADANIPOWER | C20: 16.15 | D20: 16.00 | E20: 15.55 | F20: 14.95 | G20: 14.50 | H20: 16.60 | I20: 17.05 | J20: 17.65 | K20: 16.45 | L20: 15.4 | M20: 184.5816
A21: 11 | B21: ADANITRANS | C21: 156.15 | D21: 154.22 | E21: 148.43 | F21: 140.72 | G21: 134.93 | H21: 161.93 | I21: 167.72 | J21: 175.43 | K21: 160 | L21: 146.5 | M21: 5.87531
A22: 12 | B22: ADVENZYMES | C22: 216.7 | D22: 215.40 | E22: 212.30 | F22: 207.90 | G22: 204.80 | H22: 219.80 | I22: 222.90 | J22: 227.30 | K22: 218.5 | L22: 211 | M22: 1.03167
A23: 13 | B23: AEGISCHEM | C23: 213.4 | D23: 213.37 | E23: 208.23 | F23: 203.07 | G23: 197.93 | H23: 218.53 | I23: 223.67 | J23: 228.83 | K23: 218.5 | L23: 208.2 | M23: 1.17296
A24: 14 | B24: AIAENG | C24: 1500.1 | D24: 1497.40 | E24: 1487.30 | F24: 1474.50 | G24: 1464.40 | H24: 1510.20 | I24: 1520.30 | J24: 1533.10 | K24: 1507.5 | L24: 1484.6 | M24: 0.30141
A25: 15 | B25: AJANTPHARM | C25: 982.7 | D25: 980.25 | E25: 968.50 | F25: 954.30 | G25: 942.55 | H25: 994.45 | I25: 1006.20 | J25: 1020.40 | K25: 992 | L25: 966.05 | M25: 3.57965
A26: 16 | B26: AKZOINDIA | C26: 1841.55 | D26: 1844.00 | E26: 1832.60 | F26: 1823.65 | G26: 1812.25 | H26: 1852.95 | I26: 1864.35 | J26: 1873.30 | K26: 1855.4 | L26: 1835.05 | M26: 0.05031
A27: 17 | B27: ALBK | C27: 41.8 | D27: 41.73 | E27: 41.07 | F27: 40.33 | G27: 39.67 | H27: 42.47 | I27: 43.13 | J27: 43.87 | K27: 42.4 | L27: 41 | M27: 45.06807
A28: 18 | B28: ALKEM | C28: 1891.15 | D28: 1901.23 | E28: 1869.92 | F28: 1848.68 | G28: 1817.37 | H28: 1922.47 | I28: 1953.78 | J28: 1975.02 | K28: 1932.55 | L28: 1880 | M28: 0.31841
A29: 19 | B29: ALLCARGO | C29: 105.75 | D29: 104.80 | E29: 102.50 | F29: 99.25 | G29: 96.95 | H29: 108.05 | I29: 110.35 | J29: 113.60 | K29: 107.1 | L29: 101.55 | M29: 1.85942
A30: 20 | B30: AMARAJABAT | C30: 726.15 | D30: 727.98 | E30: 719.42 | F30: 712.68 | G30: 704.12 | H30: 734.72 | I30: 743.28 | J30: 750.02 | K30: 736.55 | L30: 721.25 | M30: 3.587
A31: 21 | B31: AMBUJACEM | C31: 207.45 | D31: 205.72 | E31: 203.43 | F31: 199.42 | G31: 197.13 | H31: 209.73 | I31: 212.02 | J31: 216.03 | K31: 208 | L31: 201.7 | M31: 37.4907
A32: 22 | B32: ANDHRABANK | C32: 32.7 | D32: 32.60 | E32: 31.75 | F32: 30.80 | G32: 29.95 | H32: 33.55 | I32: 34.40 | J32: 35.35 | K32: 33.45 | L32: 31.65 | M32: 69.26451
A33: 23 | B33: APLAPOLLO | C33: 1656.5 | D33: 1661.10 | E33: 1622.20 | F33: 1587.90 | G33: 1549.00 | H33: 1695.40 | I33: 1734.30 | J33: 1768.60 | K33: 1700 | L33: 1626.8 | M33: 1.28051
A34: 24 | B34: APLLTD | C34: 502.6 | D34: 505.37 | E34: 496.73 | F34: 490.87 | G34: 482.23 | H34: 511.23 | I34: 519.87 | J34: 525.73 | K34: 514 | L34: 499.5 | M34: 0.44204
A35: 25 | B35: APOLLOHOSP | C35: 1047.45 | D35: 1036.72 | E35: 1017.08 | F35: 986.72 | G35: 967.08 | H35: 1067.08 | I35: 1086.72 | J35: 1117.08 | K35: 1056.35 | L35: 1006.35 | M35: 5.23238
A36: 26 | B36: APOLLOTYRE | C36: 254 | D36: 254.53 | E36: 250.22 | F36: 246.43 | G36: 242.12 | H36: 258.32 | I36: 262.63 | J36: 266.42 | K36: 258.85 | L36: 250.75 | M36: 24.01324
A37: 27 | B37: ARVIND | C37: 398.7 | D37: 395.87 | E37: 391.93 | F37: 385.17 | G37: 381.23 | H37: 402.63 | I37: 406.57 | J37: 413.33 | K37: 399.8 | L37: 389.1 | M37: 11.6917
A38: 28 | B38: ASAHIINDIA | C38: 333.15 | D38: 333.72 | E38: 329.43 | F38: 325.72 | G38: 321.43 | H38: 337.43 | I38: 341.72 | J38: 345.43 | K38: 338 | L38: 330 | M38: 0.2391
A39: 29 | B39: ASHOKA | C39: 228.55 | D39: 224.15 | E39: 218.40 | F39: 208.25 | G39: 202.50 | H39: 234.30 | I39: 240.05 | J39: 250.20 | K39: 229.9 | L39: 214 | M39: 1.56662
A40: 30 | B40: ASHOKLEY | C40: 125.8 | D40: 125.87 | E40: 124.53 | F40: 123.27 | G40: 121.93 | H40: 127.13 | I40: 128.47 | J40: 129.73 | K40: 127.2 | L40: 124.6 | M40: 154.60744
A41: 31 | B41: ASIANPAINT | C41: 1264.45 | D41: 1262.57 | E41: 1254.03 | F41: 1243.62 | G41: 1235.08 | H41: 1272.98 | I41: 1281.52 | J41: 1291.93 | K41: 1271.1 | L41: 1252.15 | M41: 6.2268
A42: 32 | B42: ASTRAL | C42: 1007.75 | D42: 1004.37 | E42: 998.48 | F42: 989.22 | G42: 983.33 | H42: 1013.63 | I42: 1019.52 | J42: 1028.78 | K42: 1010.25 | L42: 995.1 | M42: 0.22905
A43: 33 | B43: ATUL | C43: 2651.5 | D43: 2644.43 | E43: 2617.07 | F43: 2582.63 | G43: 2555.27 | H43: 2678.87 | I43: 2706.23 | J43: 2740.67 | K43: 2671.8 | L43: 2610 | M43: 0.08093
A44: 34 | B44: AUBANK | C44: 655.75 | D44: 661.80 | E44: 648.60 | F44: 641.45 | G44: 628.25 | H44: 668.95 | I44: 682.15 | J44: 689.30 | K44: 675 | L44: 654.65 | M44: 0.82847
A45: 35 | B45: AUROPHARMA | C45: 607.1 | D45: 604.37 | E45: 599.23 | F45: 591.37 | G45: 586.23 | H45: 612.23 | I45: 617.37 | J45: 625.23 | K45: 609.5 | L45: 596.5 | M45: 23.00166
A46: 36 | B46: AVANTIFEED | C46: 538.15 | D46: 546.62 | E46: 526.53 | F46: 514.92 | G46: 494.83 | H46: 558.23 | I46: 578.32 | J46: 589.93 | K46: 566.7 | L46: 535 | M46: 12.49229
A47: 37 | B47: AXISBANK | C47: 510.8 | D47: 508.02 | E47: 501.53 | F47: 492.27 | G47: 485.78 | H47: 517.28 | I47: 523.77 | J47: 533.03 | K47: 514.5 | L47: 498.75 | M47: 77.47444
A48: 38 | B48: BAJAJ-AUTO | C48: 2810.3 | D48: 2786.15 | E48: 2744.30 | F48: 2678.30 | G48: 2636.45 | H48: 2852.15 | I48: 2894.00 | J48: 2960.00 | K48: 2828 | L48: 2720.15 | M48: 4.2521
A49: 39 | B49: BAJAJCORP | C49: 405.3 | D49: 402.77 | E49: 398.58 | F49: 391.87 | G49: 387.68 | H49: 409.48 | I49: 413.67 | J49: 420.38 | K49: 406.95 | L49: 396.05 | M49: 0.11379
A50: 40 | B50: BAJAJELEC | C50: 543.6 | D50: 540.62 | E50: 533.23 | F50: 522.87 | G50: 515.48 | H50: 550.98 | I50: 558.37 | J50: 568.73 | K50: 548 | L50: 530.25 | M50: 3.19094
A51: 41 | B51: BAJAJFINSV | C51: 5821.1 | D51: 5853.93 | E51: 5775.17 | F51: 5729.23 | G51: 5650.47 | H51: 5899.87 | I51: 5978.63 | J51: 6024.57 | K51: 5932.7 | L51: 5808 | M51: 1.53569
A52: 42 | B52: BAJAJHIND | C52: 6.75 | D52: 6.77 | E52: 6.63 | F52: 6.52 | G52: 6.38 | H52: 6.88 | I52: 7.02 | J52: 7.13 | K52: 6.9 | L52: 6.65 | M52: 10.66743
A53: 43 | B53: BAJAJHLDNG | C53: 2882.4 | D53: 2907.60 | E53: 2849.80 | F53: 2817.20 | G53: 2759.40 | H53: 2940.20 | I53: 2998.00 | J53: 3030.60 | K53: 2965.4 | L53: 2875 | M53: 0.18584
A54: 44 | B54: BAJFINANCE | C54: 2296.35 | D54: 2295.65 | E54: 2271.30 | F54: 2246.25 | G54: 2221.90 | H54: 2320.70 | I54: 2345.05 | J54: 2370.10 | K54: 2320 | L54: 2270.6 | M54: 13.78421
A55: 45 | B55: BALKRISIND | C55: 1041.5 | D55: 1035.40 | E55: 1019.80 | F55: 998.10 | G55: 982.50 | H55: 1057.10 | I55: 1072.70 | J55: 1094.40 | K55: 1051 | L55: 1013.7 | M55: 4.92197
A56: 46 | B56: BALLARPUR | C56: 10.2 | D56: 10.25 | E56: 9.85 | F56: 9.50 | G56: 9.10 | H56: 10.60 | I56: 11.00 | J56: 11.35 | K56: 10.65 | L56: 9.9 | M56: 8.34267
A57: 47 | B57: BALMLAWRIE | C57: 209.75 | D57: 209.55 | E57: 207.70 | F57: 205.65 | G57: 203.80 | H57: 211.60 | I57: 213.45 | J57: 215.50 | K57: 211.4 | L57: 207.5 | M57: 0.45439
A58: 48 | B58: BALRAMCHIN | C58: 64.35 | D58: 64.55 | E58: 63.20 | F58: 62.05 | G58: 60.70 | H58: 65.70 | I58: 67.05 | J58: 68.20 | K58: 65.9 | L58: 63.4 | M58: 28.37403
A59: 49 | B59: BANKBARODA | C59: 112.65 | D59: 113.32 | E59: 111.48 | F59: 110.32 | G59: 108.48 | H59: 114.48 | I59: 116.32 | J59: 117.48 | K59: 115.15 | L59: 112.15 | M59: 142.74242
A60: 50 | B60: BANKINDIA | C60: 87.5 | D60: 87.05 | E60: 85.95 | F60: 84.40 | G60: 83.30 | H60: 88.60 | I60: 89.70 | J60: 91.25 | K60: 88.15 | L60: 85.5 | M60: 67.14586
A61: 51 | B61: BASF | C61: 1948.3 | D61: 1923.10 | E61: 1872.20 | F61: 1796.10 | G61: 1745.20 | H61: 1999.20 | I61: 2050.10 | J61: 2126.20 | K61: 1974 | L61: 1847 | M61: 0.28488
A62: 52 | B62: BATAINDIA | C62: 859.4 | D62: 851.33 | E62: 838.07 | F62: 816.73 | G62: 803.47 | H62: 872.67 | I62: 885.93 | J62: 907.27 | K62: 864.6 | L62: 830 | M62: 15.75834
A63: 53 | B63: BBTC | C63: 1443.9 | D63: 1440.87 | E63: 1422.23 | F63: 1400.57 | G63: 1381.93 | H63: 1462.53 | I63: 1481.17 | J63: 1502.83 | K63: 1459.5 | L63: 1419.2 | M63: 1.21
A64: 54 | B64: BEL | C64: 108.65 | D64: 107.45 | E64: 105.60 | F64: 102.55 | G64: 100.70 | H64: 110.50 | I64: 112.35 | J64: 115.40 | K64: 109.3 | L64: 104.4 | M64: 64.235
A65: 55 | B65: BEML | C65: 809.3 | D65: 800.40 | E65: 783.90 | F65: 758.50 | G65: 742.00 | H65: 825.80 | I65: 842.30 | J65: 867.70 | K65: 816.9 | L65: 775 | M65: 20.88367
A66: 56 | B66: BERGEPAINT | C66: 281 | D66: 280.53 | E66: 276.07 | F66: 271.13 | G66: 266.67 | H66: 285.47 | I66: 289.93 | J66: 294.87 | K66: 285 | L66: 275.6 | M66: 6.47971
A67: 57 | B67: BFUTILITIE | C67: 312.65 | D67: 312.93 | E67: 308.37 | F67: 304.08 | G67: 299.52 | H67: 317.22 | I67: 321.78 | J67: 326.07 | K67: 317.5 | L67: 308.65 | M67: 2.89231
A68: 58 | B68: BGRENERGY | C68: 93.75 | D68: 93.60 | E68: 92.30 | F68: 90.85 | G68: 89.55 | H68: 95.05 | I68: 96.35 | J68: 97.80 | K68: 94.9 | L68: 92.15 | M68: 1.225
A69: 59 | B69: BHARATFIN | C69: 1156.5 | D69: 1164.65 | E69: 1145.00 | F69: 1133.50 | G69: 1113.85 | H69: 1176.15 | I69: 1195.80 | J69: 1207.30 | K69: 1184.3 | L69: 1153.15 | M69: 7.04534
A70: 60 | B70: BHARATFORG | C70: 612.7 | D70: 610.30 | E70: 604.90 | F70: 597.10 | G70: 591.70 | H70: 618.10 | I70: 623.50 | J70: 631.30 | K70: 615.7 | L70: 602.5 | M70: 6.97986
A71: 61 | B71: BHARTIARTL | C71: 381.95 | D71: 380.18 | E71: 377.07 | F71: 372.18 | G71: 369.07 | H71: 385.07 | I71: 388.18 | J71: 393.07 | K71: 383.3 | L71: 375.3 | M71: 34.43146
A72: 62 | B72: BHEL | C72: 71.75 | D72: 71.55 | E72: 70.75 | F72: 69.75 | G72: 68.95 | H72: 72.55 | I72: 73.35 | J72: 74.35 | K72: 72.35 | L72: 70.55 | M72: 103.74286
A73: 63 | B73: BHUSANSTL | C73: 29.15 | D73: 29.92 | E73: 28.13 | F73: 27.12 | G73: 25.33 | H73: 30.93 | I73: 32.72 | J73: 33.73 | K73: 31.7 | L73: 28.9 | M73: 27.06023
A74: 64 | B74: BIOCON | C74: 619.55 | D74: 615.27 | E74: 608.63 | F74: 597.72 | G74: 591.08 | H74: 626.18 | I74: 632.82 | J74: 643.73 | K74: 621.9 | L74: 604.35 | M74: 16.80332
A75: 65 | B75: BIRLACORPN | C75: 724.85 | D75: 722.60 | E75: 717.20 | F75: 709.55 | G75: 704.15 | H75: 730.25 | I75: 735.65 | J75: 743.30 | K75: 728 | L75: 714.95 | M75: 1.254
A76: 66 | B76: BLISSGVS | C76: 168.35 | D76: 169.27 | E76: 166.08 | F76: 163.82 | G76: 160.63 | H76: 171.53 | I76: 174.72 | J76: 176.98 | K76: 172.45 | L76: 167 | M76: 1.09809
A77: 67 | B77: BLUEDART | C77: 3659.2 | D77: 3626.08 | E77: 3558.17 | F77: 3457.13 | G77: 3389.22 | H77: 3727.12 | I77: 3795.03 | J77: 3896.07 | K77: 3694 | L77: 3525.05 | M77: 0.04679
A78: 68 | B78: BLUESTARCO | C78: 642.25 | D78: 642.37 | E78: 636.98 | F78: 631.72 | G78: 626.33 | H78: 647.63 | I78: 653.02 | J78: 658.28 | K78: 647.75 | L78: 637.1 | M78: 0.16171
A79: 69 | B79: BOMDYEING | C79: 220.5 | D79: 219.93 | E79: 217.57 | F79: 214.63 | G79: 212.27 | H79: 222.87 | I79: 225.23 | J79: 228.17 | K79: 222.3 | L79: 217 | M79: 6.27065
A80: 70 | B80: BOSCHLTD | C80: 17509.95 | D80: 17442.10 | E80: 17319.85 | F80: 17129.75 | G80: 17007.50 | H80: 17632.20 | I80: 17754.45 | J80: 17944.55 | K80: 17564.35 | L80: 17252 | M80: 0.18972
A81: 71 | B81: BPCL | C81: 373.3 | D81: 371.35 | E81: 363.80 | F81: 354.30 | G81: 346.75 | H81: 380.85 | I81: 388.40 | J81: 397.90 | K81: 378.9 | L81: 361.85 | M81: 69.23201
A82: 72 | B82: BRFL | C82: 24.4 | D82: 24.40 | E82: 23.30 | F82: 22.20 | G82: 21.10 | H82: 25.50 | I82: 26.60 | J82: 27.70 | K82: 25.5 | L82: 23.3 | M82: 0.37166
A83: 73 | B83: BRIGADE | C83: 212.15 | D83: 213.13 | E83: 209.07 | F83: 205.98 | G83: 201.92 | H83: 216.22 | I83: 220.28 | J83: 223.37 | K83: 217.2 | L83: 210.05 | M83: 0.12388
A84: 74 | B84: BRITANNIA | C84: 6213.75 | D84: 6194.67 | E84: 6131.38 | F84: 6049.02 | G84: 5985.73 | H84: 6277.03 | I84: 6340.32 | J84: 6422.68 | K84: 6257.95 | L84: 6112.3 | M84: 1.57611
A85: 75 | B85: BSE | C85: 839.75 | D85: 842.87 | E85: 833.73 | F85: 827.72 | G85: 818.58 | H85: 848.88 | I85: 858.02 | J85: 864.03 | K85: 852 | L85: 836.85 | M85: 1.25082
A86: 77 | B86: CADILAHC | C86: 377.4 | D86: 378.07 | E86: 371.63 | F86: 365.87 | G86: 359.43 | H86: 383.83 | I86: 390.27 | J86: 396.03 | K86: 384.5 | L86: 372.3 | M86: 13.95303
A87: 78 | B87: CANBK | C87: 251.55 | D87: 252.13 | E87: 248.47 | F87: 245.38 | G87: 241.72 | H87: 255.22 | I87: 258.88 | J87: 261.97 | K87: 255.8 | L87: 249.05 | M87: 52.69689
A88: 79 | B88: CANFINHOME | C88: 339.95 | D88: 340.13 | E88: 335.47 | F88: 330.98 | G88: 326.32 | H88: 344.62 | I88: 349.28 | J88: 353.77 | K88: 344.8 | L88: 335.65 | M88: 5.75705
A89: 80 | B89: CAPF | C89: 516.65 | D89: 521.50 | E89: 509.40 | F89: 502.15 | G89: 490.05 | H89: 528.75 | I89: 540.85 | J89: 548.10 | K89: 533.6 | L89: 514.25 | M89: 9.79096
A90: 81 | B90: CAPLIPOINT | C90: 428.1 | D90: 426.65 | E90: 418.55 | F90: 409.00 | G90: 400.90 | H90: 436.20 | I90: 444.30 | J90: 453.85 | K90: 434.75 | L90: 417.1 | M90: 0.19917
A91: 82 | B91: CARBORUNIV | C91: 316.9 | D91: 318.92 | E91: 311.83 | F91: 306.77 | G91: 299.68 | H91: 323.98 | I91: 331.07 | J91: 336.13 | K91: 326 | L91: 313.85 | M91: 0.35601
A92: 83 | B92: CARERATING | C92: 1254.15 | D92: 1252.23 | E92: 1228.47 | F92: 1202.78 | G92: 1179.02 | H92: 1277.92 | I92: 1301.68 | J92: 1327.37 | K92: 1276 | L92: 1226.55 | M92: 1.15065
A93: 84 | B93: CASTROLIND | C93: 163.7 | D93: 164.00 | E93: 160.75 | F93: 157.80 | G93: 154.55 | H93: 166.95 | I93: 170.20 | J93: 173.15 | K93: 167.25 | L93: 161.05 | M93: 20.76372
A94: 85 | B94: CCL | C94: 270.15 | D94: 267.83 | E94: 260.82 | F94: 251.48 | G94: 244.47 | H94: 277.17 | I94: 284.18 | J94: 293.52 | K94: 274.85 | L94: 258.5 | M94: 0.31287
A95: 86 | B95: CDSL | C95: 280.25 | D95: 278.42 | E95: 274.83 | F95: 269.42 | G95: 265.83 | H95: 283.83 | I95: 287.42 | J95: 292.83 | K95: 282 | L95: 273 | M95: 1.53995
A96: 87 | B96: CEATLTD | C96: 1258.15 | D96: 1256.38 | E96: 1243.77 | F96: 1229.38 | G96: 1216.77 | H96: 1270.77 | I96: 1283.38 | J96: 1297.77 | K96: 1269 | L96: 1242 | M96: 4.52708
A97: 88 | B97: CENTRALBK | C97: 69.2 | D97: 69.05 | E97: 68.30 | F97: 67.40 | G97: 66.65 | H97: 69.95 | I97: 70.70 | J97: 71.60 | K97: 69.8 | L97: 68.15 | M97: 2.12442
A98: 89 | B98: CENTURYPLY | C98: 251.5 | D98: 253.92 | E98: 247.83 | F98: 244.17 | G98: 238.08 | H98: 257.58 | I98: 263.67 | J98: 267.33 | K98: 260 | L98: 250.25 | M98: 1.59633
A99: 90 | B99: CENTURYTEX | C99: 888.7 | D99: 892.85 | E99: 879.20 | F99: 869.70 | G99: 856.05 | H99: 902.35 | I99: 916.00 | J99: 925.50 | K99: 906.5 | L99: 883.35 | M99: 6.65452
A100: 91 | B100: CERA | C100: 2779.5 | D100: 2783.35 | E100: 2747.65 | F100: 2715.80 | G100: 2680.10 | H100: 2815.20 | I100: 2850.90 | J100: 2882.75 | K100: 2819.05 | L100: 2751.5 | M100: 0.14909
A101: 92 | B101: CGPOWER | C101: 55.95 | D101: 55.93 | E101: 54.62 | F101: 53.28 | G101: 51.97 | H101: 57.27 | I101: 58.58 | J101: 59.92 | K101: 57.25 | L101: 54.6 | M101: 102.43783
A102: 93 | B102: CHAMBLFERT | C102: 154.65 | D102: 155.48 | E102: 152.17 | F102: 149.68 | G102: 146.37 | H102: 157.97 | I102: 161.28 | J102: 163.77 | K102: 158.8 | L102: 153 | M102: 1.39643
A103: 94 | B103: CHENNPETRO | C103: 304.05 | D103: 300.83 | E103: 293.67 | F103: 283.28 | G103: 276.12 | H103: 311.22 | I103: 318.38 | J103: 328.77 | K103: 308 | L103: 290.45 | M103: 4.77502
A104: 95 | B104: CHOLAFIN | C104: 1512.6 | D104: 1509.80 | E104: 1476.70 | F104: 1440.80 | G104: 1407.70 | H104: 1545.70 | I104: 1578.80 | J104: 1614.70 | K104: 1542.9 | L104: 1473.9 | M104: 4.14817
A105: 96 | B105: CIPLA | C105: 616.65 | D105: 612.15 | E105: 604.40 | F105: 592.15 | G105: 584.40 | H105: 624.40 | I105: 632.15 | J105: 644.40 | K105: 619.9 | L105: 599.9 | M105: 15.25608
A106: 97 | B106: COALINDIA | C106: 264.35 | D106: 262.85 | E106: 260.50 | F106: 256.65 | G106: 254.30 | H106: 266.70 | I106: 269.05 | J106: 272.90 | K106: 265.2 | L106: 259 | M106: 19.58214
A107: 98 | B107: COCHINSHIP | C107: 441.05 | D107: 440.83 | E107: 437.27 | F107: 433.48 | G107: 429.92 | H107: 444.62 | I107: 448.18 | J107: 451.97 | K107: 444.4 | L107: 437.05 | M107: 0.7267
A108: 99 | B108: COFFEEDAY | C108: 270.4 | D108: 270.67 | E108: 263.33 | F108: 256.27 | G108: 248.93 | H108: 277.73 | I108: 285.07 | J108: 292.13 | K108: 278 | L108: 263.6 | M108: 1.61432
A109: 100 | B109: COLPAL | C109: 1184.85 | D109: 1175.75 | E109: 1163.60 | F109: 1142.35 | G109: 1130.20 | H109: 1197.00 | I109: 1209.15 | J109: 1230.40 | K109: 1187.9 | L109: 1154.5 | M109: 2.60757
A110: 101 | B110: CONCOR | C110: 652.25 | D110: 639.27 | E110: 620.98 | F110: 589.72 | G110: 571.43 | H110: 670.53 | I110: 688.82 | J110: 720.08 | K110: 657.55 | L110: 608 | M110: 13.47255
A111: 102 | B111: COROMANDEL | C111: 393.6 | D111: 392.73 | E111: 387.07 | F111: 380.53 | G111: 374.87 | H111: 399.27 | I111: 404.93 | J111: 411.47 | K111: 398.4 | L111: 386.2 | M111: 1.37024
A112: 103 | B112: COX&KINGS | C112: 209.45 | D112: 208.22 | E112: 204.58 | F112: 199.72 | G112: 196.08 | H112: 213.08 | I112: 216.72 | J112: 221.58 | K112: 211.85 | L112: 203.35 | M112: 0.60944
A113: 104 | B113: CRISIL | C113: 1799.6 | D113: 1792.53 | E113: 1780.07 | F113: 1760.53 | G113: 1748.07 | H113: 1812.07 | I113: 1824.53 | J113: 1844.07 | K113: 1805 | L113: 1773 | M113: 0.01553
A114: 105 | B114: CROMPTON | C114: 226.2 | D114: 224.73 | E114: 220.57 | F114: 214.93 | G114: 210.77 | H114: 230.37 | I114: 234.53 | J114: 240.17 | K114: 228.9 | L114: 219.1 | M114: 4.00902
A115: 106 | B115: CUB | C115: 184.7 | D115: 185.00 | E115: 183.20 | F115: 181.70 | G115: 179.90 | H115: 186.50 | I115: 188.30 | J115: 189.80 | K115: 186.8 | L115: 183.5 | M115: 6.13871
A116: 107 | B116: CUMMINSIND | C116: 647.65 | D116: 647.08 | E116: 636.67 | F116: 625.68 | G116: 615.27 | H116: 658.07 | I116: 668.48 | J116: 679.47 | K116: 657.5 | L116: 636.1 | M116: 3.66363
A117: 108 | B117: CYIENT | C117: 766.5 | D117: 761.72 | E117: 750.43 | F117: 734.37 | G117: 723.08 | H117: 777.78 | I117: 789.07 | J117: 805.13 | K117: 773 | L117: 745.65 | M117: 3.36062
A118: 109 | B118: DABUR | C118: 391.45 | D118: 390.28 | E118: 387.67 | F118: 383.88 | G118: 381.27 | H118: 394.07 | I118: 396.68 | J118: 400.47 | K118: 392.9 | L118: 386.5 | M118: 15.51244
A119: 110 | B119: DBCORP | C119: 257.6 | D119: 259.00 | E119: 252.10 | F119: 246.60 | G119: 239.70 | H119: 264.50 | I119: 271.40 | J119: 276.90 | K119: 265.9 | L119: 253.5 | M119: 1.19502
A120: 111 | B120: DBL | C120: 664.05 | D120: 671.03 | E120: 657.07 | F120: 650.08 | G120: 636.12 | H120: 678.02 | I120: 691.98 | J120: 698.97 | K120: 685 | L120: 664.05 | M120: 8.46886
A121: 112 | B121: DBREALTY | C121: 41.9 | D121: 41.30 | E121: 39.60 | F121: 37.30 | G121: 35.60 | H121: 43.60 | I121: 45.30 | J121: 47.60 | K121: 43 | L121: 39 | M121: 3.36582
A122: 113 | B122: DCAL | C122: 261.7 | D122: 263.08 | E122: 258.62 | F122: 255.53 | G122: 251.07 | H122: 266.17 | I122: 270.63 | J122: 273.72 | K122: 267.55 | L122: 260 | M122: 1.54834
A123: 114 | B123: DCBBANK | C123: 164.55 | D123: 164.30 | E123: 162.35 | F123: 160.15 | G123: 158.20 | H123: 166.50 | I123: 168.45 | J123: 170.65 | K123: 166.25 | L123: 162.1 | M123: 12.98695
A124: 115 | B124: DCMSHRIRAM | C124: 296.15 | D124: 292.03 | E124: 285.07 | F124: 273.98 | G124: 267.02 | H124: 303.12 | I124: 310.08 | J124: 321.17 | K124: 299 | L124: 280.95 | M124: 2.22804
A125: 116 | B125: DEEPAKFERT | C125: 267.75 | D125: 266.40 | E125: 261.80 | F125: 255.85 | G125: 251.25 | H125: 272.35 | I125: 276.95 | J125: 282.90 | K125: 271 | L125: 260.45 | M125: 1.18824
A126: 117 | B126: DELTACORP | C126: 217.05 | D126: 215.75 | E126: 212.30 | F126: 207.55 | G126: 204.10 | H126: 220.50 | I126: 223.95 | J126: 228.70 | K126: 219.2 | L126: 211 | M126: 15.5312
A127: 118 | B127: DEN | C127: 80.75 | D127: 81.82 | E127: 79.03 | F127: 77.32 | G127: 74.53 | H127: 83.53 | I127: 86.32 | J127: 88.03 | K127: 84.6 | L127: 80.1 | M127: 1.10385
A128: 119 | B128: DENABANK | C128: 15 | D128: 15.10 | E128: 14.80 | F128: 14.60 | G128: 14.30 | H128: 15.30 | I128: 15.60 | J128: 15.80 | K128: 15.4 | L128: 14.9 | M128: 10.04832
A129: 120 | B129: DHFL | C129: 637.55 | D129: 640.02 | E129: 632.53 | F129: 627.52 | G129: 620.03 | H129: 645.03 | I129: 652.52 | J129: 657.53 | K129: 647.5 | L129: 635 | M129: 84.68463
A130: 121 | B130: DISHTV | C130: 71.8 | D130: 71.57 | E130: 71.13 | F130: 70.47 | G130: 70.03 | H130: 72.23 | I130: 72.67 | J130: 73.33 | K130: 72 | L130: 70.9 | M130: 53.48981
A131: 122 | B131: DIVISLAB | C131: 1038.6 | D131: 1028.03 | E131: 1013.57 | F131: 988.53 | G131: 974.07 | H131: 1053.07 | I131: 1067.53 | J131: 1092.57 | K131: 1042.5 | L131: 1003 | M131: 3.74782
A132: 123 | B132: DIXON | C132: 2930.05 | D132: 2913.02 | E132: 2877.03 | F132: 2824.02 | G132: 2788.03 | H132: 2966.03 | I132: 3002.02 | J132: 3055.03 | K132: 2949 | L132: 2860 | M132: 0.07158
A133: 124 | B133: DLF | C133: 188.8 | D133: 188.70 | E133: 186.35 | F133: 183.90 | G133: 181.55 | H133: 191.15 | I133: 193.50 | J133: 195.95 | K133: 191.05 | L133: 186.25 | M133: 42.02492
A134: 125 | B134: DMART | C134: 1485.4 | D134: 1473.13 | E134: 1450.87 | F134: 1416.33 | G134: 1394.07 | H134: 1507.67 | I134: 1529.93 | J134: 1564.47 | K134: 1495.4 | L134: 1438.6 | M134: 6.12439
A135: 126 | B135: DREDGECORP | C135: 506.9 | D135: 504.13 | E135: 490.87 | F135: 474.83 | G135: 461.57 | H135: 520.17 | I135: 533.43 | J135: 549.47 | K135: 517.4 | L135: 488.1 | M135: 3.55616
A136: 127 | B136: DRREDDY | C136: 2235.05 | D136: 2247.35 | E136: 2210.70 | F136: 2186.35 | G136: 2149.70 | H136: 2271.70 | I136: 2308.35 | J136: 2332.70 | K136: 2284 | L136: 2223 | M136: 8.98423
A137: 128 | B137: ECLERX | C137: 1300.1 | D137: 1293.17 | E137: 1271.33 | F137: 1242.57 | G137: 1220.73 | H137: 1321.93 | I137: 1343.77 | J137: 1372.53 | K137: 1315 | L137: 1264.4 | M137: 0.22698
A138: 129 | B138: EDELWEISS | C138: 294.5 | D138: 289.13 | E138: 281.37 | F138: 268.23 | G138: 260.47 | H138: 302.27 | I138: 310.03 | J138: 323.17 | K138: 296.9 | L138: 276 | M138: 27.69109
A139: 130 | B139: EICHERMOT | C139: 28590.45 | D139: 28593.08 | E139: 28397.37 | F139: 28204.28 | G139: 28008.57 | H139: 28786.17 | I139: 28981.88 | J139: 29174.97 | K139: 28788.8 | L139: 28400 | M139: 0.81517
A140: 131 | B140: EIDPARRY | C140: 240.85 | D140: 233.58 | E140: 222.22 | F140: 203.58 | G140: 192.22 | H140: 252.22 | I140: 263.58 | J140: 282.22 | K140: 244.95 | L140: 214.95 | M140: 7.41609
A141: 132 | B141: EIHOTEL | C141: 169.8 | D141: 164.85 | E141: 158.70 | F141: 147.60 | G141: 141.45 | H141: 175.95 | I141: 182.10 | J141: 193.20 | K141: 171 | L141: 153.75 | M141: 2.89928
A142: 133 | B142: EMAMILTD | C142: 529.15 | D142: 522.72 | E142: 510.43 | F142: 491.72 | G142: 479.43 | H142: 541.43 | I142: 553.72 | J142: 572.43 | K142: 535 | L142: 504 | M142: 4.54663
A143: 134 | B143: ENDURANCE | C143: 1249.2 | D143: 1243.70 | E143: 1224.40 | F143: 1199.60 | G143: 1180.30 | H143: 1268.50 | I143: 1287.80 | J143: 1312.60 | K143: 1263 | L143: 1218.9 | M143: 0.33401
A144: 135 | B144: ENGINERSIN | C144: 124.2 | D144: 123.50 | E144: 122.25 | F144: 120.30 | G144: 119.05 | H144: 125.45 | I144: 126.70 | J144: 128.65 | K144: 124.75 | L144: 121.55 | M144: 10.56021
A145: 136 | B145: EQUITAS | C145: 135.85 | D145: 135.85 | E145: 134.35 | F145: 132.85 | G145: 131.35 | H145: 137.35 | I145: 138.85 | J145: 140.35 | K145: 137.35 | L145: 134.35 | M145: 11.91459
A146: 137 | B146: ERIS | C146: 685.05 | D146: 686.32 | E146: 672.68 | F146: 660.32 | G146: 646.68 | H146: 698.68 | I146: 712.32 | J146: 724.68 | K146: 699.95 | L146: 673.95 | M146: 1.56069
A147: 138 | B147: EROSMEDIA | C147: 117.95 | D147: 118.22 | E147: 116.43 | F147: 114.92 | G147: 113.13 | H147: 119.73 | I147: 121.52 | J147: 123.03 | K147: 120 | L147: 116.7 | M147: 3.95885
A148: 139 | B148: ESCORTS | C148: 871.65 | D148: 860.25 | E148: 846.50 | F148: 821.35 | G148: 807.60 | H148: 885.40 | I148: 899.15 | J148: 924.30 | K148: 874 | L148: 835.1 | M148: 12.49909
A149: 140 | B149: EVEREADY | C149: 224.95 | D149: 226.67 | E149: 221.53 | F149: 218.12 | G149: 212.98 | H149: 230.08 | I149: 235.22 | J149: 238.63 | K149: 231.8 | L149: 223.25 | M149: 0.95437
A150: 141 | B150: EXIDEIND | C150: 258.3 | D150: 255.00 | E150: 251.00 | F150: 243.70 | G150: 239.70 | H150: 262.30 | I150: 266.30 | J150: 273.60 | K150: 259 | L150: 247.7 | M150: 16.88686
A151: 142 | B151: FCONSUMER | C151: 50 | D151: 49.65 | E151: 48.90 | F151: 47.80 | G151: 47.05 | H151: 50.75 | I151: 51.50 | J151: 52.60 | K151: 50.4 | L151: 48.55 | M151: 64.95476
A152: 143 | B152: FEDERALBNK | C152: 81.85 | D152: 81.03 | E152: 79.87 | F152: 77.88 | G152: 76.72 | H152: 83.02 | I152: 84.18 | J152: 86.17 | K152: 82.2 | L152: 79.05 | M152: 88.10557
A153: 144 | B153: FINCABLES | C153: 581.45 | D153: 578.85 | E153: 567.70 | F153: 553.95 | G153: 542.80 | H153: 592.60 | I153: 603.75 | J153: 617.50 | K153: 590 | L153: 565.1 | M153: 0.48987
A154: 145 | B154: FINPIPE | C154: 577.85 | D154: 574.95 | E154: 566.90 | F154: 555.95 | G154: 547.90 | H154: 585.90 | I154: 593.95 | J154: 604.90 | K154: 583 | L154: 564 | M154: 2.56743
A155: 146 | B155: FLFL | C155: 428.8 | D155: 420.70 | E155: 411.15 | F155: 393.50 | G155: 383.95 | H155: 438.35 | I155: 447.90 | J155: 465.55 | K155: 430.25 | L155: 403.05 | M155: 0.38297
A156: 147 | B156: FSL | C156: 70.5 | D156: 70.05 | E156: 68.95 | F156: 67.40 | G156: 66.30 | H156: 71.60 | I156: 72.70 | J156: 74.25 | K156: 71.15 | L156: 68.5 | M156: 44.47265
A157: 148 | B157: GAIL | C157: 340.25 | D157: 336.57 | E157: 324.33 | F157: 308.42 | G157: 296.18 | H157: 352.48 | I157: 364.72 | J157: 380.63 | K157: 348.8 | L157: 320.65 | M157: 75.93016
A158: 149 | B158: GATI | C158: 76.5 | D158: 76.08 | E158: 74.47 | F158: 72.43 | G158: 70.82 | H158: 78.12 | I158: 79.73 | J158: 81.77 | K158: 77.7 | L158: 74.05 | M158: 10.84297
A159: 150 | B159: GDL | C159: 177.8 | D159: 177.18 | E159: 175.87 | F159: 173.93 | G159: 172.62 | H159: 179.12 | I159: 180.43 | J159: 182.37 | K159: 178.5 | L159: 175.25 | M159: 0.47019
A160: 151 | B160: GEPIL | C160: 796.65 | D160: 800.53 | E160: 791.12 | F160: 785.58 | G160: 776.17 | H160: 806.07 | I160: 815.48 | J160: 821.02 | K160: 809.95 | L160: 795 | M160: 0.08558
A161: 152 | B161: GESHIP | C161: 281.9 | D161: 280.95 | E161: 278.90 | F161: 275.90 | G161: 273.85 | H161: 283.95 | I161: 286.00 | J161: 289.00 | K161: 283 | L161: 277.95 | M161: 0.36869
A162: 153 | B162: GET&D | C162: 290.1 | D162: 285.95 | E162: 279.30 | F162: 268.50 | G162: 261.85 | H162: 296.75 | I162: 303.40 | J162: 314.20 | K162: 292.6 | L162: 275.15 | M162: 0.67864
A163: 154 | B163: GHCL | C163: 273.6 | D163: 271.63 | E163: 268.97 | F163: 264.33 | G163: 261.67 | H163: 276.27 | I163: 278.93 | J163: 283.57 | K163: 274.3 | L163: 267 | M163: 0.96206
A164: 155 | B164: GICRE | C164: 732.85 | D164: 729.93 | E164: 720.97 | F164: 709.08 | G164: 700.12 | H164: 741.82 | I164: 750.78 | J164: 762.67 | K164: 738.9 | L164: 718.05 | M164: 0.81372
A165: 156 | B165: GILLETTE | C165: 6420.05 | D165: 6396.35 | E165: 6367.70 | F165: 6315.35 | G165: 6286.70 | H165: 6448.70 | I165: 6477.35 | J165: 6529.70 | K165: 6425 | L165: 6344 | M165: 0.0426
A166: 157 | B166: GLAXO | C166: 2796.45 | D166: 2797.08 | E166: 2769.37 | F166: 2742.28 | G166: 2714.57 | H166: 2824.17 | I166: 2851.88 | J166: 2878.97 | K166: 2824.8 | L166: 2770 | M166: 0.13465
A167: 158 | B167: GLENMARK | C167: 583.05 | D167: 581.02 | E167: 577.03 | F167: 571.02 | G167: 567.03 | H167: 587.03 | I167: 591.02 | J167: 597.03 | K167: 585 | L167: 575 | M167: 8.34893
A168: 159 | B168: GMDCLTD | C168: 106.65 | D168: 105.72 | E168: 103.98 | F168: 101.32 | G168: 99.58 | H168: 108.38 | I168: 110.12 | J168: 112.78 | K168: 107.45 | L168: 103.05 | M168: 1.09866
A169: 160 | B169: GMRINFRA | C169: 15.3 | D169: 15.38 | E169: 15.07 | F169: 14.83 | G169: 14.52 | H169: 15.62 | I169: 15.93 | J169: 16.17 | K169: 15.7 | L169: 15.15 | M169: 282.40543
A170: 161 | B170: GNFC | C170: 402.35 | D170: 400.42 | E170: 396.93 | F170: 391.52 | G170: 388.03 | H170: 405.83 | I170: 409.32 | J170: 414.73 | K170: 403.9 | L170: 395 | M170: 6.44416
A171: 162 | B171: GODFRYPHLP | C171: 726.25 | D171: 726.67 | E171: 716.18 | F171: 706.12 | G171: 695.63 | H171: 736.73 | I171: 747.22 | J171: 757.28 | K171: 737.15 | L171: 716.6 | M171: 0.83215
A172: 163 | B172: GODREJAGRO | C172: 619.35 | D172: 619.80 | E172: 614.60 | F172: 609.85 | G172: 604.65 | H172: 624.55 | I172: 629.75 | J172: 634.50 | K172: 625 | L172: 615.05 | M172: 0.5419
A173: 164 | B173: GODREJCP | C173: 1225.7 | D173: 1224.20 | E173: 1211.55 | F173: 1197.40 | G173: 1184.75 | H173: 1238.35 | I173: 1251.00 | J173: 1265.15 | K173: 1236.85 | L173: 1210.05 | M173: 6.74286
A174: 165 | B174: GODREJIND | C174: 623.7 | D174: 616.42 | E174: 602.83 | F174: 581.97 | G174: 568.38 | H174: 637.28 | I174: 650.87 | J174: 671.73 | K174: 630 | L174: 595.55 | M174: 4.71079
A175: 166 | B175: GODREJPROP | C175: 719.05 | D175: 722.58 | E175: 710.47 | F175: 701.88 | G175: 689.77 | H175: 731.17 | I175: 743.28 | J175: 751.87 | K175: 734.7 | L175: 714 | M175: 0.57681
A176: 167 | B176: GPPL | C176: 105.5 | D176: 105.83 | E176: 104.67 | F176: 103.83 | G176: 102.67 | H176: 106.67 | I176: 107.83 | J176: 108.67 | K176: 107 | L176: 105 | M176: 2.28808
A177: 168 | B177: GRANULES | C177: 80.55 | D177: 79.98 | E177: 78.87 | F177: 77.18 | G177: 76.07 | H177: 81.67 | I177: 82.78 | J177: 84.47 | K177: 81.1 | L177: 78.3 | M177: 23.80367
A178: 169 | B178: GRAPHITE | C178: 840.1 | D178: 835.07 | E178: 830.03 | F178: 819.97 | G178: 814.93 | H178: 845.13 | I178: 850.17 | J178: 860.23 | K178: 840.1 | L178: 825 | M178: 9.22176
A179: 170 | B179: GRASIM | C179: 1006.85 | D179: 1006.35 | E179: 997.70 | F179: 988.55 | G179: 979.90 | H179: 1015.50 | I179: 1024.15 | J179: 1033.30 | K179: 1015 | L179: 997.2 | M179: 5.94871
A180: 171 | B180: GREAVESCOT | C180: 144.65 | D180: 144.07 | E180: 141.68 | F180: 138.72 | G180: 136.33 | H180: 147.03 | I180: 149.42 | J180: 152.38 | K180: 146.45 | L180: 141.1 | M180: 27.82537
A181: 172 | B181: GREENPLY | C181: 233.3 | D181: 234.17 | E181: 230.48 | F181: 227.67 | G181: 223.98 | H181: 236.98 | I181: 240.67 | J181: 243.48 | K181: 237.85 | L181: 231.35 | M181: 0.80318
A182: 173 | B182: GRUH | C182: 304.15 | D182: 305.58 | E182: 301.67 | F182: 299.18 | G182: 295.27 | H182: 308.07 | I182: 311.98 | J182: 314.47 | K182: 309.5 | L182: 303.1 | M182: 6.19099
A183: 174 | B183: GSFC | C183: 104.55 | D183: 103.32 | E183: 101.63 | F183: 98.72 | G183: 97.03 | H183: 106.23 | I183: 107.92 | J183: 110.83 | K183: 105 | L183: 100.4 | M183: 17.53924
A184: 175 | B184: GSKCONS | C184: 6504.8 | D184: 6468.52 | E184: 6312.03 | F184: 6119.27 | G184: 5962.78 | H184: 6661.28 | I184: 6817.77 | J184: 7010.53 | K184: 6625 | L184: 6275.75 | M184: 0.3122
A185: 176 | B185: GSPL | C185: 179.95 | D185: 179.92 | E185: 177.03 | F185: 174.12 | G185: 171.23 | H185: 182.83 | I185: 185.72 | J185: 188.63 | K185: 182.8 | L185: 177 | M185: 6.54178
A186: 177 | B186: GUJALKALI | C186: 531.65 | D186: 535.22 | E186: 522.68 | F186: 513.72 | G186: 501.18 | H186: 544.18 | I186: 556.72 | J186: 565.68 | K186: 547.75 | L186: 526.25 | M186: 0.682
A187: 178 | B187: GUJFLUORO | C187: 739.75 | D187: 739.88 | E187: 734.77 | F187: 729.78 | G187: 724.67 | H187: 744.87 | I187: 749.98 | J187: 754.97 | K187: 745 | L187: 734.9 | M187: 0.60553
A188: 179 | B188: GUJGASLTD | C188: 729.1 | D188: 736.37 | E188: 704.43 | F188: 679.77 | G188: 647.83 | H188: 761.03 | I188: 792.97 | J188: 817.63 | K188: 768.3 | L188: 711.7 | M188: 0.9442
A189: 180 | B189: GULFOILLUB | C189: 852.1 | D189: 854.70 | E189: 845.40 | F189: 838.70 | G189: 829.40 | H189: 861.40 | I189: 870.70 | J189: 877.40 | K189: 864 | L189: 848 | M189: 0.05516
A190: 181 | B190: GVKPIL | C190: 9.5 | D190: 9.25 | E190: 9.00 | F190: 8.50 | G190: 8.25 | H190: 9.75 | I190: 10.00 | J190: 10.50 | K190: 9.5 | L190: 8.75 | M190: 24.70851
A191: 182 | B191: HATHWAY | C191: 24.65 | D191: 25.05 | E191: 24.10 | F191: 23.55 | G191: 22.60 | H191: 25.60 | I191: 26.55 | J191: 27.10 | K191: 26 | L191: 24.5 | M191: 7.70185
A192: 183 | B192: HATSUN | C192: 616.15 | D192: 610.20 | E192: 585.95 | F192: 555.75 | G192: 531.50 | H192: 640.40 | I192: 664.65 | J192: 694.85 | K192: 634.45 | L192: 580 | M192: 0.36432
A193: 184 | B193: HAVELLS | C193: 543.35 | D193: 537.38 | E193: 529.07 | F193: 514.78 | G193: 506.47 | H193: 551.67 | I193: 559.98 | J193: 574.27 | K193: 545.7 | L193: 523.1 | M193: 14.15809
A194: 185 | B194: HCC | C194: 12.25 | D194: 11.95 | E194: 11.15 | F194: 10.05 | G194: 9.25 | H194: 13.05 | I194: 13.85 | J194: 14.95 | K194: 12.75 | L194: 10.85 | M194: 274.76938
A195: 186 | B195: HCL-INSYS | C195: 35.25 | D195: 34.85 | E195: 33.90 | F195: 32.55 | G195: 31.60 | H195: 36.20 | I195: 37.15 | J195: 38.50 | K195: 35.8 | L195: 33.5 | M195: 18.48011
A196: 187 | B196: HCLTECH | C196: 926.25 | D196: 922.78 | E196: 916.82 | F196: 907.38 | G196: 901.42 | H196: 932.22 | I196: 938.18 | J196: 947.62 | K196: 928.75 | L196: 913.35 | M196: 30.29777
A197: 188 | B197: HDFC | C197: 1908.1 | D197: 1898.03 | E197: 1883.07 | F197: 1858.03 | G197: 1843.07 | H197: 1923.07 | I197: 1938.03 | J197: 1963.07 | K197: 1913 | L197: 1873 | M197: 40.22628
A198: 189 | B198: HDFCBANK | C198: 2108.45 | D198: 2117.85 | E198: 2095.70 | F198: 2082.95 | G198: 2060.80 | H198: 2130.60 | I198: 2152.75 | J198: 2165.50 | K198: 2140 | L198: 2105.1 | M198: 48.6453
A199: 190 | B199: HDIL | C199: 20.75 | D199: 20.67 | E199: 20.18 | F199: 19.62 | G199: 19.13 | H199: 21.23 | I199: 21.72 | J199: 22.28 | K199: 21.15 | L199: 20.1 | M199: 45.65369
A200: 191 | B200: HEG | C200: 3310.5 | D200: 3287.00 | E200: 3263.50 | F200: 3216.50 | G200: 3193.00 | H200: 3334.00 | I200: 3357.50 | J200: 3404.50 | K200: 3310.5 | L200: 3240 | M200: 1.44523
A201: 192 | B201: HEIDELBERG | C201: 138.8 | D201: 137.65 | E201: 135.50 | F201: 132.20 | G201: 130.05 | H201: 140.95 | I201: 143.10 | J201: 146.40 | K201: 139.8 | L201: 134.35 | M201: 0.63259
A202: 193 | B202: HERITGFOOD | C202: 610.4 | D202: 618.07 | E202: 594.33 | F202: 578.27 | G202: 554.53 | H202: 634.13 | I202: 657.87 | J202: 673.93 | K202: 641.8 | L202: 602 | M202: 0.25417
A203: 194 | B203: HEROMOTOCO | C203: 3473.5 | D203: 3488.27 | E203: 3441.58 | F203: 3409.67 | G203: 3362.98 | H203: 3520.18 | I203: 3566.87 | J203: 3598.78 | K203: 3534.95 | L203: 3456.35 | M203: 3.98443
A204: 195 | B204: HEXAWARE | C204: 458.15 | D204: 455.10 | E204: 448.55 | F204: 438.95 | G204: 432.40 | H204: 464.70 | I204: 471.25 | J204: 480.85 | K204: 461.65 | L204: 445.5 | M204: 12.06377
A205: 196 | B205: HFCL | C205: 28.95 | D205: 28.63 | E205: 28.02 | F205: 27.08 | G205: 26.47 | H205: 29.57 | I205: 30.18 | J205: 31.12 | K205: 29.25 | L205: 27.7 | M205: 141.92096
A206: 197 | B206: HIMATSEIDE | C206: 287.15 | D206: 286.87 | E206: 283.28 | F206: 279.42 | G206: 275.83 | H206: 290.73 | I206: 294.32 | J206: 298.18 | K206: 290.45 | L206: 283 | M206: 0.92521
... 305 more rows

Sheet Bulk Deals
E6: Back To Main Page
A7: Subject : | B7: BULK DEAL | D7: =Main!B10 -> 2018-07-02
A9: Date | B9: Scrip code | C9: Scrip Name | D9: Client Name | E9: Buy / Sell | F9: Quantity Traded | G9: Trade Price / Wt.Avg.trade price | H9: Exchange
A10: 2018-06-29 | B10: 538812 | C10: AANCHALISP | D10: NEWEDGE VINIMAY PRIVATE LIMITED | E10: BUY | F10: 127,882 | G10: 13.1 | H10: BSE
A11: 2018-06-29 | B11: 538812 | C11: AANCHALISP | D11: ANUPAMA RAJESH KEDIA | E11: SELL | F11: 126,782 | G11: 13.1 | H11: BSE
A12: 2018-06-29 | B12: 532921 | C12: ADANIPORTS | D12: S B ADANI FAMILY TRUST | E12: SELL | F12: 27,052,618 | G12: 369.65 | H12: BSE
A13: 2018-06-29 | B13: 532921 | C13: ADANIPORTS | D13: CAMAS INVESTMENTS PTE LIMITED | E13: BUY | F13: 13,526,309 | G13: 369.65 | H13: BSE
A14: 2018-06-29 | B14: 532921 | C14: ADANIPORTS | D14: CAMAS INVESTMENTS PTE LTD | E14: BUY | F14: 13,526,309 | G14: 369.65 | H14: BSE
A15: 2018-06-29 | B15: 539042 | C15: AGIIL | D15: HARISH JAIN HUF | E15: SELL | F15: 51,442 | G15: 98.41 | H15: BSE
A16: 2018-06-29 | B16: 539042 | C16: AGIIL | D16: HAVELI INDIA LTD | E16: SELL | F16: 56,131 | G16: 97.51 | H16: BSE
A17: 2018-06-29 | B17: 530859 | C17: COSBOARD | D17: RUCHIKA JAIN | E17: SELL | F17: 26,000 | G17: 27.79 | H17: BSE
A18: 2018-06-29 | B18: 530859 | C18: COSBOARD | D18: RUCHIKA JAIN | E18: BUY | F18: 26,000 | G18: 25.42 | H18: BSE
A19: 2018-06-29 | B19: 530859 | C19: COSBOARD | D19: SAJJAN KUMAR BANSAL HUF | E19: SELL | F19: 28,000 | G19: 25.42 | H19: BSE
A20: 2018-06-29 | B20: 530859 | C20: COSBOARD | D20: SAJJAN KUMAR BANSAL HUF | E20: BUY | F20: 29,450 | G20: 27.82 | H20: BSE
A21: 2018-06-29 | B21: 500139 | C21: FEDDERELEC | D21: BP FINTRADE PRIVATE LIMITED | E21: SELL | F21: 250,982 | G21: 29.39 | H21: BSE
A22: 2018-06-29 | B22: 500139 | C22: FEDDERELEC | D22: BP FINTRADE PRIVATE LIMITED | E22: BUY | F22: 264,980 | G22: 28.86 | H22: BSE
A23: 2018-06-29 | B23: 539408 | C23: KUBERJI | D23: reeta rakesh tiwari | E23: BUY | F23: 25,000 | G23: 8.65 | H23: BSE
A24: 2018-06-29 | B24: 538962 | C24: MINDACORP | D24: WASATCH ADVISORS INC A/C WASATCH INTERNATIONAL OPP FUND | E24: BUY | F24: 2,103,361 | G24: 173.43 | H24: BSE
A25: 2018-06-29 | B25: 538962 | C25: MINDACORP | D25: K R HANDLOOM PRIVATE LIMITED | E25: SELL | F25: 3,032,321 | G25: 173.45 | H25: BSE
A26: 2018-06-29 | B26: 514330 | C26: OBRSESY | D26: HEMAL ARUNBHAI MEHTA | E26: BUY | F26: 45,000 | G26: 8.75 | H26: BSE
A27: 2018-06-29 | B27: 514330 | C27: OBRSESY | D27: CHETAN C JOSHI | E27: SELL | F27: 45,000 | G27: 8.75 | H27: BSE
A28: 2018-06-29 | B28: 531454 | C28: POLYLINK | D28: SANJEEV BUBNA (HUF) | E28: SELL | F28: 148,812 | G28: 15.9 | H28: BSE
A29: 2018-06-29 | B29: 531454 | C29: POLYLINK | D29: GYAN TRADERS LIMITED | E29: BUY | F29: 148,812 | G29: 15.9 | H29: BSE
A30: 2018-06-29 | B30: 531952 | C30: RIBATEX | D30: SITA RAM (HUF) | E30: BUY | F30: 55,650 | G30: 70.5 | H30: BSE
A31: 2018-06-29 | B31: 540821 | C31: SADHNA | D31: MAHENDER SINGH | E31: BUY | F31: 190,016 | G31: 23.5 | H31: BSE
A32: 2018-06-29 | B32: 540821 | C32: SADHNA | D32: DUSHYANT SHAH | E32: SELL | F32: 65,500 | G32: 23.5 | H32: BSE
A33: 2018-06-29 | B33: 540821 | C33: SADHNA | D33: JITENDRA KUMAR | E33: SELL | F33: 87,000 | G33: 23.5 | H33: BSE
A34: 2018-06-29 | B34: 541338 | C34: UHZAVERI | D34: MONOTYPE INDIA LIMITED | E34: BUY | F34: 126,000 | G34: 24.04 | H34: BSE
A35: 2018-06-29 | B35: 541338 | C35: UHZAVERI | D35: NNM SECURITIES PVT LTD | E35: SELL | F35: 63,000 | G35: 24.12 | H35: BSE
A36: 2018-06-29 | B36: 541338 | C36: UHZAVERI | D36: NNM SECURITIES PVT LTD | E36: BUY | F36: 3,000 | G36: 23 | H36: BSE
A37: 2018-06-29 | B37: 532646 | C37: UNIPLY | D37: FOUNDATION OUTSOURCING INDIA P | E37: BUY | F37: 1,297,242 | G37: 80.5 | H37: BSE
A38: 2018-06-29 | B38: 532646 | C38: UNIPLY | D38: KESHAV KANTAMNENI | E38: SELL | F38: 1,535,000 | G38: 80.44 | H38: BSE
A39: 2018-06-29 | B39: 533427 | C39: VMS | D39: SARVESH KUMAR GOEL | E39: BUY | F39: 100,000 | G39: 11.03 | H39: BSE
A40: 2018-06-29 | B40: 533427 | C40: VMS | D40: MONOTYPE INDIA LIMITED | E40: SELL | F40: 1,252,006 | G40: 11.03 | H40: BSE
A41: 2018-06-29 | B41: 533427 | C41: VMS | D41: MONOTYPE INDIA LIMITED | E41: SELL | F41: 787,809 | G41: 11.03 | H41: BSE
A42: 2018-06-29 | B42: 533427 | C42: VMS | D42: C UMAMAHESWARI | E42: BUY | F42: 400,000 | G42: 11.03 | H42: BSE
A43: 2018-06-29 | B43: 533427 | C43: VMS | D43: K CHANDRA PRAKASH | E43: BUY | F43: 373,000 | G43: 11.03 | H43: BSE
A44: 2018-06-29 | B44: 533427 | C44: VMS | D44: R CHANDRASEKAR | E44: BUY | F44: 727,000 | G44: 11.03 | H44: BSE
A45: 2018-06-29 | B45: 541445 | C45: WAA | D45: MONOTYPE INDIA LIMITED | E45: BUY | F45: 85,600 | G45: 71.3 | H45: BSE
A46: 2018-06-29 | B46: AMJLAND | C46: AMJ Land Holdings Limited | D46: ASHOK KUMAR BILGAIYAN | E46: BUY | F46: 438,134 | G46: 31.52 | H46: NSE
A47: 2018-06-29 | B47: BIGBLOC | C47: Bigbloc Construction Ltd | D47: RAJA RAMCHANDRA DALVI | E47: BUY | F47: 195,641 | G47: 138.15 | H47: NSE
A48: 2018-06-29 | B48: FEDDERELEC | C48: Fedders Elec & Eng Ltd. | D48: BP FINTRADE PRIVATE LIMITED | E48: BUY | F48: 602,508 | G48: 28.83 | H48: NSE
A49: 2018-06-29 | B49: FEDDERELEC | C49: Fedders Elec & Eng Ltd. | D49: SANJU DENNIS | E49: BUY | F49: 200,000 | G49: 29.03 | H49: NSE
A50: 2018-06-29 | B50: JETAIRWAYS | C50: Jet Airways (India) Ltd. | D50: SHAASTRA SECURITIES TRADING PRIVATE LIMITED | E50: BUY | F50: 628,441 | G50: 340.56 | H50: NSE
A51: 2018-06-29 | B51: KWALITY | C51: Kwality Limited | D51: BP FINTRADE PRIVATE LIMITED | E51: BUY | F51: 2,691,992 | G51: 21.29 | H51: NSE
A52: 2018-06-29 | B52: KWALITY | C52: Kwality Limited | D52: JMP SECURITIES PVT LTD | E52: BUY | F52: 1,259,075 | G52: 21.53 | H52: NSE
A53: 2018-06-29 | B53: KWALITY | C53: Kwality Limited | D53: KSHITIJ-PORTFOLIO-PVT.-LTD. | E53: BUY | F53: 1,556,409 | G53: 21.39 | H53: NSE
A54: 2018-06-29 | B54: KWALITY | C54: Kwality Limited | D54: MULTIPLIER S AND S ADV PVT LTD | E54: BUY | F54: 1,226,094 | G54: 22.14 | H54: NSE
A55: 2018-06-29 | B55: MAHINDCIE | C55: Mahindra CIE Automative L | D55: PARTICIPACIONES INTERNACIONALES AUTOMETAL DOS SOCIEDAD LIMI | E55: BUY | F55: 18,926,895 | G55: 255 | H55: NSE
A56: 2018-06-29 | B56: TALWGYM | C56: Talwalkars Lifestyles Ltd | D56: GURUKRUPA CAPITAL INVESTMENTS | E56: BUY | F56: 200,000 | G56: 149.87 | H56: NSE
A57: 2018-06-29 | B57: UNIPLY | C57: Uniply Industries Limited | D57: FOUNDATION OUTSOURCING INDIA P | E57: BUY | F57: 1,027,465 | G57: 81.1 | H57: NSE
A58: 2018-06-29 | B58: UTTAMSTL | C58: Uttam Galva Steels Limite | D58: RAJENDRA GANGARAM GODHAR | E58: BUY | F58: 217,660 | G58: 10.02 | H58: NSE
A59: 2018-06-29 | B59: AMJLAND | C59: AMJ Land Holdings Limited | D59: ASHOK KUMAR BILGAIYAN | E59: SELL | F59: 438,065 | G59: 31.29 | H59: NSE
A60: 2018-06-29 | B60: BIGBLOC | C60: Bigbloc Construction Ltd | D60: MADHU NARAYAN SABOO | E60: SELL | F60: 153,000 | G60: 138.6 | H60: NSE
A61: 2018-06-29 | B61: BIGBLOC | C61: Bigbloc Construction Ltd | D61: RAJA RAMCHANDRA DALVI | E61: SELL | F61: 112,167 | G61: 102.41 | H61: NSE
A62: 2018-06-29 | B62: CORDSCABLE | C62: Cords Cable Industries Li | D62: SAL REAL ESTATES (P) LTD | E62: SELL | F62: 90,000 | G62: 59.54 | H62: NSE
A63: 2018-06-29 | B63: FEDDERELEC | C63: Fedders Elec & Eng Ltd. | D63: BP FINTRADE PRIVATE LIMITED | E63: SELL | F63: 602,508 | G63: 28.96 | H63: NSE
A64: 2018-06-29 | B64: FEDDERELEC | C64: Fedders Elec & Eng Ltd. | D64: VRS CONSULTANCY SERVICES PRIVATE LIMITED | E64: SELL | F64: 300,000 | G64: 28.8 | H64: NSE
A65: 2018-06-29 | B65: JETAIRWAYS | C65: Jet Airways (India) Ltd. | D65: SHAASTRA SECURITIES TRADING PRIVATE LIMITED | E65: SELL | F65: 628,441 | G65: 340.8 | H65: NSE
A66: 2018-06-29 | B66: KWALITY | C66: Kwality Limited | D66: BP FINTRADE PRIVATE LIMITED | E66: SELL | F66: 2,691,987 | G66: 21.49 | H66: NSE
A67: 2018-06-29 | B67: KWALITY | C67: Kwality Limited | D67: JMP SECURITIES PVT LTD | E67: SELL | F67: 1,211,575 | G67: 21.41 | H67: NSE
A68: 2018-06-29 | B68: KWALITY | C68: Kwality Limited | D68: KSHITIJ-PORTFOLIO-PVT.-LTD. | E68: SELL | F68: 1,556,409 | G68: 21.73 | H68: NSE
A69: 2018-06-29 | B69: KWALITY | C69: Kwality Limited | D69: MULTIPLIER S AND S ADV PVT LTD | E69: SELL | F69: 1,178,352 | G69: 22.11 | H69: NSE
A70: 2018-06-29 | B70: MAHINDCIE | C70: Mahindra CIE Automative L | D70: MAHINDRA VEHICLE MANUFACTURERS LIMITED | E70: SELL | F70: 18,926,895 | G70: 255 | H70: NSE
A71: 2018-06-29 | B71: UNIPLY | C71: Uniply Industries Limited | D71: KANTAMNENI KESHAV | E71: SELL | F71: 1,027,465 | G71: 81.1 | H71: NSE
A72: 2018-06-29 | B72: UTTAMSTL | C72: Uttam Galva Steels Limite | D72: RAJENDRA GANGARAM GODHAR | E72: SELL | F72: 821,898 | G72: 9.69 | H72: NSE

Sheet Call Tracker (Equity & F&O)
M5: Back To Main Page
A6: Retail Research Technical Calls & Fundamental Performance Report for the month of June -2018
M7: =Main!B10 -> 2018-07-02
B8: Positional Call
A9: Sr.no | B9: Date | D9: Company | E9: Rec | F9: Rec Price | G9: Stop Loss*** | H9: Call Closed At | I9: Target | J9: Remark | K9: Profit / Loss per Share | L9: Gain / Loss % | M9: Status | N9: Closed Date | O9: NSE Closed Price
A10: 1 | B10: 2018-05-04 | D10: HCLTECH | E10: Buy | F10: 925 | G10: 890 | H10: 890 | I10: 980-990 | J10: Loss of Rs.35/- | K10: =H10-F10 -> -35.00 | L10: =K10/F10 -> -3.78% | M10: Unsuccessful | N10: 2018-06-05 | R10: H
A11: 2 | B11: 2018-05-25 | D11: MARUTI | E11: Buy | F11: 8440 | G11: 8190 | H11: =(8640+8805)/2 -> 8722.5 | I11: 8850-8900 | J11: Profit of Rs.282.5/- | K11: =H11-F11 -> 282.5 | L11: =K11/F11 -> 3.35% | M11: Successful | N11: 2018-06-01 | R11: R
A12: 3 | B12: 2018-05-29 | D12: CHOLAFIN | E12: Buy | F12: 1530 | G12: 1460 | H12: 1582.5 | I12: 1620-1640 | J12: Profit of Rs.52.5/- | K12: =H12-F12 -> 52.5 | L12: 3.43% | M12: Successful | N12: 2018-06-01 | R12: R
A13: 4 | B13: 2018-05-30 | D13: HEXAWARE | E13: Sell | F13: 447 | G13: 465 | H13: 434.5 | I13: 415-405 | J13: Profit of Rs.12.5/- | K13: =F13-H13 -> 12.5 | L13: 2.80% | M13: Successful | N13: 2018-06-01 | R13: H
A14: 5 | B14: 2018-05-30 | D14: VEDL | E14: Buy | F14: 248 | G14: 237 | H14: 258 | I14: 268-272 | J14: Profit of Rs.10/- | K14: =H14-F14 -> 10 | L14: =K14/F14 -> 4.03% | M14: Successful | N14: 2018-06-01 | R14: R
A15: 6 | B15: 2018-06-01 | D15: ZEEL | E15: Buy | F15: 557.5 | G15: 539 | H15: 538 | I15: 590-600 | J15: Loss of Rs.19.50/- | K15: =H15-F15 -> -19.50 | L15: -3.50% | M15: Unsuccessful | N15: 2018-06-06 | R15: H
A16: 7 | B16: 2018-06-01 | D16: UPL | E16: Buy | F16: 702 | G16: 668 | H16: 668 | I16: 750-760 | J16: Loss of Rs.34/- | K16: =H16-F16 -> -34.00 | L16: =K16/F16 -> -4.84% | M16: Unsuccessful | N16: 2018-06-20 | R16: H
A17: 8 | B17: 2018-06-04 | D17: CROMPTON | E17: Buy | F17: 221 | G17: 209 | H17: 228.5 | I17: 235-240 | J17: Profit of Rs.7.5/- | K17: =H17-F17 -> 7.5 | L17: =K17/F17 -> 3.39% | M17: Successful | N17: 2018-06-07 | R17: R
A18: 9 | B18: 2018-06-05 | D18: TECHM | E18: Sell | F18: 708 | G18: 728 | H18: 686.25 | I18: 680-670 | J18: Profit of Rs.21.75/- | K18: =F18-H18 -> 21.75 | L18: =K18/F18 -> 3.07% | M18: Successful | N18: 2018-06-06 | R18: H
A19: 10 | B19: 2018-06-07 | D19: PEL | E19: Buy | F19: 2397.5 | G19: 2310 | H19: 2508.75 | I19: 2550-2570 | J19: Profit of Rs.111.25/- | K19: =H19-F19 -> 111.25 | L19: 4.64% | M19: Successful | N19: 2018-06-18 | R19: R
A20: 11 | B20: 2018-06-08 | D20: DIVISLAB | E20: Buy | F20: 1055 | G20: 1005 | H20: 1095 | I20: 1150-1170 | J20: Profit of Rs.40/- | K20: =H20-F20 -> 40 | L20: =K20/F20 -> 3.79% | M20: Successful | N20: 2018-06-15 | R20: R
A21: 12 | B21: 2018-06-11 | D21: TECHM | E21: Sell | F21: 707.5 | G21: 728 | H21: 689.5 | I21: 680-670 | J21: Profit of Rs.18/- | K21: =F21-H21 -> 18 | L21: 2.54% | M21: Successful | N21: 2018-06-20 | R21: H
A22: 13 | B22: 2018-06-12 | D22: DLF | E22: Sell | F22: 207.5 | G22: 217 | H22: 198.75 | I22: 185 | J22: Profit of Rs.8.75/- | K22: =F22-H22 -> 8.75 | L22: =K22/F22 -> 4.22% | M22: Successful | N22: 2018-06-19 | R22: R
A23: 14 | B23: 2018-06-18 | D23: BIOCON | E23: Buy | F23: 624 | G23: 596 | H23: 644.5 | I23: 675-685 | J23: Part Profit of Rs.20.5/- | K23: =H23-F23 -> 20.5 | L23: 3.29% | M23: Successful | N23: 2018-06-25 | R23: R
A24: 15 | B24: 2018-06-21 | D24: CENTURYTEX | E24: Buy | F24: 900-905 | G24: 873 | I24: 955-965 | J24: Open | O24: =VLOOKUP(D24,Sheet2!$A$1:M2173,6,0) -> 888.7 | R24: R
A25: 16 | B25: 2018-06-26 | D25: DALMIABHA | E25: Buy | F25: 2385 | G25: 2308 | H25: 2235 | I25: 2510-2550 | J25: Loss of Rs.150/- | K25: =H25-F25 -> -150.00 | L25: =K25/F25 -> -6.29% | M25: Unsuccessful | N25: 2018-06-28 | R25: R
A26: 17 | B26: 2018-06-27 | D26: RAMCOCEM | E26: Buy | F26: 703-707 | G26: 675 | I26: 760-770 | J26: Open | O26: =VLOOKUP(D26,Sheet2!$A$1:M2175,6,0) -> 702.4 | R26: R
A27: 18 | B27: 2018-06-27 | D27: DCBBANK | E27: Buy | F27: 171 | G27: 165 | H27: 162.5 | I27: 182-185 | J27: Loss of Rs.8.50/- | K27: =H27-F27 -> -8.50 | L27: =K27/F27 -> -4.97% | M27: Unsuccessful | N27: 2018-06-28 | R27: H
A28: 19 | B28: 2018-06-29 | D28: CANBK | E28: Buy | F28: 251-254 | G28: 241 | I28: 270-280 | J28: Open | O28: =VLOOKUP(D28,Sheet2!$A$1:M2177,6,0) -> 251.55
A33: CLBS = Closing Basis *** | F33: Reinitiated $
A34: Dividend adjusted <> | F34: Revised stoploss #
A36: Master Trade High Risk
A37: Sr.no | B37: Date | D37: Company | E37: Rec | F37: Rec Price | G37: Stop Loss | H37: Call Closed At | I37: Target | J37: Remark | K37: Profit / Loss per share | L37: Gain / Loss per Lot | M37: Lot | N37: Status | O37: Closed Date
A38: 1 | B38: 2018-06-08 | D38: BANKNIFTY JUN FUT | E38: Buy | F38: 26320 | G38: 26050 | H38: 26515 | I38: 26800-26900 | J38: Profit of Rs.195/- | K38: =H38-F38 -> 195.00 | L38: =M38*K38 -> 7800.00 | M38: 40 | N38: Successful | O38: 2018-06-11 | R38: R
A39: 2 | B39: 2018-06-11 | D39: NIFTY JUN FUT | E39: Sell | F39: 10835 | G39: 10972 | H39: 10745 | I39: 10600 | J39: Profit of Rs.90/- | K39: =F39-H39 -> 90.00 | L39: =M39*K39 -> 6750.00 | M39: 75 | N39: Successful | O39: 2018-06-20 | R39: R
A40: 3 | B40: 2018-06-26 | D40: MARUTI JUL FUT | E40: Buy | F40: 8855 | G40: 8725 | H40: 8952.5 | I40: 9100-9150 | J40: Profit of Rs.97.5/- | K40: =H40-F40 -> 97.50 | L40: =M40*K40 -> 7312.50 | M40: 75 | N40: Successful | O40: 2018-06-26 | R40: R
A47: Master Trade Medium Risk
A48: Sr.no | B48: Date | D48: Company | E48: Rec | F48: Rec Price | G48: Stop Loss | H48: Call Closed At | I48: Target | J48: Remark | K48: Profit/Loss per lot | L48: Gain / Loss per Lot | M48: Lot | N48: Status | O48: Closed Date
A49: 1 | B49: 2018-06-07 | D49: NIFTY JUNE 10700 PE | E49: Buy | F49: 94.5 | G49: 75 | H49: 75 | I49: 140 | J49: Loss of Rs.19.50/- | K49: =H49-F49 -> -19.50 | L49: =K49*M49 -> -1462.50 | M49: 75 | N49: Unsuccessful | O49: 2018-06-07 | R49: H
A50: 2 | B50: 2018-06-07 | D50: BANKNIFTY 07-JUN 26600 PE | E50: Buy | F50: 32.5 | H50: 40 | I50: 100 | J50: Profit of Rs.7.5/- | K50: =H50-F50 -> 7.50 | L50: =K50*M50 -> 300.00 | M50: 40 | N50: Successful | O50: 2018-06-07 | R50: A
A51: 3 | B51: 2018-06-11 | D51: RELIANCE JUN 960 PE | E51: Buy | F51: 8.5 | G51: 3.5 | H51: 3.5 | I51: 20 | J51: Loss of Rs.5/- | K51: =H51-F51 -> -5.00 | L51: =K51*M51 -> -5000.00 | M51: 1000 | N51: Unsuccessful | O51: 2018-06-15 | R51: H
A52: 4 | B52: 2018-06-12 | D52: MARUTI JUN 8900 PE | E52: Buy | F52: 104.5 | G52: 70 | H52: 70 | I52: 150-160 | J52: Loss of Rs.34.50/- | K52: =H52-F52 -> -34.50 | L52: =K52*M52 -> -2587.50 | M52: 75 | N52: Unsuccessful | O52: 2018-06-13 | R52: R
A53: 5 | B53: 2018-06-14 | D53: BANKNIFTY 14-JUN 26600 PE | E53: Buy | F53: 22.5 | H53: 43.5 | I53: 70 | J53: Profit of Rs.21/- | K53: =H53-F53 -> 21.00 | L53: =K53*M53 -> 840.00 | M53: 40 | N53: Successful | O53: 2018-06-14 | R53: A
A54: 6 | B54: 2018-06-14 | D54: IDFCBANK JUN 45 CE | E54: Buy | F54: 0.95 | H54: 0 | J54: Loss of Rs.0.40/- | K54: -0.40 | L54: =M54*K54 -> -3600.00 | M54: 9000 | N54: Unsuccessful | O54: 2018-06-28 | R54: A
D55: IDFCBANK JUN 47.50 CE | E55: Sell | F55: 0.45 | H55: 0
A56: 7 | B56: 2018-06-15 | D56: YESBANK JUN 320 PE | E56: Buy | F56: 2.55 | H56: 0 | I56: 5.00-6.00 | J56: Loss of Rs.2.55/- | K56: =H56-F56 -> -2.55 | L56: =K56*M56 -> -4462.50 | M56: 1750 | N56: Unsuccessful | O56: 2018-06-28 | R56: H
A57: 8 | B57: 2018-06-18 | D57: NIFTY JUN 10800 PE | E57: Buy | F57: 80 | G57: 30 | H57: 110 | I57: 160-180 | J57: Profit of Rs.30/- | K57: =H57-F57 -> 30.00 | L57: =K57*M57 -> 2250.00 | M57: 75 | N57: Successful | O57: 2018-06-19 | R57: R
A58: 9 | B58: 2018-06-26 | D58: NIFTY JUN 10800 PE | E58: Buy | F58: 56 | H58: 76.5 | I58: 100-120 | J58: Profit of Rs.20.5/- | K58: =H58-F58 -> 20.50 | L58: =K58*M58 -> 1537.50 | M58: 75 | N58: Successful | O58: 2018-06-27 | R58: H
A59: 10 | B59: 2018-06-28 | D59: NIFTY JUN 10600 PE | E59: Buy | F59: 8.5 | H59: 35 | I59: 50 | J59: Profit of Rs.16/- | K59: =35-19 -> 16.00 | L59: =M59*K59 -> 1200.00 | M59: 75 | N59: Successful | O59: 2018-06-28 | R59: A
D60: NIFTY JUN 10700 CE | E60: Buy | F60: 10.5 | H60: 0
B64: Smart Delivery Trade
A65: Sr.no | B65: Date | D65: Company | E65: Rec | F65: Rec Price | G65: Stop Loss*** | H65: Call Closed At | I65: Target | J65: Remark | K65: Profit / Loss per Share | L65: Gain / Loss % | M65: Status | N65: Closed Date | O65: NSE Closed Price
A66: 1 | B66: 2018-05-29 | D66: TATASTEEL | E66: Buy | F66: 577.5 | G66: 555 | H66: 593.5 | I66: 600-610 | J66: Profit of Rs.16/- | K66: =H66-F66 -> 16 | L66: =K66/F66 -> 2.77% | M66: Successful | N66: 2018-06-07 | R66: R
A67: 2 | B67: 2018-05-29 | D67: RELIANCE | E67: Buy | F67: 925 | G67: 898 | H67: 943 | I67: 960-970 | J67: Profit of Rs.18/- | K67: =H67-F67 -> 18 | L67: =K67/F67 -> 1.95% | M67: Successful | N67: 2018-06-04 | R67: R
A68: 3 | B68: 2018-05-30 | D68: CADILAHC | E68: Buy | F68: 367 | G68: 357 | H68: 355 | I68: 380-388 | J68: Loss of Rs.12/- | K68: =H68-F68 -> -12.00 | L68: =K68/F68 -> -3.27% | M68: Unsuccessful | N68: 2018-06-01 | R68: H
A69: 4 | B69: 2018-05-30 | D69: TATAMOTORS | E69: Buy | F69: 290 | G69: 279 | H69: 299.75 | I69: 305-310 | J69: Profit of Rs.9.75/- | K69: =H69-F69 -> 9.75 | L69: 3.36% | M69: Successful | N69: 2018-06-07 | R69: H
A70: 5 | B70: 2018-05-30 | D70: ITC | E70: Buy | F70: 271 | G70: 262 | H70: 261.5 | I70: 285-290 | J70: Loss of Rs.9.5/- | K70: =H70-F70 -> -9.50 | L70: =K70/F70 -> -3.51% | M70: Unsuccessful | N70: 2018-06-21 | R70: H
A71: 6 | B71: 2018-05-30 | D71: AMARAJABAT | E71: Buy | F71: 792 | G71: 768 | H71: 768 | I71: 830-840 | J71: Loss of Rs.24/- | K71: =H71-F71 -> -24.00 | L71: =K71/F71 -> -3.03% | M71: Unsuccessful | N71: 2018-06-04 | R71: R
A72: 7 | B72: 2018-05-30 | D72: LICHSGFIN | E72: Buy | F72: 475 | G72: 460 | H72: 489.5 | I72: 495-500 | J72: Profit of Rs.14.50/- | K72: =H72-F72 -> 14.5 | L72: 3.05% | M72: Successful | N72: 2018-06-06 | R72: R
A73: 8 | B73: 2018-06-01 | D73: HINDALCO | E73: Buy | F73: 233.5 | G73: 227 | H73: 240.5 | I73: 245 | J73: Profit of Rs.7/- | K73: =H73-F73 -> 7 | L73: =K73/F73 -> 3.00% | M73: Successful | N73: 2018-06-04 | R73: H
A74: 9 | B74: 2018-06-05 | D74: KPIT | E74: Sell | F74: 280.5 | G74: 292 | H74: 271.5 | I74: 266-262 | J74: Profit of Rs.9/- | K74: =F74-H74 -> 9 | L74: =K74/F74 -> 3.21% | M74: Successful | N74: 2018-06-05 | R74: H
A75: 10 | B75: 2018-06-05 | D75: BATAINDIA | E75: Buy | F75: 754 | G75: 734 | H75: 774.5 | I75: 785-790 | J75: Profit of Rs.20.50/- | K75: =H75-F75 -> 20.5 | L75: =K75/F75 -> 2.72% | M75: Successful | N75: 2018-06-11 | R75: R
A76: 11 | B76: 2018-06-06 | D76: RAYMOND | E76: Buy | F76: 969.5 | G76: 938 | H76: 997.5 | I76: 1020 | J76: Profit of Rs.28/- | K76: =H76-F76 -> 28 | L76: =K76/F76 -> 2.89% | M76: Successful | N76: 2018-06-11 | R76: H
A77: 12 | B77: 2018-06-07 | D77: VEDL | E77: Buy | F77: 250 | G77: 241 | H77: 241 | I77: 262-264 | J77: Loss of Rs.9/- | K77: =H77-F77 -> -9.00 | L77: -3.60% | M77: Unsuccessful | N77: 2018-06-14 | R77: R
A78: 13 | B78: 2018-06-08 | D78: YESBANK | E78: Buy | F78: 336 | G78: 325 | H78: 344.5 | I78: 350-355 | J78: Profit of Rs.8.50/- | K78: =H78-F78 -> 8.5 | L78: =K78/F78 -> 2.53% | M78: Successful | N78: 2018-06-11 | R78: R
A79: 14 | B79: 2018-06-08 | D79: ACC | E79: Buy | F79: 1314 | G79: 1265 | H79: 1358 | I79: 1370-1390 | J79: Profit of Rs.44/- | K79: =H79-F79 -> 44 | L79: =K79/F79 -> 3.35% | M79: Successful | N79: 2018-06-27 | R79: H
A80: 15 | B80: 2018-06-11 | D80: MCDOWELL-N | E80: Buy | F80: 3370 | G80: 3270 | H80: 3473 | I80: 3540-3560 | J80: Profit of Rs.103/- | K80: =H80-F80 -> 103 | L80: =K80/F80 -> 3.06% | M80: Successful | N80: 2018-06-14 | R80: R
A81: 16 | B81: 2018-06-11 | D81: JSWSTEEL | E81: Sell | F81: 343 | G81: 353 | H81: 333.35 | I81: 325-327 | J81: Profit of Rs.9.65/- | K81: =F81-H81 -> 9.65 | L81: 2.81% | M81: Successful | N81: 2018-06-15 | R81: R
A82: 17 | B82: 2018-06-13 | D82: PIDILITIND | E82: Buy | F82: 1072.5 | G82: 1048 | H82: 1101.5 | I82: 1110-1120 | J82: Profit of Rs.29/- | K82: =H82-F82 -> 29 | L82: =K82/F82 -> 2.70% | M82: Successful | N82: 2018-06-14 | R82: H
A83: 18 | B83: 2018-06-13 | D83: ONGC | E83: Buy | F83: 168.5 | G83: 162.7 | H83: 162 | I83: 176-179 | J83: Loss of Rs.6.5/- | K83: =H83-F83 -> -6.50 | L83: -3.86% | M83: Unsuccessful | N83: 2018-06-21 | R83: R
A84: 19 | B84: 2018-06-19 | D84: MCDOWELL-N | E84: Buy | F84: 672 | G84: 650 | H84: 692.5 | I84: 705-715 | J84: Profit of Rs.20.5/- | K84: =H84-F84 -> 20.5 | L84: =K84/F84 -> 3.05% | M84: Successful | N84: 2018-06-26 | R84: R
A85: 20 | B85: 2018-06-19 | D85: ADANIPORTS | E85: Sell | F85: 364 | G85: 376 | H85: 376 | I85: 340 | J85: Loss of Rs.12/- | K85: =F85-H85 -> -12.00 | L85: -3.30% | M85: Unsuccessful | N85: 2018-06-29 | R85: H
A86: 21 | B86: 2018-06-20 | D86: RAYMOND | E86: Buy | F86: 967.5 | G86: 938 | H86: 926.5 | I86: 1010-1030 | J86: Loss of Rs.41/- | K86: =H86-F86 -> -41.00 | L86: =K86/F86 -> -4.24% | M86: Unsuccessful | N86: 2018-06-27 | R86: H
A87: 22 | B87: 2018-06-22 | D87: SUNPHARMA | E87: Buy | F87: 556 | G87: 537 | H87: 573 | I87: 590-600 | J87: Profit of Rs.17/- | K87: =H87-F87 -> 17 | L87: =K87/F87 -> 3.06% | M87: Successful | N87: 2018-06-22 | R87: H
A88: 23 | B88: 2018-06-25 | D88: KAJARIACER | E88: Buy | F88: 508.5 | G88: 497 | H88: 497 | I88: 530-535 | J88: Loss of Rs.11.5/- | K88: =H88-F88 -> -11.50 | L88: -2.26% | M88: Unsuccessful | N88: 2018-06-26 | R88: R
A89: 24 | B89: 2018-06-26 | D89: ASHOKLEY | E89: Buy | F89: 133 | G89: 129 | H89: 127 | I89: 139-142 | J89: Loss of Rs.6/- | K89: =H89-F89 -> -6.00 | L89: =K89/F89 -> -4.51% | M89: Unsuccessful | N89: 2018-06-28 | R89: H
A90: 25 | B90: 2018-06-27 | D90: SAIL | E90: Buy | F90: 81.25 | G90: 78.5 | H90: 83.75 | I90: 85-87 | J90: Profit of Rs.2.5/- | K90: =H90-F90 -> 2.5 | L90: 3.08% | M90: Successful | N90: 2018-06-29 | R90: H
A91: 26 | B91: 2018-06-29 | D91: ACC | E91: Buy | F91: 1311.5 | G91: 1259 | H91: 1351 | I91: 1370-1390 | J91: Profit of Rs.39.5/- | K91: =H91-F91 -> 39.5 | L91: =K91/F91 -> 3.01% | M91: Successful | N91: 2018-06-29
A92: 27 | B92: 2018-06-29 | D92: STAR | E92: Buy | F92: 393-395 | G92: 378.7 | I92: 415-420 | J92: Open | O92: =VLOOKUP(D92,Sheet2!$A$1:M2241,6,0) -> 394.55
A93: 28 | B93: 2018-06-29 | D93: HCLTECH | E93: Buy | F93: 918-923 | G93: 889.8 | I93: 970-980 | J93: Open | O93: =VLOOKUP(D93,Sheet2!$A$1:M2242,6,0) -> 926.25
A94: 29 | B94: 2018-06-29 | D94: COLPAL | E94: Buy | F94: 1171-1177 | G94: 1148 | I94: 1215-1230 | J94: Open | O94: =VLOOKUP(D94,Sheet2!$A$1:M2243,6,0) -> 1184.85
A95: 30 | B95: 2018-06-29 | D95: SUNPHARMA | E95: Buy | F95: 562-566 | G95: 548 | I95: 590-600 | J95: Open | O95: =VLOOKUP(D95,Sheet2!$A$1:M2244,6,0) -> 564
A97: CLBS = Closing Basis *** | F97: Reinitiated $
A98: Dividend adjusted <> | F98: Revised stoploss #
B101: Momentum Call
A102: Sr.no | B102: Date | D102: Company | E102: Rec | F102: Rec Price | G102: Stop Loss | H102: Call Closed At | I102: Target | J102: Remark | K102: Profit / Loss per Share/Lot | L102: Gain / Loss % | M102: Gain / Loss per Lot | N102: Lot | O102: Status | P102: Closed Date | Q102: NSE Closed Price
A103: 1 | B103: 2018-06-04 | D103: APOLLOTYRE | E103: Buy | F103: 268 | G103: 260 | H103: 273.75 | I103: 280-285 | J103: Profit of Rs.5.75/- | K103: =H103-F103 -> 5.75 | L103: =K103/F103 -> 2.15% | O103: Successful | P103: 2018-06-06 | R103: H
A104: 2 | B104: 2018-06-05 | D104: LT June Fut | E104: Sell | F104: 1343.5 | G104: 1358 | H104: 1339 | I104: 1330-1320 | J104: Profit of Rs.4.5/- | K104: =F104-H104 -> 4.5 | M104: =N104*K104 -> 3375 | N104: 750 | O104: Successful | P104: 2018-06-05 | R104: H
A105: 3 | B105: 2018-06-05 | D105: L&TFH | E105: Buy | F105: 163 | G105: 159 | H105: 167.5 | I105: 170-172 | J105: Profit of Rs.4.5/- | K105: =H105-F105 -> 4.5 | L105: =K105/F105 -> 2.76% | O105: Successful | P105: 2018-06-06 | R105: H
A106: 4 | B106: 2018-06-05 | D106: ASIANPAINT JUN FUT | E106: Buy | F106: 1285.5 | G106: 1264 | H106: 1264 | I106: 1310-1320 | J106: Loss of Rs.21.5/- | K106: =H106-F106 -> -21.5 | M106: =N106*K106 -> -12900 | N106: 600 | O106: Unsuccessful | P106: 2018-06-06 | R106: R
A107: 5 | B107: 2018-06-06 | D107: ACC JUN FUT | E107: Buy | F107: 1296 | G107: 1275 | H107: 1315.5 | I107: 1320-1330 | J107: Profit of Rs.19.50/- | K107: =H107-F107 -> 19.5 | M107: =N107*K107 -> 7800 | N107: 400 | O107: Successful | P107: 2018-06-06 | R107: H
A108: 6 | B108: 2018-06-07 | D108: TITAN | E108: Buy | F108: 892.5 | G108: 875 | H108: 912.5 | I108: 920-930 | J108: Profit of Rs.20/- | K108: =H108-F108 -> 20 | L108: =K108/F108 -> 2.24% | O108: Successful | P108: 2018-06-11 | R108: H
A109: 7 | B109: 2018-06-08 | D109: BALKRISIND | E109: Buy | F109: 1107.5 | G109: 1085 | H109: 1138 | I109: 1155-1160 | J109: Profit of Rs.30.50/- | K109: =H109-F109 -> 30.5 | L109: =K109/F109 -> 2.75% | O109: Successful | P109: 2018-06-11 | R109: R
A110: 8 | B110: 2018-06-11 | D110: TATASTEEL JUN FUT | E110: Sell | F110: 597.5 | G110: 606 | H110: 593.5 | I110: 580-582 | J110: Profit of Rs.4/- | K110: =F110-H110 -> 4 | M110: =N110*K110 -> 4244 | N110: 1061 | O110: Successful | P110: 2018-06-11 | R110: R
A111: 9 | B111: 2018-06-13 | D111: RAYMOND | E111: Buy | F111: 1006 | G111: 978 | H111: 978 | I111: 1040-1050 | J111: Loss of Rs.28/- | K111: =H111-F111 -> -28 | L111: =K111/F111 -> -2.78% | O111: Unsuccessful | P111: 2018-06-19 | R111: H
A112: 10 | B112: 2018-06-13 | D112: DHFL | E112: Buy | F112: 630 | G112: 618 | H112: 642.5 | I112: 650-660 | J112: Profit of Rs.12.50/- | K112: =H112-F112 -> 12.5 | L112: =K112/F112 -> 1.98% | O112: Successful | P112: 2018-06-13 | R112: H
A113: 11 | B113: 2018-06-14 | D113: TATAELXSI | E113: Buy | F113: 1268 | G113: 1240 | H113: 1291 | I113: 1320-1340 | J113: Profit of Rs.23/- | K113: =H113-F113 -> 23 | L113: =K113/F113 -> 1.81% | O113: Successful | P113: 2018-06-14 | R113: H
A114: 12 | B114: 2018-06-14 | D114: COALINDIA JUN FUT | E114: Sell | F114: 280.75 | G114: 285.5 | H114: 284.5 | I114: 273-270 | J114: Loss of Rs.3.75/- | K114: =F114-H114 -> -3.75 | M114: =N114*K114 -> -8250 | N114: 2200 | O114: Unsuccessful | P114: 2018-06-14 | R114: H
A115: 13 | B115: 2018-06-15 | D115: UPL JUN FUT | E115: Buy | F115: 691 | G115: 684 | H115: 698.5 | I115: 705-710 | J115: Profit of Rs.7.50/- | K115: =H115-F115 -> 7.5 | M115: 9000 | N115: 1200 | O115: Successful | P115: 2018-06-15 | R115: H
A116: 14 | B116: 2018-06-15 | D116: LT JUN FUT | E116: Buy | F116: 1340 | G116: 1325 | H116: 1325 | I116: 1360-1370 | J116: Loss of Rs.15/- | K116: =H116-F116 -> -15 | M116: -11250 | N116: 750 | O116: Unsuccessful | P116: 2018-06-15 | R116: H
A117: 15 | B117: 2018-06-15 | D117: HINDALCO JUN FUT | E117: Sell | F117: 237 | G117: 241.5 | H117: 233.5 | I117: 230 | J117: Profit of Rs.3.5/- | K117: =F117-H117 -> 3.5 | M117: 12250 | N117: 3500 | O117: Successful | P117: 2018-06-18 | R117: H
A118: 16 | B118: 2018-06-18 | D118: CEATLTD JUN FUT | E118: Buy | F118: 1336 | G118: 1310 | H118: 1310 | I118: 1365-1375 | J118: Loss of Rs.26/- | K118: =H118-F118 -> -26 | M118: -9100 | N118: 350 | O118: Unsuccessful | P118: 2018-06-19 | R118: H
A119: 17 | B119: 2018-06-18 | D119: ASHOKLEY JUN FUT | E119: Buy | F119: 141.75 | G119: 139.8 | H119: 143.15 | I119: 145-146 | J119: Profit of Rs.1.40/- | K119: 1.4 | M119: 9800 | N119: 7000 | O119: Successful | P119: 2018-06-18 | R119: N
A120: 18 | B120: 2018-06-18 | D120: RBLBANK JUN FUT | E120: Buy | F120: 552 | G120: 538 | H120: 555.5 | I120: 570-575 | J120: Profit of Rs.3.5/- | K120: 3.5 | M120: =N120*K120 -> 3500 | N120: 1000 | O120: Successful | P120: 2018-06-21 | R120: H
A121: 19 | B121: 2018-06-18 | D121: GODREJIND | E121: Buy | F121: 616 | G121: 603 | H121: 603 | I121: 635-640 | J121: Loss of Rs.13/- | K121: -13 | L121: =K121/F121 -> -2.11% | O121: Unsuccessful | P121: 2018-06-19 | R121: R
A122: 20 | B122: 2018-06-19 | D122: EXIDEIND JUN FUT | E122: Buy | F122: 251.25 | G122: 248 | H122: 252.9 | I122: 256-257 | J122: Profit of Rs.1.65/- | K122: 1.65 | M122: =N122*K122 -> 6600 | N122: 4000 | O122: Successful | P122: 2018-06-20 | R122: N
A123: 21 | B123: 2018-06-19 | D123: JSWSTEEL | E123: Buy | F123: 329 | G123: 320.7 | H123: 335.75 | I123: 345-350 | J123: Profit of Rs.6.75/- | K123: 6.75 | L123: =K123/F123 -> 2.05% | O123: Successful | P123: 2018-06-20 | R123: R
A124: 22 | B124: 2018-06-20 | D124: ARVIND | E124: Buy | F124: 406 | G124: 396.7 | H124: 393 | I124: 420-425 | J124: Loss of Rs.13/- | K124: =H124-F124 -> -13 | L124: -3.20% | O124: Unsuccessful | P124: 2018-06-27 | R124: R
A125: 23 | B125: 2018-06-20 | D125: HDFCBANK JUN FUT | E125: Buy | F125: 2040 | G125: 2018 | H125: 2051.5 | I125: 2070-2080 | J125: Profit of Rs.11.50/- | K125: =H125-F125 -> 11.5 | M125: =N125*K125 -> 5750 | N125: 500 | O125: Successful | P125: 2018-06-20 | R125: H
A126: 24 | B126: 2018-06-20 | D126: BANKBARODA JUN FUT | E126: Buy | F126: 126.75 | G126: 124.2 | H126: 124.2 | I126: 131-133 | J126: Loss of Rs.2.55/- | K126: -2.55 | M126: -10200 | N126: 4000 | O126: Unsuccessful | P126: 2018-06-21 | R126: N
A127: 25 | B127: 2018-06-20 | D127: MOTHERSUMI | E127: Buy | F127: 304 | G127: 296 | H127: 311.5 | I127: 318-320 | J127: Profit of Rs.7.5/- | K127: 7.5 | L127: =K127/F127 -> 2.47% | O127: Successful | P127: 2018-06-20 | R127: R
A128: 26 | B128: 2018-06-20 | D128: JINDALSTEL JUN FUT | E128: Buy | F128: 227.75 | G128: 222 | H128: 230.75 | I128: 235-237 | J128: Profit of Rs.3/- | K128: 3 | M128: =N128*K128 -> 6750 | N128: 2250 | O128: Successful | P128: 2018-06-20 | R128: H
A129: 27 | B129: 2018-06-21 | D129: PFC JUN FUT | E129: Buy | F129: 81.95 | G129: 79.9 | H129: 80.5 | I129: 85-86 | J129: Loss of Rs.1.45/- | K129: -1.45 | M129: -8700 | N129: 6000 | O129: Unsuccessful | P129: 2018-06-25 | R129: H
A130: 28 | B130: 2018-06-22 | D130: EXIDEIND JUN FUT | E130: Buy | F130: 249.75 | G130: 246.8 | H130: 251.8 | I130: 256 | J130: Profit of Rs.2.05/- | K130: 2.05 | M130: =N130*K130 -> 8200 | N130: 4000 | O130: Successful | P130: 2018-06-22 | R130: N
A131: 29 | B131: 2018-06-25 | D131: BATAINDIA | E131: Buy | F131: 825.5 | G131: 800 | H131: 842.5 | I131: 860-880 | J131: Profit of Rs.17/- | K131: =H131-F131 -> 17 | L131: =K131/F131 -> 2.06% | O131: Successful | P131: 2018-06-26 | R131: H
A132: 30 | B132: 2018-06-25 | D132: ICICIBANK JULY FUT | E132: Sell | F132: 297.5 | G132: 303 | H132: 294.75 | I132: 292-288 | J132: Profit of Rs.2.75/- | K132: =F132-H132 -> 2.75 | M132: =N132*K132 -> 7562.5 | N132: 2750 | O132: Successful | P132: 2018-06-25 | R132: H
A133: 31 | B133: 2018-06-25 | D133: JINDALSTEL JUN FUT | E133: Buy | F133: 228.25 | G133: 223.5 | H133: 223.5 | I133: 238 | J133: Loss of Rs.4.75/- | K133: =H133-F133 -> -4.75 | M133: -10687.5 | N133: 2250 | O133: Unsuccessful | P133: 2018-06-26 | R133: N
A134: 32 | B134: 2018-06-26 | D134: TATAELXSI JUL FUT | E134: Buy | F134: 1330.5 | G134: 1314 | H134: 1341.5 | I134: 1350-1355 | J134: Profit of Rs.11/- | K134: 11 | M134: 8800 | N134: 800 | O134: Successful | P134: 2018-06-26 | R134: N
A135: 33 | B135: 2018-06-27 | D135: BALKRISIND | E135: Buy | F135: 1054.5 | G135: 1030 | H135: 1030 | I135: 1090-1100 | J135: Loss of Rs.24.5/- | K135: -24.5 | L135: =K135/F135 -> -2.32% | O135: Unsuccessful | P135: 2018-06-28 | R135: R
A136: 34 | B136: 2018-06-27 | D136: GRASIM | E136: Buy | F136: 1024 | G136: 999 | H136: 999 | I136: 1055-1065 | J136: Loss of Rs.25/- | K136: =H136-F136 -> -25 | L136: =K136/F136 -> -2.44% | O136: Unsuccessful | P136: 2018-06-28 | R136: H
A137: 35 | B137: 2018-06-27 | D137: NIFTY JUL FUT | E137: Buy | F137: 10702.5 | G137: 10657 | H137: 10657 | I137: 10780-10800 | J137: Loss of Rs.45.5/- | K137: =H137-F137 -> -45.5 | M137: =N137*K137 -> -3412.5 | N137: 75 | O137: Unsuccessful | P137: 2018-06-27 | R137: R
A138: 36 | B138: 2018-06-28 | D138: EXIDEIND JUN FUT | E138: Buy | F138: 247.35 | G138: 244.5 | H138: 250.25 | I138: 254 | J138: Profit of Rs.2.90/- | K138: 2.9 | M138: 11600 | N138: 4000 | O138: Successful | P138: 2018-06-28 | R138: N
A139: 37 | B139: 2018-06-29 | D139: AMBUJACEM JUL FUT | E139: Buy | F139: 203.25 | G139: 198 | H139: 205.75 | I139: 210-212 | J139: Profit of Rs.2.50/- | K139: 2.5 | M139: 6250 | N139: 2500 | O139: Successful | P139: 2018-06-29
A140: 38 | B140: 2018-06-29 | D140: TATAELXSI JUL FUT | E140: Buy | F140: 1293.5 | G140: 1279 | H140: 1303 | I140: 1310-1320 | J140: Profit of Rs.9.50/- | K140: =H140-F140 -> 9.5 | M140: =N140*K140 -> 7600 | N140: 800 | O140: Successful | P140: 2018-06-29
A145: CLBS = Closing Basis *** | F145: Reinitiated $
A146: Dividend adjusted <> | F146: Revised stoploss #
B148: Quick Pick Intraday
A149: Sr.no | B149: Date | D149: Company | E149: Rec | F149: Rec Price | G149: Stop Loss*** | H149: Call Closed At | I149: Target | J149: Remark | K149: Profit / Loss per Share | L149: Status | M149: Closed Date
A150: 1 | B150: 2018-06-04 | D150: BAJFINANCE | E150: Buy | F150: 2082.5 | G150: 2057 | H150: 2067.5 | I150: 2150 | J150: Loss of Rs.15/- | K150: =H150-F150 -> -15 | L150: Unsuccessful | M150: 2018-06-04 | R150: R
A151: 2 | B151: 2018-06-05 | D151: ARVIND | E151: Sell | F151: 375.5 | G151: 382 | H151: 371.5 | I151: 368-365 | J151: Profit of Rs.4/- | K151: =F151-H151 -> 4 | L151: Successful | M151: 2018-06-05 | R151: H
A152: 3 | B152: 2018-06-05 | D152: DLF | E152: Buy | F152: 200.5 | G152: 197 | H152: 197 | I152: 206 | J152: Loss of Rs.3.5/- | K152: =H152-F152 -> -3.5 | L152: Unsuccessful | M152: 2018-06-05 | R152: R
A153: 4 | B153: 2018-06-08 | D153: KTKBANK | E153: Buy | F153: 119.75 | G153: 116.9 | H153: 119.25 | I153: 124-125 | J153: Loss of Rs.0.50/- | K153: =H153-F153 -> -0.5 | L153: Neutral | M153: 2018-06-08 | R153: R
A154: 5 | B154: 2018-06-08 | D154: LT | E154: Buy | F154: 1346 | G154: 1330 | H154: 1347 | I154: 1365-1370 | J154: Profit of Rs.1/- | K154: 1 | L154: Neutral | M154: 2018-06-08 | R154: H
A155: 6 | B155: 2018-06-11 | D155: BPCL | E155: Buy | F155: 411 | G155: 406.5 | H155: 415.75 | I155: 420-422 | J155: Profit of Rs.4.75/- | K155: 4.75 | L155: Successful | M155: 2018-06-11 | R155: R
A156: 7 | B156: 2018-06-12 | D156: GLENMARK | E156: Sell | F156: 571 | G156: 579 | H156: 579 | I156: 555 | J156: Loss of Rs.8/- | K156: =F156-H156 -> -8 | L156: Unsuccessful | M156: 2018-06-12 | R156: R
A157: 8 | B157: 2018-06-13 | D157: JKTYRE | E157: Buy | F157: 129.5 | G157: 126.7 | H157: 131.75 | I157: 135 | J157: Profit of Rs.2.25/- | K157: =H157-F157 -> 2.25 | L157: Successful | M157: 2018-06-13 | R157: R
A158: 9 | B158: 2018-06-13 | D158: SHANKARA | E158: Buy | F158: 1720.5 | G158: 1688 | H158: 1688 | I158: 1760 | J158: Loss of Rs.32.50/- | K158: -32.5 | L158: Unsuccessful | M158: 2018-06-13 | R158: R
A159: 10 | B159: 2018-06-14 | D159: JAICORPLTD | E159: Buy | F159: 152.5 | G159: 149 | H159: 156.5 | I159: 160 | J159: Profit of Rs.4/- | K159: =H159-F159 -> 4 | L159: Successful | M159: 2018-06-14 | R159: R
A160: 11 | B160: 2018-06-15 | D160: COFFEEDAY | E160: Buy | F160: 309 | G160: 303 | H160: 313 | I160: 318 | J160: Profit of Rs.4/- | K160: =H160-F160 -> 4 | L160: Successful | M160: 2018-06-15 | R160: R
A161: 12 | B161: 2018-06-19 | D161: JUSTDIAL | E161: Buy | F161: 573 | G161: 564 | H161: 564 | I161: 590 | J161: Loss of Rs.9/- | K161: -9 | L161: Unsuccessful | M161: 2018-06-19 | R161: R
A162: 13 | B162: 2018-06-21 | D162: NIFTY JUN FUT | E162: Buy | F162: 10775 | G162: 10744 | H162: 10744 | I162: 10835 | J162: Loss of Rs.31/- | K162: =H162-F162 -> -31 | L162: Unsuccessful | M162: 2018-06-21 | R162: R
A163: 14 | B163: 2018-06-22 | D163: HINDALCO | E163: Buy | F163: 220.5 | G163: 218 | H163: 222 | I163: 227-230 | J163: Profit of Rs.1.5/- | K163: 1.5 | L163: Successful | M163: 2018-06-22 | R163: H
A164: 15 | B164: 2018-06-25 | D164: WABAG | E164: Buy | F164: 415 | G164: 408.7 | H164: 408.7 | I164: 425 | J164: Loss of Rs.6.3/- | K164: =H164-F164 -> -6.3 | L164: Unsuccessful | M164: 2018-06-25 | R164: R
A165: 16 | B165: 2018-06-25 | D165: BFUTILITIE | E165: Buy | F165: 337 | G165: 332.7 | H165: 332.7 | I165: 344-346 | J165: Loss of Rs.4.3/- | K165: =H165-F165 -> -4.3 | L165: Unsuccessful | M165: 2018-06-25 | R165: R
A166: 17 | B166: 2018-06-25 | D166: NATIONALUM | E166: Buy | F166: 63.75 | G166: 62.4 | H166: 62.4 | I166: 66-67 | J166: Loss of Rs.1.35/- | K166: =H166-F166 -> -1.35 | L166: Unsuccessful | M166: 2018-06-25 | R166: H
A167: 18 | B167: 2018-06-28 | D167: KTKBANK | E167: Buy | F167: 111.25 | G167: 109.2 | H167: 109.2 | I167: 115-116 | J167: Loss of Rs.2.05/- | K167: -2.05 | L167: Unsuccessful | M167: 2018-06-28 | R167: R
A171: Techno -Funda (positional)
A172: Sr.no | B172: Date | D172: Company | E172: Rec | F172: Rec Price | G172: Stop Loss*** | H172: Call Closed At | I172: Target | J172: Remark | K172: Profit / Loss per Share | L172: Gain / Loss % | M172: Status | N172: Closed Date | O172: NSE Closed Price
A173: 1 | B173: 2018-06-04 | D173: BAJAJ-AUTO | E173: Buy | F173: 2875-2895 | G173: 2730 | I173: 3170-3200 | J173: Open | R173: H
A175: CLBS = Closing Basis *** | F175: Reinitiated $
A176: Dividend adjusted <> | F176: Revised stoploss #
B181: Investment Idea
A182: Sr.no | B182: Date | D182: Company | E182: Rec | F182: Rec Price | G182: Point of Review | H182: Close Rate | I182: Target | J182: Remark | K182: Profit / Loss per Share | L182: Gain / Loss % | M182: Status | N182: Closed Date
A183: 1 | B183: 2013-11-01 | D183: L&T Finance Holding | E183: Accu | F183: 82.00 | G183: - | H183: 100 | I183: 100.00 | J183: Target Achieved | K183: =H183-F183 -> 18.00 | L183: =K183/F183 -> 21.95% | M183: Successful | N183: 2016-10-14
A184: 2 | B184: 2014-06-04 | D184: Finolex Inds | E184: Buy | F184: 257.00 | G184: - | H184: 300 | I184: 300.00 | J184: Target Achieved | K184: =H184-F184 -> 43.00 | L184: 16.73% | M184: Successful | N184: 2014-07-02
A185: =1+A184 -> 3 | B185: 2014-07-08 | D185: JK Cement | E185: Buy | F185: 393.00 | G185: - | H185: 468 | I185: 468.00 | J185: Target Achieved | K185: =H185-F185 -> 75.00 | L185: 19.08% | M185: Successful | N185: 2014-08-12
A186: 4 | B186: 2014-08-06 | D186: Finolex Cables | E186: Buy | F186: 205.00 | G186: - | H186: 275 | I186: 250.00 | J186: Target Achieved | K186: 70.00 | L186: 34.15% | M186: Successful | N186: 2014-11-19
A187: 5 | B187: 2014-09-04 | D187: Exide Inds | E187: Buy | F187: 162.00 | G187: - | H187: 190 | I187: 190.00 | J187: Target Achieved | K187: 28.00 | L187: 17.28% | M187: Successful | N187: 2015-01-02
A188: 6 | B188: 2014-09-04 | D188: Deepak Nitrite | E188: Buy | F188: 75.00 | G188: - | H188: 91.5 | I188: 95-100 | J188: Profit of Rs.16.50/- | K188: 16.50 | L188: 22.00% | M188: Successful | N188: 2014-11-11
A189: 7 | B189: 2014-10-01 | D189: Mercks | E189: Buy | F189: 850.00 | G189: - | H189: 982.5 | I189: 1050.00 | J189: Profit of Rs.132.50/- | K189: 132.50 | L189: 15.59% | M189: Successful | N189: 2015-02-04
A190: 8 | B190: 2014-10-01 | D190: Grindwell Norton | E190: Buy | F190: 475.00 | G190: - | H190: 515 | I190: 600.00 | J190: Profit of Rs.40/- | K190: 40.00 | L190: 8.42% | M190: Successful | N190: 2014-10-27
A191: 9 | B191: 2014-10-01 | D191: Snowman Logistics | E191: Buy | F191: 86.00 | G191: - | H191: 99 | I191: 140.00 | J191: Profit of Rs.13.00/- | K191: 13.00 | L191: 15.12% | M191: Successful | N191: 2014-10-27
A192: 10 | B192: 2014-10-14 | D192: Birla Corp | E192: Buy | F192: 496.60 | G192: - | H192: 621 | I192: 580.00 | J192: Target Achieved | K192: 124.40 | L192: 25.05% | M192: Successful | N192: 2016-08-23
A193: 11 | B193: 2014-10-14 | D193: Ultratech Cem | E193: Buy | F193: 2481.90 | G193: - | H193: 2840 | I193: 2870.00 | J193: Profit of Rs.358.10/- | K193: 358.10 | L193: 14.43% | M193: Successful | N193: 2015-01-13
A194: =1+A191 -> 10 | B194: 2014-10-16 | D194: Sintex Inds | E194: Buy | F194: 84.50 | G194: - | H194: 93 | I194: 110.00 | J194: Profit of Rs.8.50/- | K194: 8.50 | L194: 10.06% | M194: Successful | N194: 2014-10-27
A195: =1+A194 -> 11 | B195: 2014-10-16 | D195: HSIL | E195: Buy | F195: 401.00 | G195: - | H195: 428 | I195: 450.00 | J195: Profit of Rs.27.00/- | K195: 27.00 | L195: 6.73% | M195: Successful | N195: 2015-01-16
A196: 12 | B196: 2014-10-16 | D196: Eveready Inds | E196: Buy | F196: 101.00 | G196: - | H196: 112 | I196: 120.00 | J196: Profit of Rs.11.00/- | K196: 11.00 | L196: 10.89% | M196: Successful | N196: 2014-10-27
A197: 13 | B197: 2014-11-11 | D197: Pennar Inds | E197: Buy | F197: 59.00 | G197: - | H197: 76 | I197: 76.00 | J197: Target Achieved | K197: 17.00 | L197: 28.81% | M197: Successful | N197: 2017-10-24
A198: 14 | B198: 2014-11-11 | D198: Snowman Logistics | E198: Buy | F198: 99.00 | G198: - | H198: 120 | I198: 120.00 | J198: Profit of Rs.21/- | K198: 21.00 | L198: 21.21% | M198: Successful | N198: 2014-11-17
A199: 15 | B199: 2014-11-13 | D199: Dharamsi Morarji Chem | E199: Buy | F199: 22.00 | G199: - | H199: 33.55 | I199: 32.00 | J199: Profit of Rs 11.55/- | K199: 11.55 | L199: 52.50% | M199: Successful | N199: 2015-07-03
A200: 16 | B200: 2014-12-03 | D200: Tatachem | E200: Buy | F200: 440.00 | G200: - | H200: 520 | I200: 520.00 | J200: Profit of Rs 80.00/- | K200: 80.00 | L200: 18.18% | M200: Successful | N200: 2015-07-23
A201: 17 | B201: 2014-12-03 | D201: Advanta | E201: Buy | F201: 360.00 | G201: - | H201: 427 | I201: 425.00 | J201: Profit of Rs.67.00/- | K201: 67.00 | L201: 18.61% | M201: Successful | N201: 2015-02-23
A202: 18 | B202: 2015-01-08 | D202: GDL | E202: Buy | F202: 360.00 | G202: - | H202: 455 | I202: 420.00 | J202: Profit of Rs.95.00/- | K202: 95.00 | L202: 26.39% | M202: Successful | N202: 2015-01-20
A203: 19 | B203: 2015-01-08 | D203: NRB Bearing | E203: Buy | F203: 130.00 | H203: 175.5 | I203: 165.00 | J203: Profit of Rs 45.50/- | K203: 45.50 | L203: 35.00% | M203: Successful | N203: 2017-12-19
A204: 20 | B204: 2015-02-05 | D204: GSFC | E204: Accu | F204: 98.00 | H204: 120 | I204: 120.00 | J204: Target Achieved | K204: 22.00 | L204: 22.45% | M204: Successful | N204: 2017-01-18
A205: 21 | B205: 2015-02-05 | D205: Sundrmfast | E205: Accu | F205: 196.00 | H205: 262 | I205: 255.00 | J205: Target Achieved | K205: 66.00 | L205: 33.67% | M205: Successful | N205: 2016-08-17
A206: 22 | B206: 2015-03-04 | D206: GPPL | E206: Accu | F206: 230-240 | I206: 280-285 | J206: Open
A207: 23 | B207: 2015-03-04 | D207: ORIENTCEM | E207: Accu | F207: 185.00 | H207: 224 | I207: 220-225 | J207: Target Achieved | K207: 39.00 | L207: =K207/F207 -> 21.08% | M207: Successful | N207: 2016-10-04
A208: 24 | B208: 2015-03-27 | D208: PFS | E208: Accu | F208: 49-50 | I208: 67.00 | J208: Open
A209: 25 | B209: 2015-03-30 | D209: Walchandnagar Ind Ltd | E209: Accu | F209: 183.50 | H209: 219 | I209: 218.00 | J209: Profit of Rs.35.50/- | K209: 35.50 | L209: =K209/F209 -> 19.35% | M209: Successful | N209: 2015-04-09
A210: 26 | B210: 2015-04-20 | D210: Kalpataru Power Transmission Ltd | E210: Accu | F210: =(227+237)/2 -> 232.00 | H210: 298 | I210: 298.00 | J210: Target Achieved | K210: 66.00 | L210: 28.45% | M210: Successful | N210: 2017-03-29
A211: 27 | B211: 2015-05-04 | D211: Mastek Ltd | E211: Buy | F211: 385.00 | H211: =212.5+331 -> 543.5 | I211: 510.00 | J211: Profit of Rs 158.50/- | K211: 158.50 | L211: 41.17% | M211: Successful | N211: 2015-08-19
A212: 28 | B212: 2015-05-04 | D212: Suprajit Eng | E212: Buy | F212: 115.50 | H212: 146 | I212: 142.00 | J212: Profit of Rs 30.50/- | K212: 30.50 | L212: 26.41% | M212: Successful | N212: 2015-07-17
A213: 29 | B213: 2015-05-27 | D213: TCI | E213: Buy | F213: 237.50 | H213: 279.5 | I213: 278.00 | J213: Target Achieved | K213: 42.00 | L213: 17.68% | M213: Successful | N213: 2015-08-06
A214: 30 | B214: 2015-06-19 | D214: HSIL | E214: Accu | F214: 340.00 | H214: 448 | I214: 448.00 | J214: Target Achieved | K214: 108.00 | L214: 31.76% | M214: Successful | N214: 2017-10-10
A215: 31 | B215: 2015-07-06 | D215: Capital First | E215: Accu | F215: 390.00 | H215: 460 | I215: 460.00 | J215: Target Achieved | K215: 70.00 | L215: 17.95% | M215: Successful | N215: 2016-04-18
A216: 32 | B216: 2015-07-10 | D216: Dolphin OffShore | E216: Accu | F216: 118-127 | I216: 172.00 | J216: Open
A217: 33 | B217: 2015-08-03 | D217: Allcargo logistics | E217: Accu | F217: 297.50 | H217: 350 | I217: 360.00 | J217: Profit of Rs 52.50/- | K217: 52.50 | L217: =K217/F217 -> 17.65% | M217: Successful | N217: 2015-08-16
A218: 34 | B218: 2015-08-03 | D218: Camline Fine | E218: Accu | F218: 115.50 | H218: 149 | I218: 140.00 | J218: Profit of Rs 33.50/- | K218: 33.50 | L218: 29.00% | M218: Successful | N218: 2017-01-05
A219: 35 | B219: 2015-09-04 | D219: TCI | E219: Accu | F219: 226.00 | H219: 292 | I219: 292.00 | J219: Target Achieved | K219: 66.00 | L219: 29.20% | M219: Successful | N219: 2015-10-09
A220: 36 | B220: 2015-09-07 | D220: Kalpataru Power Transmission Ltd | E220: Accu | F220: 232.50 | H220: 312.5 | I220: 310.00 | J220: Target Achieved | K220: 80.00 | L220: 34.41% | M220: Successful | N220: 2017-03-29
A221: 37 | B221: 2015-09-21 | D221: LLOYD ELECTRIC & ENG LTD | E221: Accu | F221: 196.50 | H221: 238 | I221: 238.00 | J221: Target Achieved | K221: 41.50 | L221: 21.12% | M221: Successful | N221: 2015-10-14
A222: 38 | B222: 2015-09-24 | D222: L&T Finance Holding | E222: Accu | F222: 65.00 | H222: 82 | I222: 82.00 | J222: Target Achieved | K222: 17.00 | L222: 26.15% | M222: Successful | N222: 2016-07-27
A223: 39 | B223: 2015-10-14 | D223: KEC International ltd | E223: Accu | F223: 144.00 | H223: 182.5 | I223: 181.00 | J223: Target Achieved | K223: 38.50 | L223: 26.74% | M223: Successful | N223: 2017-03-23
A224: 40 | B224: 2015-10-14 | D224: Gruh Finance | E224: Accu | F224: 264.00 | H224: 311 | I224: 311.00 | J224: Target Achieved | K224: 47.00 | L224: 17.80% | M224: Successful | N224: 2016-08-22
A225: 41 | B225: 2015-11-10 | D225: Pidilitind | E225: Buy | F225: 549.50 | H225: 630 | I225: 630.00 | J225: Target Achieved | K225: 80.50 | L225: 14.65% | M225: Successful | N225: 2016-02-19
A226: 42 | B226: 2015-12-04 | D226: Zensar Technology | E226: Accu | F226: 1027.50 | H226: 1315 | I226: 1250.00 | J226: Target Achieved | K226: =H226-F226 -> 287.50 | L226: 27.98% | M226: Successful | N226: 2018-05-24
A227: 43 | B227: 2015-12-29 | D227: Vinati Organics Ltd | E227: Accu | F227: 465.00 | H227: 540 | I227: 540.00 | J227: Target Achieved | K227: 75.00 | L227: =K227/F227 -> 16.13% | M227: Successful | N227: 2016-06-09
A228: 44 | B228: 2016-01-11 | D228: GSFC | E228: Buy | F228: 81.00 | H228: 110 | I228: 110.00 | J228: Target Achieved | K228: 29.00 | L228: 35.80% | M228: Successful | N228: 2017-01-10
A229: 45 | B229: 2016-01-13 | D229: SSWL | E229: Buy | F229: 417.50 | H229: 547 | I229: 535.00 | J229: Target Achieved | K229: 129.50 | L229: 31.02% | M229: Successful | N229: 2016-07-27
A230: 46 | B230: 2016-02-08 | D230: Persistent System Ltd | E230: Accu | F230: 650.00 | H230: 800 | I230: 800.00 | J230: Target Achieved | K230: 150.00 | L230: 23.08% | M230: Successful | N230: 2018-02-23
A231: 47 | B231: 2016-03-04 | D231: UPL | E231: Accu | F231: 437.50 | H231: 504.5 | I231: 522.00 | J231: Profit of Rs.67/- | K231: 67.00 | L231: 15.31% | M231: Successful | N231: 2016-04-20
A232: 48 | B232: 2016-03-09 | D232: Ashoka Buildcon Ltd | E232: Accu | F232: 189.50 | H232: 218 | I232: 218.00 | J232: Target Achieved | K232: 28.50 | L232: 15.04% | M232: Successful | N232: 2017-10-26
A233: 49 | B233: 2016-04-11 | D233: PTC INDIA FIN SERV LTD | E233: Accu | F233: 36-37 | I233: 60.00 | J233: Open
A234: 50 | B234: 2016-04-12 | D234: CAMLINFINE $ | E234: Accu | F234: 93.00 | H234: 149 | I234: 140.00 | J234: Profit of Rs 56/- | K234: 56.00 | L234: =K234/F234 -> 60.22% | M234: Successful | N234: 2017-01-05
... 79 more rows

Sheet Call Tracker (Currency) (hidden)
A1: Master Trade High Risk
A2: Sr.no | B2: Date | C2: Company | D2: Rec | E2: Rec Price | F2: Stop Loss | G2: Call Closed At | H2: Target | I2: Remark | K2: Profit / Loss per share | L2: Gain / Loss per Lot | M2: Lot | N2: Status | O2: Closed Date
A3: 1 | B3: 2017-05-08 | C3: USDINR MAY FUT | D3: Buy | E3: 64.3935 | F3: 64.29 | G3: 64.66 | H3: 64.59 | I3: Profit of Rs.0.27/- | K3: 0.27 | L3: 266.5 | M3: 1000 | N3: Successful | O3: 2017-05-09 | R3: P
A4: 2 | B4: 2017-05-08 | C4: USDINR JUN FUT | D4: Buy | E4: 64.6535 | F4: 64.45 | G4: 64.965 | H4: 65.05 | I4: Profit of Rs 0.31/- | K4: 0.31 | L4: 311.5 | M4: 1000 | N4: Successful | O4: 2017-05-09 | R4: P
A5: 3 | B5: 2017-05-09 | C5: EUROINR MAY FUT | D5: Sell | E5: 70.65 | F5: 70.8 | G5: 70.07 | H5: 70.4 | I5: Profit of Rs 0.58/- | K5: 0.58 | L5: 580 | M5: 1000 | N5: Successful | O5: 2017-05-12 | R5: P
A6: 4 | B6: 2017-05-09 | C6: GBPINR MAY FUT | D6: Buy | E6: 83.774 | F6: 83.37 | G6: 83.37 | H6: 84.77 | I6: Loss of Rs 0.40/- | K6: -0.40 | L6: -404 | M6: 1000 | N6: Unsuccessful | O6: 2017-05-11 | R6: P
A7: 5 | B7: 2017-05-11 | C7: USDINR MAY FUT | D7: Buy | E7: 64.6555 | F7: 64.55 | G7: 64.55 | H7: 64.86 | I7: Loss of Rs.0.1055/- | K7: -0.1055 | L7: =K7*M7 -> -105.50 | M7: 1000 | N7: Unsuccessful | O7: 2017-05-11 | R7: P
A8: 6 | B8: 2017-05-15 | C8: USDINR MAY FUT | D8: Buy | E8: 64.2275 | F8: 64.08 | G8: 64.46 | H8: 64.48 | I8: Profit of Rs 0.23/- | K8: 0.23 | L8: 232.5 | M8: 1000 | N8: Successful | O8: 2017-05-18 | R8: P
A9: 7 | B9: 2017-05-19 | C9: USDINR MAY FUT | D9: Sell | E9: 64.83 | F9: 65 | G9: 65 | H9: 64.5 | I9: Loss of Rs.0.17/- | K9: -0.17 | L9: -170 | M9: 1000 | N9: Unsuccessful | O9: 2017-05-19 | R9: P
A10: 8 | B10: 2017-05-23 | C10: USDINR MAY FUT | D10: Buy | E10: 64.83 | F10: 64.62 | G10: 64.95 | H10: 65.2 | I10: Profit of Rs 0.12/- | K10: 0.12 | L10: 120 | M10: 1000 | N10: Successful | O10: 2017-05-24 | R10: P
A11: 9 | B11: 2017-05-25 | C11: USDINR MAY FUT | D11: Buy | E11: 64.57 | F11: 64.25 | G11: 64.56 | H11: 65 | I11: Loss of Rs.0.01/- | K11: -0.01 | L11: -10 | M11: 1000 | N11: Neutral | O11: 2017-05-29 | R11: P
A12: 10 | B12: 2017-05-30 | C12: USDINR JUN FUT | D12: Buy | E12: 64.9125 | F12: 64.71 | G12: 64.71 | H12: 65.31 | I12: Loss of Rs.0.20/- | K12: -0.20 | L12: -202.5 | M12: 1000 | N12: Unsuccessful | O12: 2017-05-31 | R12: P
A13: 11 | B13: 2017-06-01 | C13: USDINR JUN FUT | D13: Buy | E13: 64.655 | F13: 64.45 | G13: 64.45 | H13: 65.05 | I13: Loss of Rs.0.20/- | K13: =G13-E13 -> -0.20 | L13: =K13*M13 -> -205 | M13: 1000.00 | N13: Unsuccessful | O13: 2017-06-08 | R13: P
A14: 12 | B14: 2017-06-12 | C14: USDINR JUN FUT | D14: Buy | E14: 64.45 | F14: 64 | G14: 64.7625 | H14: 65.2 | I14: Profit of Rs 0.31/- | K14: 0.31 | L14: 312.5 | M14: 1000 | N14: Successful | O14: 2017-06-16
A15: 13 | B15: 2017-06-16 | C15: USDINR JUN FUT | D15: Buy | E15: 64.51 | F15: 64.2 | G15: 64.7 | H15: 65.11 | I15: Profit of Rs 0.19/- | K15: 0.19 | L15: 190 | M15: 1000 | N15: Successful | O15: 2017-06-21
A16: 14 | B16: 2017-06-22 | C16: USDINR JUN FUT | D16: Buy | E16: 64.56 | F16: 64.2 | G16: 64.2 | H16: 65.1 | I16: Loss of Rs.0.36/- | K16: -0.36 | L16: -360 | M16: 1000.00 | N16: Unsuccessful | O16: 2017-06-30
A17: 15 | B17: 2017-07-10 | C17: USDINR JUL FUT | D17: Buy | E17: 64.67 | F17: 64.4 | G17: 64.4 | H17: 65.15 | I17: Loss of Rs.0.27/- | K17: -0.27 | L17: -270 | M17: 1000.00 | N17: Unsuccessful | O17: 2017-07-31
A18: 16 | B18: 2017-08-02 | C18: USDINR AUG FUT | D18: Buy | E18: 64.235 | F18: 63.98 | G18: 63.98 | H18: 64.75 | I18: Loss of Rs.0.26/- | K18: -0.26 | L18: -255 | M18: 1000.00 | N18: Unsuccessful | O18: 2017-08-02
A19: 17 | B19: 2017-08-08 | C19: USDINR AUG FUT | D19: Buy | E19: 63.9425 | F19: 63.6 | G19: 64.15 | H19: 64.5 | I19: Profit of Rs 0.21/- | K19: 0.21 | L19: 207.5 | M19: 1000 | N19: Successful | O19: 2017-08-10
A20: 18 | B20: 2017-08-22 | C20: USDINR AUG FUT | D20: Buy | E20: 64.1175 | F20: 63.9 | G20: 64.01 | H20: 64.5 | I20: Loss of Rs.0.11/- | K20: =G20-E20 -> -0.11 | L20: =K20*M20 -> -107.5 | M20: 1000.00 | N20: Unsuccessful | O20: 2017-08-29
A21: 19 | B21: 2017-09-01 | C21: USDINR SEP FUT | D21: Buy | E21: 64.1 | F21: 63.8 | G21: 64.205 | H21: 64.7 | I21: Profit of Rs 0.11/- | K21: 0.11 | L21: 105 | M21: 1000 | N21: Successful | O21: 2017-09-01
A22: 20 | B22: 2017-09-04 | C22: USDINR SEP FUT | D22: Buy | E22: 64.095 | F22: 63.8 | G22: 64.195 | H22: 64.7 | I22: Profit of Rs 0.10/- | K22: 0.10 | L22: =K22*M22 -> 100 | M22: 1000 | N22: Successful | O22: 2017-09-04
A23: 21 | B23: 2017-09-05 | C23: USDINR SEP FUT | D23: Buy | E23: 64.25 | F23: 64 | G23: 64.355 | H23: 64.75 | I23: Profit of Rs 0.11/- | K23: =G23-E23 -> 0.11 | L23: =K23*M23 -> 105 | M23: 1000 | N23: Successful | O23: 2017-09-06
A24: 22 | B24: 2017-09-06 | C24: USDINR SEP FUT | D24: Sell | E24: 64.365 | F24: 64.5 | G24: 64.265 | H24: 64 | I24: Profit of Rs 0.10/- | K24: =E24-G24 -> 0.10 | L24: 100 | M24: 1000 | N24: Successful | O24: 2017-09-06
A25: 23 | B25: 2017-09-07 | C25: USDINR SEP FUT | D25: Buy | E25: 64.145 | F25: 63.9 | G25: 64.2565 | H25: 64.65 | I25: Profit of Rs 0.11/- | K25: =G25-E25 -> 0.11 | L25: =K25*M25 -> 111.5 | M25: 1000 | N25: Successful | O25: 2017-09-14
A26: 24 | B26: 2017-09-11 | C26: JPYINR SEP FUT | D26: Sell | E26: 59.0285 | F26: 59.25 | G26: 58.645 | H26: 58.5 | I26: Profit of Rs 0.38/- | K26: =E26-G26 -> 0.38 | L26: 383.5 | M26: 1000 | N26: Successful | O26: 2017-09-12
A27: 25 | B27: 2017-09-14 | C27: USDINR SEP FUT | D27: Buy | E27: 64.145 | F27: 63.95 | G27: 64.26 | H27: 64.5 | I27: Profit of Rs 0.12/- | K27: =G27-E27 -> 0.12 | L27: 115 | M27: 1000 | N27: Successful | O27: 2017-09-19
A28: 26 | B28: 2017-09-20 | C28: USDINR SEP FUT | D28: Buy | E28: 64.3515 | F28: 64.15 | G28: 64.57 | H28: 64.75 | I28: Profit of Rs 0.22/- | K28: =G28-E28 -> 0.22 | L28: =K28*M28 -> 218.5 | M28: 1000 | N28: Successful | O28: 2017-09-21
A29: 27 | B29: 2017-09-21 | C29: USDINR SEP FUT | D29: Sell | E29: 64.795 | F29: 65.05 | G29: 65.05 | H29: 64.4 | I29: Loss of Rs.0.17/- | K29: -0.17 | L29: -170 | M29: 1000.00 | N29: Unsuccessful | O29: 2017-09-22
A30: 28 | B30: 2017-09-25 | C30: USDINR SEP FUT | D30: Buy | E30: 64.77 | F30: 64.4 | G30: 64.92 | H30: 65.1 | I30: Profit of Rs 0.15/- | K30: =G30-E30 -> 0.15 | L30: =K30*M30 -> 150 | M30: 1000 | N30: Successful | O30: 2017-09-25
A31: 29 | B31: 2017-09-25 | C31: USDINR SEP FUT | D31: Sell | E31: 65.1077 | F31: 65.3 | G31: 65.3 | H31: 64.5 | I31: Loss of Rs.0.19/- | K31: -0.19 | L31: -190 | M31: 1000.00 | N31: Unsuccessful | O31: 2017-09-26
A32: 30 | B32: 2017-09-27 | C32: USDINR SEP FUT | D32: Sell | E32: 65.7225 | F32: 65.83 | G32: 65.7 | H32: 65.52 | I32: Profit of Rs 0.02/- | K32: =E32-G32 -> 0.02 | L32: =K32*M32 -> 22.5 | M32: 1000 | N32: Neutral | O32: 2017-09-27
A33: 31 | B33: 2017-09-27 | C33: USDINR OCT FUT | D33: Sell | E33: 66 | F33: 66.5 | G33: 65.895 | H33: 65 | I33: Profit of Rs 0.11/- | K33: =E33-G33 -> 0.11 | L33: 105 | M33: 1000 | N33: Successful | O33: 2017-09-27
A34: 32 | B34: 2017-09-28 | C34: USDINR OCT FUT | D34: Sell | E34: 66.075 | F34: 66.3 | G34: 65.96 | H34: 65.4 | I34: Profit of Rs 0.12/- | K34: =E34-G34 -> 0.12 | L34: =K34*M34 -> 115 | M34: 1000 | N34: Successful | O34: 2017-09-28
A35: 33 | B35: 2017-09-29 | C35: GBPINR OCT fut | D35: Buy | E35: 87.745 | F35: 87.5 | G35: 87.84 | H35: 88.25 | I35: Profit of Rs 0.09/- | K35: =G35-E35 -> 0.09 | L35: 95 | M35: 1000 | N35: Successful | O35: 2017-09-29
A36: 34 | B36: 2017-09-29 | C36: USDINR OCT FUT | D36: Buy | E36: 65.514 | F36: 65.25 | G36: 65.85 | H36: 66 | I36: Profit of Rs 0.34/- | K36: 0.34 | L36: =K36*M36 -> 336 | M36: 1000 | N36: Successful | O36: 2017-10-03
A37: 35 | B37: 2017-10-09 | C37: USDINR OCT FUT | D37: Buy | E37: 65.48 | F37: 65.23 | G37: 65.5775 | H37: 65.95 | I37: Profit of Rs 0.10/- | K37: =G37-E37 -> 0.10 | L37: =K37*M37 -> 97.5 | M37: 1000 | N37: Successful | O37: 2017-10-09
A38: 36 | B38: 2017-10-10 | C38: USDINR OCT FUT | D38: Buy | E38: 65.41 | F38: 65.15 | G38: 65.5075 | H38: 66 | I38: Profit of Rs 0.10/- | K38: 0.10 | L38: 97.5 | M38: 1000 | N38: Successful | O38: 2017-10-10
A39: 37 | B39: 2017-10-11 | C39: USDINR OCT FUT | D39: Buy | E39: 65.38 | F39: 65.13 | G39: 65.13 | H39: 65.88 | I39: Loss of Rs.0.25/- | K39: -0.25 | L39: -250 | M39: 1000.00 | N39: Unsuccessful | O39: 2017-10-13
A40: 38 | B40: 2017-10-16 | C40: USDINR OCT FUT | D40: Buy | E40: 64.7925 | F40: 64.54 | G40: 64.905 | H40: 65.3 | I40: Profit of Rs 0.11/- | K40: =G40-E40 -> 0.11 | L40: =K40*M40 -> 112.5 | M40: 1000 | N40: Successful | O40: 2017-10-17
A41: 39 | B41: 2017-10-23 | C41: USDINR OCT FUT | D41: Buy | E41: 65.115 | F41: 64.85 | G41: 65.21 | H41: 65.5 | I41: Profit of Rs 0.09/- | K41: =G41-E41 -> 0.09 | L41: =K41*M41 -> 95 | M41: 1000 | N41: Successful | O41: 2017-10-25
A42: 40 | B42: 2017-10-23 | C42: JPYINR OCT FUT | D42: Buy | E42: 57.285 | F42: 57.03 | G42: 57.38 | H42: 58.4 | I42: Profit of Rs 0.10/- | K42: =G42-E42 -> 0.10 | L42: =K42*M42 -> 95 | M42: 1000 | N42: Successful | O42: 2017-10-23
A43: 41 | B43: 2017-10-26 | C43: USDINR OCT FUT | D43: Buy | E43: 64.755 | F43: 64.5 | G43: 64.87 | H43: 65.25 | I43: Profit of Rs 0.12/- | K43: 0.12 | L43: 115 | M43: 1000 | N43: Successful | O43: 2017-10-25
A44: 42 | B44: 2017-10-30 | C44: USDINR NOV FUT | D44: Buy | E44: 65.035 | F44: 64.79 | G44: 64.79 | H44: 65.5 | I44: Loss of Rs.0.24/- | K44: -0.24 | L44: -245 | M44: 1000.00 | N44: Unsuccessful | O44: 2017-11-01
A45: 43 | B45: 2017-11-01 | C45: JPYINR NOV FUT | D45: Buy | E45: 56.9875 | F45: 56.73 | G45: 57.0959 | H45: 57.5 | I45: Profit of Rs 0.11/- | K45: =G45-E45 -> 0.11 | L45: =K45*M45 -> 108.4 | M45: 1000 | N45: Successful | O45: 2017-11-07
A46: 44 | B46: 2017-11-02 | C46: USDINR NOV FUT | D46: Buy | E46: 64.7838 | F46: 64.5 | G46: 64.89 | H46: 65.25 | I46: Profit of Rs 0.11/- | K46: =G46-E46 -> 0.11 | L46: =K46*M46 -> 106.2 | M46: 1000 | N46: Successful | O46: 2017-11-06
A47: 45 | B47: 2017-11-08 | C47: USDINR NOV FUT | D47: Buy | E47: 65.1363 | F47: 64.8375 | G47: 65.235 | H47: 65.73 | I47: Profit of Rs 0.10/- | K47: =G47-E47 -> 0.10 | L47: =K47*M47 -> 98.7 | M47: 1000 | N47: Successful | O47: 2017-11-10
A48: 46 | B48: 2017-11-08 | C48: GBPINR NOV FUT | D48: Buy | E48: 85.4983 | F48: 85.25 | G48: 85.6 | H48: 86 | I48: Profit of Rs 0.10/- | K48: =G48-E48 -> 0.10 | L48: =K48*M48 -> 101.7 | M48: 1000 | N48: Successful | O48: 2017-11-09
A49: 47 | B49: 2017-11-16 | C49: EURINR NOV FUT | D49: Buy | E49: 76.8975 | F49: 76.3975 | G49: 76.3975 | H49: 77.8975 | I49: Loss of Rs.0.50/- | K49: =G49-E49 -> -0.50 | L49: -500 | M49: 1000.00 | N49: Unsuccessful | O49: 2017-11-01
A50: 48 | B50: 2017-11-16 | C50: JPYINR NOV FUT | D50: Buy | E50: 57.6625 | F50: 57.2675 | G50: 57.8075 | H50: 58.6675 | I50: Profit of Rs 0.14/- | K50: =G50-E50 -> 0.14 | L50: =K50*M50 -> 145 | M50: 1000 | N50: Successful | O50: 2017-11-17
A51: 49 | B51: 2017-11-22 | C51: EURINR NOV FUT | D51: Buy | E51: 76.175 | F51: 75.95 | G51: 76.335 | H51: 76.6 | I51: Profit of Rs 0.16/- | K51: 0.16 | L51: =K51*M51 -> 160 | M51: 1000 | N51: Successful | O51: 2017-11-22
A52: 50 | B52: 2017-11-22 | C52: USDINR NOV FUT | D52: Buy | E52: 64.87 | F52: 64.5 | G52: 64.5 | H52: 65.5 | I52: Loss of Rs.0.37/- | K52: -0.37 | L52: -370 | M52: 1000.00 | N52: Unsuccessful | O52: 2017-11-27
A53: 51 | B53: 2017-11-28 | C53: GBPINR DEC FUT | D53: Buy | E53: 86.17 | F53: 85.85 | G53: 86.46 | H53: 87 | I53: Profit of Rs 0.29/- | K53: 0.29 | L53: =K53*M53 -> 290 | M53: 1000 | N53: Successful | O53: 2017-11-29
A54: 52 | B54: 2017-11-28 | C54: JPYINR DEC FUT | D54: Buy | E54: 58.16 | F54: 57.85 | G54: 57.85 | H54: 58.6 | I54: Loss of Rs.0.31/- | K54: -0.31 | L54: -310 | M54: 1000.00 | N54: Unsuccessful | O54: 2017-11-29
A55: 53 | B55: 2017-11-28 | C55: USDINR DEC FUT | D55: Buy | E55: 64.63 | F55: 64.13 | G55: 64.13 | H55: 65.63 | I55: Loss of Rs.0.50/- | K55: -0.50 | L55: =K55*M55 -> -500 | M55: 1000.00 | N55: Unsuccessful | O55: 2017-12-15
A56: 54 | B56: 2017-11-28 | C56: EURINR DEC FUT | D56: Buy | E56: 76.93 | F56: 76.43 | G56: 76.43 | H56: 77.93 | I56: Loss of Rs.0.50/- | K56: =G56-E56 -> -0.50 | L56: =K56*M56 -> -500 | M56: 1000.00 | N56: Unsuccessful | O56: 2017-11-29
A57: 55 | B57: 2017-12-12 | C57: EURINR DEC FUT | D57: Buy | E57: 76.105 | F57: 75.7 | G57: 76.27 | H57: 76.8 | I57: Profit of Rs 0.16/- | K57: =G57-E57 -> 0.16 | L57: 165 | M57: 1000 | N57: Successful | O57: 2017-12-14
A58: 56 | B58: 2017-12-12 | C58: JPYINR DEC FUT | D58: Buy | E58: 56.975 | F58: 56.7 | G58: 57.21 | H58: 57.6 | I58: Profit of Rs 0.23/- | K58: =G58-E58 -> 0.23 | L58: =K58*M58 -> 235 | M58: 1000 | N58: Successful | O58: 2017-12-14

Sheet Sheet2 (hidden)
A1: SYMBOL | B1: SERIES | C1: OPEN | D1: HIGH | E1: LOW | F1: CLOSE | G1: LAST | H1: PREVCLOSE | I1: TOTTRDQTY | J1: TOTTRDVAL | K1: TIMESTAMP | L1: TOTALTRADES | M1: ISIN | N1: ISIN
A2: 20MICRONS | B2: EQ | C2: 35 | D2: 38.05 | E2: 34.95 | F2: 35.6 | G2: 35.5 | H2: 35.2 | I2: 34738 | J2: 1245568.2 | K2: 2018-06-29 | L2: 471 | M2: INE144J01027
A3: 21STCENMGM | B3: EQ | C3: 36.5 | D3: 36.5 | E3: 35.65 | F3: 36.45 | G3: 36.5 | H3: 36.3 | I3: 3270 | J3: 118936.85 | K3: 2018-06-29 | L3: 22 | M3: INE253B01015
A4: 3IINFOTECH | B4: EQ | C4: 4 | D4: 4.3 | E4: 3.9 | F4: 4.25 | G4: 4.3 | H4: 3.95 | I4: 4827378 | J4: 19743427.95 | K4: 2018-06-29 | L4: 1723 | M4: INE748C01020
A5: 3MINDIA | B5: EQ | C5: 19300 | D5: 19749.95 | E5: 19300 | F5: 19637.1 | G5: 19739 | H5: 19258.85 | I5: 478 | J5: 9381327.5 | K5: 2018-06-29 | L5: 237 | M5: INE470A01017
A6: 3PLAND | B6: EQ | C6: 14.4 | D6: 14.4 | E6: 13.05 | F6: 13.35 | G6: 13.3 | H6: 13.9 | I6: 3084 | J6: 42584.6 | K6: 2018-06-29 | L6: 76 | M6: INE105C01023
A7: 5PAISA | B7: EQ | C7: 314 | D7: 332 | E7: 314 | F7: 320.45 | G7: 320 | H7: 323.9 | I7: 6888 | J7: 2231444.95 | K7: 2018-06-29 | L7: 252 | M7: INE618L01018
A8: 63MOONS | B8: EQ | C8: 78.05 | D8: 79 | E8: 77.4 | F8: 78.15 | G8: 77.95 | H8: 77.3 | I8: 161816 | J8: 12637105.95 | K8: 2018-06-29 | L8: 2495 | M8: INE111B01023
A9: 8KMILES | B9: EQ | C9: 480.05 | D9: 495.55 | E9: 474 | F9: 490.25 | G9: 487.85 | H9: 477.85 | I9: 346733 | J9: 168024809.1 | K9: 2018-06-29 | L9: 8175 | M9: INE650K01021
A10: A2ZINFRA | B10: EQ | C10: 20.45 | D10: 21.3 | E10: 20.2 | F10: 20.75 | G10: 20.6 | H10: 19.95 | I10: 194843 | J10: 4037165.8 | K10: 2018-06-29 | L10: 1123 | M10: INE619I01012
A11: AARTIDRUGS | B11: EQ | C11: 527.4 | D11: 585 | E11: 526.05 | F11: 554.05 | G11: 556 | H11: 523.4 | I11: 45574 | J11: 25449728.65 | K11: 2018-06-29 | L11: 2536 | M11: INE767A01016
A12: AARTIIND | B12: EQ | C12: 1205 | D12: 1244.05 | E12: 1200 | F12: 1229 | G12: 1223.9 | H12: 1203.2 | I12: 11306 | J12: 13769110 | K12: 2018-06-29 | L12: 1243 | M12: INE769A01020
A13: AARVEEDEN | B13: EQ | C13: 31.2 | D13: 33 | E13: 31 | F13: 32.55 | G13: 32.7 | H13: 31.65 | I13: 8389 | J13: 267742 | K13: 2018-06-29 | L13: 96 | M13: INE273D01019
A14: ABAN | B14: EQ | C14: 113.7 | D14: 114.3 | E14: 111.6 | F14: 112.3 | G14: 111.85 | H14: 111.9 | I14: 430245 | J14: 48490872.05 | K14: 2018-06-29 | L14: 5468 | M14: INE421A01028
A15: ABB | B15: EQ | C15: 1159.95 | D15: 1211 | E15: 1159.95 | F15: 1178.5 | G15: 1190 | H15: 1157.75 | I15: 80288 | J15: 95587070.6 | K15: 2018-06-29 | L15: 5459 | M15: INE117A01022
A16: ABBOTINDIA | B16: EQ | C16: 7400 | D16: 7470 | E16: 7135 | F16: 7238.2 | G16: 7199 | H16: 7305.9 | I16: 7985 | J16: 57999250.85 | K16: 2018-06-29 | L16: 2724 | M16: INE358A01014
A17: ABCAPITAL | B17: EQ | C17: 128.9 | D17: 133.95 | E17: 128.55 | F17: 133.2 | G17: 133.1 | H17: 127.85 | I17: 2382296 | J17: 314812309.4 | K17: 2018-06-29 | L17: 18970 | M17: INE674K01013
A18: ABFRL | B18: EQ | C18: 138.1 | D18: 139 | E18: 135.1 | F18: 138 | G18: 137.5 | H18: 137.9 | I18: 316048 | J18: 43163880.9 | K18: 2018-06-29 | L18: 5000 | M18: INE647O01011
A19: ACC | B19: EQ | C19: 1299.45 | D19: 1358.25 | E19: 1297 | F19: 1339.9 | G19: 1337.8 | H19: 1291.35 | I19: 1031272 | J19: 1381515432 | K19: 2018-06-29 | L19: 45828 | M19: INE012A01025
A20: ACCELYA | B20: EQ | C20: 1183.6 | D20: 1186.3 | E20: 1158.2 | F20: 1163.8 | G20: 1158.2 | H20: 1177.85 | I20: 1499 | J20: 1754652.8 | K20: 2018-06-29 | L20: 184 | M20: INE793A01012
A21: ACE | B21: EQ | C21: 121 | D21: 129.7 | E21: 118.4 | F21: 126.2 | G21: 126.9 | H21: 124.4 | I21: 427206 | J21: 53386797.95 | K21: 2018-06-29 | L21: 4750 | M21: INE731H01025
A22: ADANIENT | B22: EQ | C22: 110.1 | D22: 114.2 | E22: 110.1 | F22: 113.15 | G22: 112.75 | H22: 109.35 | I22: 6266086 | J22: 705758959.1 | K22: 2018-06-29 | L22: 32423 | M22: INE423A01024
A23: ADANIGREEN | B23: BE | C23: 24.75 | D23: 27.35 | E23: 24.75 | F23: 26.8 | G23: 27.05 | H23: 26.05 | I23: 1158865 | J23: 30318494.65 | K23: 2018-06-29 | L23: 6689 | M23: INE364U01010
A24: ADANIPORTS | B24: EQ | C24: 364.45 | D24: 377.4 | E24: 359.05 | F24: 373.15 | G24: 372.05 | H24: 361.8 | I24: 3241005 | J24: 1190983018 | K24: 2018-06-29 | L24: 62437 | M24: INE742F01042
A25: ADANIPOWER | B25: EQ | C25: 15.6 | D25: 16.45 | E25: 15.4 | F25: 16.15 | G25: 16.1 | H25: 15.5 | I25: 18458160 | J25: 294079891.2 | K25: 2018-06-29 | L25: 18364 | M25: INE814H01011
A26: ADANITRANS | B26: EQ | C26: 146.5 | D26: 160 | E26: 146.5 | F26: 156.15 | G26: 158.9 | H26: 146.55 | I26: 587531 | J26: 90366224 | K26: 2018-06-29 | L26: 5962 | M26: INE931S01010
A27: ADFFOODS | B27: EQ | C27: 225.8 | D27: 232.9 | E27: 225.05 | F27: 228 | G27: 227 | H27: 224.1 | I27: 39160 | J27: 9000537 | K27: 2018-06-29 | L27: 1208 | M27: INE982B01019
A28: ADHUNIK | B28: EQ | C28: 3.2 | D28: 3.3 | E28: 3.15 | F28: 3.3 | G28: 3.3 | H28: 3.15 | I28: 27873 | J28: 90272.95 | K28: 2018-06-29 | L28: 46 | M28: INE400H01019
A29: ADHUNIKIND | B29: EQ | C29: 66 | D29: 72 | E29: 65.95 | F29: 71.25 | G29: 71.95 | H29: 66.85 | I29: 139250 | J29: 9625878.1 | K29: 2018-06-29 | L29: 333 | M29: INE452L01012
A30: ADLABS | B30: EQ | C30: 34 | D30: 35.7 | E30: 33.3 | F30: 34.5 | G30: 34.5 | H30: 32.85 | I30: 81555 | J30: 2793267.3 | K30: 2018-06-29 | L30: 1189 | M30: INE172N01012
A31: ADORWELD | B31: EQ | C31: 307.25 | D31: 313.85 | E31: 302 | F31: 304.35 | G31: 306.95 | H31: 302.8 | I31: 10331 | J31: 3167048.25 | K31: 2018-06-29 | L31: 265 | M31: INE045A01017
A32: ADROITINFO | B32: EQ | C32: 23.15 | D32: 25.9 | E32: 23.15 | F32: 25.35 | G32: 24.55 | H32: 23.75 | I32: 5336 | J32: 131859.35 | K32: 2018-06-29 | L32: 56 | M32: INE737B01033
A33: ADSL | B33: EQ | C33: 15.9 | D33: 17.65 | E33: 15.9 | F33: 16.15 | G33: 16.1 | H33: 16.35 | I33: 29807 | J33: 496734 | K33: 2018-06-29 | L33: 157 | M33: INE102I01027
A34: ADVANIHOTR | B34: EQ | C34: 50.95 | D34: 54.2 | E34: 50.95 | F34: 52.8 | G34: 53.95 | H34: 51.1 | I34: 5883 | J34: 310336.65 | K34: 2018-06-29 | L34: 146 | M34: INE199C01026
A35: ADVENZYMES | B35: EQ | C35: 213.65 | D35: 218.5 | E35: 211 | F35: 216.7 | G35: 216.25 | H35: 212.05 | I35: 103167 | J35: 22275333.05 | K35: 2018-06-29 | L35: 3417 | M35: INE837H01020
A36: AEGISCHEM | B36: EQ | C36: 208.2 | D36: 218.5 | E36: 208.2 | F36: 213.4 | G36: 213.75 | H36: 207.8 | I36: 117296 | J36: 25006756.65 | K36: 2018-06-29 | L36: 5976 | M36: INE208C01025
A37: AFL | B37: EQ | C37: 52.9 | D37: 55.5 | E37: 52.55 | F37: 54.25 | G37: 54.9 | H37: 54 | I37: 13461 | J37: 726719.8 | K37: 2018-06-29 | L37: 41 | M37: INE020G01017
A38: AGARIND | B38: EQ | C38: 293.5 | D38: 307.95 | E38: 293.5 | F38: 304.6 | G38: 302.6 | H38: 306.6 | I38: 14851 | J38: 4537017.95 | K38: 2018-06-29 | L38: 80 | M38: INE204E01012
A39: AGCNET | B39: EQ | C39: 104 | D39: 107.9 | E39: 101.25 | F39: 101.5 | G39: 101.25 | H39: 104.95 | I39: 8192 | J39: 845132.1 | K39: 2018-06-29 | L39: 119 | M39: INE676A01019
A40: AGLSL | B40: EQ | C40: 80 | D40: 83.65 | E40: 78.25 | F40: 82.3 | G40: 82 | H40: 82.15 | I40: 3240 | J40: 265714 | K40: 2018-06-29 | L40: 66 | M40: INE517U01013
A41: AGRITECH | B41: EQ | C41: 100.5 | D41: 116.7 | E41: 100.5 | F41: 106.55 | G41: 106.55 | H41: 100.5 | I41: 78700 | J41: 8623614.9 | K41: 2018-06-29 | L41: 1748 | M41: INE449G01018
A42: AHLEAST | B42: EQ | C42: 264.95 | D42: 272 | E42: 253.05 | F42: 264.6 | G42: 270.9 | H42: 255.8 | I42: 694 | J42: 183195.65 | K42: 2018-06-29 | L42: 163 | M42: INE926K01017
A43: AHLUCONT | B43: EQ | C43: 335 | D43: 348.8 | E43: 332.25 | F43: 346 | G43: 346 | H43: 336.75 | I43: 25473 | J43: 8745739.9 | K43: 2018-06-29 | L43: 367 | M43: INE758C01029
A44: AHLWEST | B44: BE | C44: 290 | D44: 316 | E44: 290 | F44: 311 | G44: 311 | H44: 305 | I44: 454 | J44: 137665.75 | K44: 2018-06-29 | L44: 14 | M44: INE915K01010
A45: AIAENG | B45: EQ | C45: 1491 | D45: 1507.5 | E45: 1484.6 | F45: 1500.1 | G45: 1500 | H45: 1489.55 | I45: 30141 | J45: 45208614.45 | K45: 2018-06-29 | L45: 1787 | M45: INE212H01026
A46: AIFL | B46: EQ | C46: 452.7 | D46: 456.9 | E46: 450 | F46: 450.15 | G46: 450 | H46: 451.55 | I46: 65976 | J46: 29758620.1 | K46: 2018-06-29 | L46: 596 | M46: INE428O01016
A47: AJANTPHARM | B47: EQ | C47: 986 | D47: 992 | E47: 966.05 | F47: 982.7 | G47: 983.65 | H47: 977.4 | I47: 357965 | J47: 350324101.7 | K47: 2018-06-29 | L47: 9693 | M47: INE031B01049
A48: AJMERA | B48: EQ | C48: 199.7 | D48: 206.3 | E48: 199.7 | F48: 203.15 | G48: 205 | H48: 197.7 | I48: 59217 | J48: 12071544.8 | K48: 2018-06-29 | L48: 1488 | M48: INE298G01027
A49: AKSHARCHEM | B49: EQ | C49: 532.95 | D49: 542.7 | E49: 530.45 | F49: 539.05 | G49: 541.15 | H49: 520.65 | I49: 3218 | J49: 1730822.55 | K49: 2018-06-29 | L49: 212 | M49: INE542B01011
A50: AKSHOPTFBR | B50: EQ | C50: 25.45 | D50: 26.6 | E50: 24.9 | F50: 26.45 | G50: 26.4 | H50: 24.45 | I50: 696136 | J50: 18113649.15 | K50: 2018-06-29 | L50: 2707 | M50: INE523B01011
A51: AKZOINDIA | B51: EQ | C51: 1835.05 | D51: 1855.4 | E51: 1835.05 | F51: 1841.55 | G51: 1841.6 | H51: 1840.55 | I51: 5031 | J51: 9278547.75 | K51: 2018-06-29 | L51: 900 | M51: INE133A01011
A52: ALANKIT | B52: EQ | C52: 24.7 | D52: 26.45 | E52: 22 | F52: 26.45 | G52: 26.45 | H52: 24.05 | I52: 1042891 | J52: 26151337.55 | K52: 2018-06-29 | L52: 1143 | M52: INE914E01040
A53: ALBERTDAVD | B53: EQ | C53: 415 | D53: 426.95 | E53: 412 | F53: 415.95 | G53: 418 | H53: 409.65 | I53: 1568 | J53: 656449.7 | K53: 2018-06-29 | L53: 133 | M53: INE155C01010
A54: ALBK | B54: EQ | C54: 41.3 | D54: 42.4 | E54: 41 | F54: 41.8 | G54: 41.75 | H54: 40.95 | I54: 4506807 | J54: 188544248.7 | K54: 2018-06-29 | L54: 10088 | M54: INE428A01015
A55: ALCHEM | B55: BE | C55: 6.25 | D55: 6.3 | E55: 6.25 | F55: 6.3 | G55: 6.3 | H55: 6.4 | I55: 734 | J55: 4609.5 | K55: 2018-06-29 | L55: 5 | M55: INE964B01033
A56: ALEMBICLTD | B56: EQ | C56: 39 | D56: 40.05 | E56: 38.7 | F56: 39.55 | G56: 39.6 | H56: 38.3 | I56: 330878 | J56: 13062850.55 | K56: 2018-06-29 | L56: 2423 | M56: INE426A01027
A57: ALICON | B57: EQ | C57: 564.45 | D57: 582 | E57: 550.05 | F57: 581.15 | G57: 581 | H57: 564.8 | I57: 1280 | J57: 735316.3 | K57: 2018-06-29 | L57: 125 | M57: INE062D01024
A58: ALKALI | B58: EQ | C58: 65.1 | D58: 65.5 | E58: 62 | F58: 62.7 | G58: 62.25 | H58: 63.1 | I58: 3810 | J58: 241877.9 | K58: 2018-06-29 | L58: 80 | M58: INE773I01017
A59: ALKEM | B59: EQ | C59: 1919.15 | D59: 1932.55 | E59: 1880 | F59: 1891.15 | G59: 1891.7 | H59: 1919.15 | I59: 31841 | J59: 60750439.05 | K59: 2018-06-29 | L59: 4948 | M59: INE540L01014
A60: ALKYLAMINE | B60: EQ | C60: 621.9 | D60: 652.8 | E60: 610.05 | F60: 644.3 | G60: 640.55 | H60: 620.75 | I60: 3345 | J60: 2145240.95 | K60: 2018-06-29 | L60: 196 | M60: INE150B01021
A61: ALLCARGO | B61: EQ | C61: 101.7 | D61: 107.1 | E61: 101.55 | F61: 105.75 | G61: 106.2 | H61: 101.25 | I61: 185942 | J61: 19499740.45 | K61: 2018-06-29 | L61: 3764 | M61: INE418H01029
A62: ALLSEC | B62: EQ | C62: 211.55 | D62: 253.8 | E62: 211.55 | F62: 252.25 | G62: 253.8 | H62: 211.5 | I62: 32004 | J62: 7576325.1 | K62: 2018-06-29 | L62: 1019 | M62: INE835G01018
A63: ALMONDZ | B63: BE | C63: 31.25 | D63: 31.95 | E63: 31.1 | F63: 31.95 | G63: 31.95 | H63: 32 | I63: 4867 | J63: 151930.8 | K63: 2018-06-29 | L63: 19 | M63: INE326B01027
A64: ALOKTEXT | B64: BE | C64: 3.9 | D64: 3.9 | E64: 3.9 | F64: 3.9 | G64: 3.9 | H64: 3.75 | I64: 618639 | J64: 2412692.1 | K64: 2018-06-29 | L64: 318 | M64: INE270A01011
A65: ALPA | B65: EQ | C65: 26.9 | D65: 26.9 | E65: 25.55 | F65: 26.25 | G65: 26.45 | H65: 25.25 | I65: 13730 | J65: 360046.15 | K65: 2018-06-29 | L65: 83 | M65: INE385I01010
A66: ALPHAGEO | B66: EQ | C66: 571.45 | D66: 615 | E66: 571.45 | F66: 597.45 | G66: 599.9 | H66: 569.9 | I66: 31326 | J66: 18688581 | K66: 2018-06-29 | L66: 1894 | M66: INE137C01018
A67: ALPSINDUS | B67: BE | C67: 1.9 | D67: 1.9 | E67: 1.85 | F67: 1.85 | G67: 1.85 | H67: 1.9 | I67: 17784 | J67: 32960.4 | K67: 2018-06-29 | L67: 12 | M67: INE093B01015
A68: AMARAJABAT | B68: EQ | C68: 727 | D68: 736.55 | E68: 721.25 | F68: 726.15 | G68: 726.05 | H68: 728.1 | I68: 358700 | J68: 261485611.1 | K68: 2018-06-29 | L68: 10442 | M68: INE885A01032
A69: AMBER | B69: EQ | C69: 900 | D69: 971.7 | E69: 880.1 | F69: 911.05 | G69: 960.1 | H69: 889 | I69: 112401 | J69: 101631126.1 | K69: 2018-06-29 | L69: 4164 | M69: INE371P01015
A70: AMBIKCO | B70: EQ | C70: 1277.9 | D70: 1294.8 | E70: 1250 | F70: 1257 | G70: 1280.95 | H70: 1261.15 | I70: 3270 | J70: 4148016.5 | K70: 2018-06-29 | L70: 403 | M70: INE540G01014
A71: AMBUJACEM | B71: EQ | C71: 201.9 | D71: 208 | E71: 201.7 | F71: 207.45 | G71: 208 | H71: 200.9 | I71: 3749070 | J71: 771458929.2 | K71: 2018-06-29 | L71: 45664 | M71: INE079A01024
A72: AMDIND | B72: EQ | C72: 21.45 | D72: 22 | E72: 21 | F72: 21.55 | G72: 21.5 | H72: 21.45 | I72: 18354 | J72: 397829.2 | K72: 2018-06-29 | L72: 100 | M72: INE005I01014
A73: AMJLAND | B73: EQ | C73: 27.35 | D73: 33.35 | E73: 27.35 | F73: 32 | G73: 29.5 | H73: 27.8 | I73: 1121627 | J73: 34906989.35 | K73: 2018-06-29 | L73: 2705 | M73: INE606A01024
A74: AMRUTANJAN | B74: EQ | C74: 271.05 | D74: 274 | E74: 270.45 | F74: 272 | G74: 272 | H74: 270.4 | I74: 1958 | J74: 532184.95 | K74: 2018-06-29 | L74: 71 | M74: INE098F01031
A75: ANANTRAJ | B75: EQ | C75: 38.6 | D75: 39.7 | E75: 38.05 | F75: 39.35 | G75: 39.15 | H75: 38.15 | I75: 462022 | J75: 17958282.85 | K75: 2018-06-29 | L75: 2088 | M75: INE242C01024
A76: ANDHRABANK | B76: EQ | C76: 31.75 | D76: 33.45 | E76: 31.65 | F76: 32.7 | G76: 32.55 | H76: 31.4 | I76: 6926451 | J76: 226871611.8 | K76: 2018-06-29 | L76: 10008 | M76: INE434A01013
A77: ANDHRACEMT | B77: EQ | C77: 8.9 | D77: 9.2 | E77: 8.9 | F77: 9.1 | G77: 9.1 | H77: 9 | I77: 109247 | J77: 990340.1 | K77: 2018-06-29 | L77: 162 | M77: INE666E01012
A78: ANDHRSUGAR | B78: EQ | C78: 330.95 | D78: 350 | E78: 315.2 | F78: 348.4 | G78: 349 | H78: 328.3 | I78: 27584 | J78: 9427352.2 | K78: 2018-06-29 | L78: 1693 | M78: INE715B01013
A79: ANGIND | B79: BE | C79: 3.5 | D79: 3.5 | E79: 3.5 | F79: 3.5 | G79: 3.5 | H79: 3.65 | I79: 2161 | J79: 7563.5 | K79: 2018-06-29 | L79: 23 | M79: INE017D01010
A80: ANIKINDS | B80: BE | C80: 30.25 | D80: 30.75 | E80: 28.85 | F80: 29.55 | G80: 30.3 | H80: 30.25 | I80: 3015 | J80: 89671.85 | K80: 2018-06-29 | L80: 35 | M80: INE087B01017
A81: ANKITMETAL | B81: BE | C81: 1.05 | D81: 1.05 | E81: 1.05 | F81: 1.05 | G81: 1.05 | H81: 1.1 | I81: 510 | J81: 535.5 | K81: 2018-06-29 | L81: 2 | M81: INE106I01010
A82: ANSALAPI | B82: EQ | C82: 16.95 | D82: 17.7 | E82: 16.75 | F82: 17.55 | G82: 17.5 | H82: 16.8 | I82: 46799 | J82: 804150.25 | K82: 2018-06-29 | L82: 110 | M82: INE436A01026
A83: ANSALHSG | B83: EQ | C83: 14 | D83: 15.2 | E83: 14 | F83: 15 | G83: 15.15 | H83: 14.25 | I83: 24177 | J83: 357633.2 | K83: 2018-06-29 | L83: 188 | M83: INE880B01015
A84: ANTGRAPHIC | B84: BE | C84: 0.55 | D84: 0.6 | E84: 0.55 | F84: 0.6 | G84: 0.6 | H84: 0.6 | I84: 54023 | J84: 30563 | K84: 2018-06-29 | L84: 40 | M84: INE414B01021
A85: APARINDS | B85: EQ | C85: 672.05 | D85: 676.95 | E85: 672.05 | F85: 674.85 | G85: 673 | H85: 672.45 | I85: 3772 | J85: 2544216.95 | K85: 2018-06-29 | L85: 248 | M85: INE372A01015
A86: APCL | B86: EQ | C86: 144.95 | D86: 155 | E86: 144.95 | F86: 153 | G86: 151 | H86: 141.3 | I86: 3702 | J86: 552574.45 | K86: 2018-06-29 | L86: 122 | M86: INE071F01012
A87: APCOTEXIND | B87: EQ | C87: 500 | D87: 512 | E87: 498 | F87: 507.85 | G87: 505.75 | H87: 503.1 | I87: 3065 | J87: 1558171 | K87: 2018-06-29 | L87: 211 | M87: INE116A01024
A88: APEX | B88: EQ | C88: 407 | D88: 420 | E88: 402 | F88: 408.15 | G88: 405 | H88: 402.95 | I88: 111951 | J88: 46055119.2 | K88: 2018-06-29 | L88: 4034 | M88: INE346W01013
A89: APLAPOLLO | B89: EQ | C89: 1667.1 | D89: 1700 | E89: 1626.8 | F89: 1656.5 | G89: 1660 | H89: 1664.2 | I89: 128051 | J89: 210872092.4 | K89: 2018-06-29 | L89: 5484 | M89: INE702C01019
A90: APLLTD | B90: EQ | C90: 503.9 | D90: 514 | E90: 499.5 | F90: 502.6 | G90: 503 | H90: 501.45 | I90: 44204 | J90: 22381087.8 | K90: 2018-06-29 | L90: 1422 | M90: INE901L01018
A91: APOLLO | B91: EQ | C91: 154.05 | D91: 158.95 | E91: 154.05 | F91: 154.7 | G91: 154.5 | H91: 153.75 | I91: 22052 | J91: 3422516.65 | K91: 2018-06-29 | L91: 633 | M91: INE713T01010
A92: APOLLOHOSP | B92: EQ | C92: 1014 | D92: 1056.35 | E92: 1006.35 | F92: 1047.45 | G92: 1053.85 | H92: 1012.4 | I92: 523238 | J92: 539114830.5 | K92: 2018-06-29 | L92: 22686 | M92: INE437A01024
A93: APOLLOTYRE | B93: EQ | C93: 254.5 | D93: 258.85 | E93: 250.75 | F93: 254 | G93: 253.7 | H93: 254.65 | I93: 2401324 | J93: 611555799.8 | K93: 2018-06-29 | L93: 23102 | M93: INE438A01022
A94: APOLSINHOT | B94: EQ | C94: 1310.05 | D94: 1373.9 | E94: 1310 | F94: 1326.6 | G94: 1373.9 | H94: 1349.1 | I94: 557 | J94: 747316.8 | K94: 2018-06-29 | L94: 115 | M94: INE451F01016
A95: APTECHT | B95: EQ | C95: 237.1 | D95: 256.7 | E95: 237.1 | F95: 252.4 | G95: 251.85 | H95: 237.1 | I95: 779091 | J95: 194182034.2 | K95: 2018-06-29 | L95: 14654 | M95: INE266F01018
A96: ARCHIDPLY | B96: EQ | C96: 54 | D96: 57.85 | E96: 54 | F96: 56.55 | G96: 56 | H96: 53.55 | I96: 17685 | J96: 999376.55 | K96: 2018-06-29 | L96: 418 | M96: INE877I01016
A97: ARCHIES | B97: BE | C97: 27.4 | D97: 27.95 | E97: 26.5 | F97: 27.95 | G97: 27.95 | H97: 26.65 | I97: 38297 | J97: 1042604.75 | K97: 2018-06-29 | L97: 137 | M97: INE731A01020
A98: ARCOTECH | B98: EQ | C98: 13.75 | D98: 14.35 | E98: 13.1 | F98: 14.35 | G98: 14.35 | H98: 13.05 | I98: 474106 | J98: 6565758.9 | K98: 2018-06-29 | L98: 1240 | M98: INE574I01035
A99: ARIES | B99: EQ | C99: 125.4 | D99: 130 | E99: 123.2 | F99: 127.45 | G99: 127.8 | H99: 125.4 | I99: 19592 | J99: 2492792.1 | K99: 2018-06-29 | L99: 415 | M99: INE298I01015
A100: ARIHANT | B100: EQ | C100: 36.1 | D100: 39.8 | E100: 36.1 | F100: 36.1 | G100: 36.1 | H100: 37.95 | I100: 203 | J100: 7335.7 | K100: 2018-06-29 | L100: 5 | M100: INE413D01011
A101: ARIHANTSUP | B101: EQ | C101: 81.5 | D101: 87.1 | E101: 70.2 | F101: 73.1 | G101: 72 | H101: 80.2 | I101: 190357 | J101: 14847444.25 | K101: 2018-06-29 | L101: 7201 | M101: INE643K01018
A102: ARMANFIN | B102: BE | C102: 358.95 | D102: 358.95 | E102: 330 | F102: 348.3 | G102: 358 | H102: 342.85 | I102: 908 | J102: 314567.4 | K102: 2018-06-29 | L102: 17 | M102: INE109C01017
A103: AROGRANITE | B103: EQ | C103: 56.15 | D103: 57.8 | E103: 55.1 | F103: 56.8 | G103: 57.5 | H103: 55.5 | I103: 33400 | J103: 1894754.75 | K103: 2018-06-29 | L103: 386 | M103: INE210C01013
A104: ARROWGREEN | B104: EQ | C104: 98.8 | D104: 98.8 | E104: 98.8 | F104: 98.8 | G104: 98.8 | H104: 103.95 | I104: 8351 | J104: 825078.8 | K104: 2018-06-29 | L104: 65 | M104: INE570D01018
A105: ARROWTEX | B105: EQ | C105: 31.7 | D105: 32.5 | E105: 30.4 | F105: 31.8 | G105: 32.5 | H105: 30.65 | I105: 17997 | J105: 558917.3 | K105: 2018-06-29 | L105: 181 | M105: INE933J01015
A106: ARSHIYA | B106: EQ | C106: 41.65 | D106: 49.6 | E106: 41.65 | F106: 48.15 | G106: 48.1 | H106: 43.05 | I106: 292888 | J106: 13951648.4 | K106: 2018-06-29 | L106: 1726 | M106: INE968D01022
A107: ARSSINFRA | B107: BE | C107: 27 | D107: 28 | E107: 25.55 | F107: 27.7 | G107: 27.95 | H107: 26.7 | I107: 6007 | J107: 165880.4 | K107: 2018-06-29 | L107: 60 | M107: INE267I01010
A108: ARVIND | B108: EQ | C108: 389.25 | D108: 399.8 | E108: 389.1 | F108: 398.7 | G108: 398.45 | H108: 386.85 | I108: 1169170 | J108: 461961601.1 | K108: 2018-06-29 | L108: 22416 | M108: INE034A01011
A109: ARVSMART | B109: EQ | C109: 156 | D109: 161.85 | E109: 155 | F109: 156.3 | G109: 155.6 | H109: 155.4 | I109: 12170 | J109: 1901147.8 | K109: 2018-06-29 | L109: 778 | M109: INE034S01021
A110: ASAHIINDIA | B110: EQ | C110: 330 | D110: 338 | E110: 330 | F110: 333.15 | G110: 331.4 | H110: 330.05 | I110: 23910 | J110: 7966021.5 | K110: 2018-06-29 | L110: 1218 | M110: INE439A01020
A111: ASAHISONG | B111: EQ | C111: 242.6 | D111: 252.3 | E111: 235.2 | F111: 239.5 | G111: 239.95 | H111: 237.95 | I111: 7114 | J111: 1714990.8 | K111: 2018-06-29 | L111: 352 | M111: INE228I01012
A112: ASAL | B112: EQ | C112: 54.5 | D112: 59.75 | E112: 54 | F112: 58.55 | G112: 58.85 | H112: 54.55 | I112: 10434 | J112: 593153.3 | K112: 2018-06-29 | L112: 148 | M112: INE900C01027
A113: ASHAPURMIN | B113: EQ | C113: 44 | D113: 45 | E113: 43.45 | F113: 44.3 | G113: 44.25 | H113: 42.7 | I113: 79861 | J113: 3536688.9 | K113: 2018-06-29 | L113: 525 | M113: INE348A01023
A114: ASHIANA | B114: EQ | C114: 133.5 | D114: 136.5 | E114: 133.5 | F114: 135.2 | G114: 135 | H114: 132.45 | I114: 29515 | J114: 3988300.4 | K114: 2018-06-29 | L114: 379 | M114: INE365D01021
A115: ASHIMASYN | B115: EQ | C115: 20.25 | D115: 21.35 | E115: 20.25 | F115: 20.5 | G115: 20.6 | H115: 20.4 | I115: 34128 | J115: 703622.55 | K115: 2018-06-29 | L115: 203 | M115: INE440A01010
A116: ASHOKA | B116: EQ | C116: 214 | D116: 229.9 | E116: 214 | F116: 228.55 | G116: 227.1 | H116: 212.85 | I116: 156662 | J116: 35141714.15 | K116: 2018-06-29 | L116: 4679 | M116: INE442H01029
A117: ASHOKLEY | B117: EQ | C117: 125.9 | D117: 127.2 | E117: 124.6 | F117: 125.8 | G117: 126 | H117: 124.1 | I117: 15460744 | J117: 1945956487 | K117: 2018-06-29 | L117: 108777 | M117: INE208A01029
A118: ASIANHOTNR | B118: EQ | C118: 245 | D118: 255 | E118: 235 | F118: 252.25 | G118: 255 | H118: 234.85 | I118: 205 | J118: 51117.1 | K118: 2018-06-29 | L118: 23 | M118: INE363A01022
A119: ASIANPAINT | B119: EQ | C119: 1268.25 | D119: 1271.1 | E119: 1252.15 | F119: 1264.45 | G119: 1264 | H119: 1268.4 | I119: 622680 | J119: 786280729.6 | K119: 2018-06-29 | L119: 35472 | M119: INE021A01026
A120: ASIANTILES | B120: EQ | C120: 306.1 | D120: 311.45 | E120: 301.05 | F120: 302.85 | G120: 302.15 | H120: 306.15 | I120: 50380 | J120: 15407865.25 | K120: 2018-06-29 | L120: 1456 | M120: INE022I01019
A121: ASPINWALL | B121: EQ | C121: 260.5 | D121: 269.5 | E121: 252.1 | F121: 264.2 | G121: 264.2 | H121: 260.15 | I121: 4077 | J121: 1062464.35 | K121: 2018-06-29 | L121: 96 | M121: INE991I01015
A122: ASSAMCO | B122: EQ | C122: 2.65 | D122: 2.9 | E122: 2.65 | F122: 2.85 | G122: 2.85 | H122: 2.6 | I122: 434483 | J122: 1215657.9 | K122: 2018-06-29 | L122: 327 | M122: INE442A01024
A123: ASTEC | B123: EQ | C123: 634.4 | D123: 655 | E123: 634.4 | F123: 646.75 | G123: 644.05 | H123: 630.45 | I123: 17317 | J123: 11210079.7 | K123: 2018-06-29 | L123: 1008 | M123: INE563J01010
A124: ASTERDM | B124: EQ | C124: 160 | D124: 163.75 | E124: 158.65 | F124: 162.75 | G124: 162.5 | H124: 159.85 | I124: 222963 | J124: 35812204.9 | K124: 2018-06-29 | L124: 1194 | M124: INE914M01019
A125: ASTRAL | B125: EQ | C125: 997 | D125: 1010.25 | E125: 995.1 | F125: 1007.75 | G125: 1001.05 | H125: 995.35 | I125: 22905 | J125: 23064773.9 | K125: 2018-06-29 | L125: 4233 | M125: INE006I01046
A126: ASTRAMICRO | B126: EQ | C126: 97 | D126: 98.5 | E126: 96.25 | F126: 98 | G126: 97.9 | H126: 96.75 | I126: 138134 | J126: 13475374.25 | K126: 2018-06-29 | L126: 1414 | M126: INE386C01029
A127: ASTRAZEN | B127: EQ | C127: 1405 | D127: 1443 | E127: 1386.05 | F127: 1419.45 | G127: 1400 | H127: 1396.7 | I127: 38282 | J127: 54053036.2 | K127: 2018-06-29 | L127: 3760 | M127: INE203A01020
A128: ASTRON | B128: EQ | C128: 102.95 | D128: 104.9 | E128: 102.2 | F128: 104.2 | G128: 103.8 | H128: 102.15 | I128: 49287 | J128: 5115033.45 | K128: 2018-06-29 | L128: 804 | M128: INE646X01014
A129: ATFL | B129: EQ | C129: 667 | D129: 672 | E129: 657 | F129: 666.05 | G129: 668 | H129: 656.7 | I129: 6044 | J129: 4025770.75 | K129: 2018-06-29 | L129: 603 | M129: INE209A01019
A130: ATLANTA | B130: EQ | C130: 38 | D130: 40.25 | E130: 38 | F130: 38.95 | G130: 38.8 | H130: 38 | I130: 90509 | J130: 3539583.3 | K130: 2018-06-29 | L130: 1003 | M130: INE285H01022
A131: ATLASCYCLE | B131: BE | C131: 122 | D131: 127 | E131: 122 | F131: 125.8 | G131: 126.9 | H131: 122 | I131: 3947 | J131: 490031.9 | K131: 2018-06-29 | L131: 65 | M131: INE446A01025
A132: ATUL | B132: EQ | C132: 2626 | D132: 2671.8 | E132: 2610 | F132: 2651.5 | G132: 2650 | H132: 2620.8 | I132: 8093 | J132: 21353097.25 | K132: 2018-06-29 | L132: 846 | M132: INE100A01010
A133: ATULAUTO | B133: EQ | C133: 383.4 | D133: 396.8 | E133: 383.4 | F133: 391.65 | G133: 394.9 | H133: 384.75 | I133: 4639 | J133: 1804384.25 | K133: 2018-06-29 | L133: 313 | M133: INE951D01028
A134: AUBANK | B134: EQ | C134: 670 | D134: 675 | E134: 654.65 | F134: 655.75 | G134: 657.35 | H134: 663 | I134: 82847 | J134: 54687259.5 | K134: 2018-06-29 | L134: 4479 | M134: INE949L01017
A135: AURIONPRO | B135: EQ | C135: 192.55 | D135: 199.65 | E135: 192.55 | F135: 198.45 | G135: 197 | H135: 192.55 | I135: 14933 | J135: 2931969.4 | K135: 2018-06-29 | L135: 496 | M135: INE132H01018
A136: AUROPHARMA | B136: EQ | C136: 602.3 | D136: 609.5 | E136: 596.5 | F136: 607.1 | G136: 605.25 | H136: 600.65 | I136: 2300166 | J136: 1390047919 | K136: 2018-06-29 | L136: 57152 | M136: INE406A01037
A137: AUSOMENT | B137: EQ | C137: 64 | D137: 70.95 | E137: 64 | F137: 67.65 | G137: 67.5 | H137: 67.55 | I137: 5320 | J137: 366262 | K137: 2018-06-29 | L137: 155 | M137: INE218C01016
A138: AUTOAXLES | B138: EQ | C138: 1180 | D138: 1227.5 | E138: 1180 | F138: 1220.3 | G138: 1224.8 | H138: 1176.45 | I138: 13001 | J138: 15708419.5 | K138: 2018-06-29 | L138: 1081 | M138: INE449A01011
A139: AUTOIND | B139: EQ | C139: 66.05 | D139: 66.05 | E139: 63.8 | F139: 64.45 | G139: 64.25 | H139: 65.15 | I139: 21371 | J139: 1385881.4 | K139: 2018-06-29 | L139: 329 | M139: INE718H01014
A140: AUTOLITIND | B140: EQ | C140: 54.1 | D140: 59.5 | E140: 54.05 | F140: 58.5 | G140: 59.4 | H140: 54.6 | I140: 15786 | J140: 911654.75 | K140: 2018-06-29 | L140: 284 | M140: INE448A01013
A141: AVADHSUGAR | B141: EQ | C141: 321 | D141: 327 | E141: 317 | F141: 322.85 | G141: 321 | H141: 320.55 | I141: 12546 | J141: 4053862.35 | K141: 2018-06-29 | L141: 697 | M141: INE349W01017
A142: AVANTIFEED | B142: EQ | C142: 555 | D142: 566.7 | E142: 535 | F142: 538.15 | G142: 538.2 | H142: 548 | I142: 1249229 | J142: 681911033.7 | K142: 2018-06-29 | L142: 40701 | M142: INE871C01038
A143: AVTNPL | B143: EQ | C143: 30.6 | D143: 31.95 | E143: 30.5 | F143: 31.75 | G143: 31.55 | H143: 30.6 | I143: 84235 | J143: 2629890.3 | K143: 2018-06-29 | L143: 502 | M143: INE488D01021
A144: AXISBANK | B144: EQ | C144: 505.8 | D144: 514.5 | E144: 498.75 | F144: 510.8 | G144: 508.15 | H144: 504.6 | I144: 7747444 | J144: 3918867363 | K144: 2018-06-29 | L144: 72816 | M144: INE238A01034
A145: AXISCADES | B145: EQ | C145: 97.85 | D145: 100.75 | E145: 94.45 | F145: 97.25 | G145: 97.3 | H145: 94.8 | I145: 126320 | J145: 12351350.2 | K145: 2018-06-29 | L145: 2968 | M145: INE555B01013
A146: AXISGOLD | B146: EQ | C146: 2700 | D146: 2727 | E146: 2676 | F146: 2676 | G146: 2676 | H146: 2700 | I146: 49 | J146: 131634 | K146: 2018-06-29 | L146: 14 | M146: INF846K01347
A147: AXISNIFTY | B147: EQ | C147: 1080.4 | D147: 1080.4 | E147: 1076.78 | F147: 1079.56 | G147: 1079.41 | H147: 1070.1 | I147: 41 | J147: 44218.97 | K147: 2018-06-29 | L147: 10 | M147: INF846K01ZL0
A148: AYMSYNTEX | B148: EQ | C148: 51.1 | D148: 51.75 | E148: 50.8 | F148: 51.5 | G148: 51.75 | H148: 50.15 | I148: 1841 | J148: 94587.15 | K148: 2018-06-29 | L148: 27 | M148: INE193B01039
A149: BAFNAPHARM | B149: EQ | C149: 23.85 | D149: 23.85 | E149: 22.75 | F149: 23.05 | G149: 23 | H149: 23.2 | I149: 3827 | J149: 88600.85 | K149: 2018-06-29 | L149: 50 | M149: INE878I01014
A150: BAGFILMS | B150: EQ | C150: 4.55 | D150: 4.6 | E150: 4.4 | F150: 4.5 | G150: 4.55 | H150: 4.55 | I150: 101763 | J150: 460396.75 | K150: 2018-06-29 | L150: 101 | M150: INE116D01028
A151: BAJAJ-AUTO | B151: EQ | C151: 2720.15 | D151: 2828 | E151: 2720.15 | F151: 2810.3 | G151: 2808.9 | H151: 2716 | I151: 425210 | J151: 1186989012 | K151: 2018-06-29 | L151: 32204 | M151: INE917I01010
A152: BAJAJCORP | B152: EQ | C152: 396.05 | D152: 406.95 | E152: 396.05 | F152: 405.3 | G152: 406.65 | H152: 397.05 | I152: 11379 | J152: 4590917.2 | K152: 2018-06-29 | L152: 749 | M152: INE933K01021
A153: BAJAJELEC | B153: EQ | C153: 532.3 | D153: 548 | E153: 530.25 | F153: 543.6 | G153: 543 | H153: 529.1 | I153: 319094 | J153: 172690162.2 | K153: 2018-06-29 | L153: 10512 | M153: INE193E01025
A154: BAJAJFINSV | B154: EQ | C154: 5870 | D154: 5932.7 | E154: 5808 | F154: 5821.1 | G154: 5830 | H154: 5848 | I154: 153569 | J154: 900301082 | K154: 2018-06-29 | L154: 18165 | M154: INE918I01018
A155: BAJAJHIND | B155: EQ | C155: 6.65 | D155: 6.9 | E155: 6.65 | F155: 6.75 | G155: 6.75 | H155: 6.65 | I155: 1066743 | J155: 7236665.05 | K155: 2018-06-29 | L155: 1219 | M155: INE306A01021
A156: BAJAJHLDNG | B156: EQ | C156: 2900 | D156: 2965.4 | E156: 2875 | F156: 2882.4 | G156: 2883 | H156: 2883.3 | I156: 18584 | J156: 53983158.65 | K156: 2018-06-29 | L156: 2597 | M156: INE118A01012
A157: BAJFINANCE | B157: EQ | C157: 2282.1 | D157: 2320 | E157: 2270.6 | F157: 2296.35 | G157: 2299 | H157: 2274.7 | I157: 1378421 | J157: 3168656346 | K157: 2018-06-29 | L157: 59912 | M157: INE296A01024
A158: BALAJITELE | B158: EQ | C158: 118.35 | D158: 121 | E158: 115.5 | F158: 118.25 | G158: 118 | H158: 117.95 | I158: 58936 | J158: 6987999.5 | K158: 2018-06-29 | L158: 724 | M158: INE794B01026
A159: BALAMINES | B159: EQ | C159: 529.65 | D159: 561.7 | E159: 529.65 | F159: 551 | G159: 548 | H159: 529.6 | I159: 26771 | J159: 14672901.85 | K159: 2018-06-29 | L159: 1557 | M159: INE050E01027
A160: BALKRISHNA | B160: EQ | C160: 68 | D160: 70.95 | E160: 68 | F160: 70.05 | G160: 70.3 | H160: 68 | I160: 4712 | J160: 328698.65 | K160: 2018-06-29 | L160: 74 | M160: INE875R01011
A161: BALKRISIND | B161: EQ | C161: 1028.8 | D161: 1051 | E161: 1013.7 | F161: 1041.5 | G161: 1041 | H161: 1018.8 | I161: 492197 | J161: 507091047.9 | K161: 2018-06-29 | L161: 31510 | M161: INE787D01026
A162: BALLARPUR | B162: EQ | C162: 9.95 | D162: 10.65 | E162: 9.9 | F162: 10.2 | G162: 10.1 | H162: 9.95 | I162: 834267 | J162: 8537156.25 | K162: 2018-06-29 | L162: 1629 | M162: INE294A01037
A163: BALMLAWRIE | B163: EQ | C163: 207.55 | D163: 211.4 | E163: 207.5 | F163: 209.75 | G163: 210.1 | H163: 207.45 | I163: 45439 | J163: 9528245.5 | K163: 2018-06-29 | L163: 920 | M163: INE164A01016
A164: BALPHARMA | B164: EQ | C164: 78.3 | D164: 79.75 | E164: 77.1 | F164: 77.8 | G164: 77.1 | H164: 78.05 | I164: 16379 | J164: 1285742 | K164: 2018-06-29 | L164: 229 | M164: INE083D01012
A165: BALRAMCHIN | B165: EQ | C165: 65.7 | D165: 65.9 | E165: 63.4 | F165: 64.35 | G165: 63.45 | H165: 65.65 | I165: 2837403 | J165: 183324346.2 | K165: 2018-06-29 | L165: 9231 | M165: INE119A01028
A166: BANARBEADS | B166: EQ | C166: 43 | D166: 43.95 | E166: 41 | F166: 42.15 | G166: 43 | H166: 43.55 | I166: 1070 | J166: 44831.3 | K166: 2018-06-29 | L166: 36 | M166: INE655B01011
A167: BANARISUG | B167: EQ | C167: 1464.15 | D167: 1523.95 | E167: 1463 | F167: 1473.9 | G167: 1465 | H167: 1458.5 | I167: 100 | J167: 149196.75 | K167: 2018-06-29 | L167: 24 | M167: INE459A01010
A168: BANCOINDIA | B168: EQ | C168: 202.55 | D168: 207.95 | E168: 194.7 | F168: 203.55 | G168: 205 | H168: 201.9 | I168: 44389 | J168: 8982126 | K168: 2018-06-29 | L168: 959 | M168: INE213C01025
A169: BANDHANBNK | B169: EQ | C169: 514.95 | D169: 530 | E169: 512.25 | F169: 526.55 | G169: 529.15 | H169: 512.2 | I169: 346849 | J169: 180956990.9 | K169: 2018-06-29 | L169: 14245 | M169: INE545U01014
A170: BANG | B170: EQ | C170: 50.5 | D170: 53.05 | E170: 49.2 | F170: 49.7 | G170: 49.55 | H170: 48.25 | I170: 136002 | J170: 6926891.35 | K170: 2018-06-29 | L170: 648 | M170: INE863I01016
A171: BANKBARODA | B171: EQ | C171: 114 | D171: 115.15 | E171: 112.15 | F171: 112.65 | G171: 112.75 | H171: 113 | I171: 14274242 | J171: 1625376677 | K171: 2018-06-29 | L171: 48594 | M171: INE028A01039
A172: BANKBEES | B172: EQ | C172: 2680.5 | D172: 2691.91 | E172: 2678 | F172: 2686.01 | G172: 2683.5 | H172: 2670.02 | I172: 522 | J172: 1402254.52 | K172: 2018-06-29 | L172: 202 | M172: INF732E01078
A173: BANKINDIA | B173: EQ | C173: 86.25 | D173: 88.15 | E173: 85.5 | F173: 87.5 | G173: 87.5 | H173: 85.15 | I173: 6714586 | J173: 583890735.9 | K173: 2018-06-29 | L173: 20543 | M173: INE084A01016
A174: BANSWRAS | B174: EQ | C174: 88.7 | D174: 90.05 | E174: 85.4 | F174: 86.95 | G174: 87 | H174: 88 | I174: 3329 | J174: 293595.5 | K174: 2018-06-29 | L174: 73 | M174: INE629D01012
A175: BARTRONICS | B175: BE | C175: 10.25 | D175: 10.3 | E175: 9.7 | F175: 10.25 | G175: 10.3 | H175: 9.85 | I175: 35742 | J175: 360877.2 | K175: 2018-06-29 | L175: 96 | M175: INE855F01034
A176: BASF | B176: EQ | C176: 1886.25 | D176: 1974 | E176: 1847 | F176: 1948.3 | G176: 1944 | H176: 1869.45 | I176: 28488 | J176: 53740727.15 | K176: 2018-06-29 | L176: 1921 | M176: INE373A01013
A177: BASML | B177: EQ | C177: 195.1 | D177: 202 | E177: 191 | F177: 193.5 | G177: 191 | H177: 195 | I177: 184 | J177: 35760.55 | K177: 2018-06-29 | L177: 15 | M177: INE186H01014
A178: BATAINDIA | B178: EQ | C178: 832.45 | D178: 864.6 | E178: 830 | F178: 859.4 | G178: 862.6 | H178: 828.35 | I178: 1575834 | J178: 1336966661 | K178: 2018-06-29 | L178: 40146 | M178: INE176A01028
A179: BAYERCROP | B179: EQ | C179: 4600 | D179: 4680 | E179: 4521.1 | F179: 4576.55 | G179: 4540 | H179: 4577.55 | I179: 6664 | J179: 30422068 | K179: 2018-06-29 | L179: 1859 | M179: INE462A01022
A180: BBL | B180: EQ | C180: 1189 | D180: 1224.7 | E180: 1189 | F180: 1218.05 | G180: 1220 | H180: 1189.55 | I180: 5469 | J180: 6604590 | K180: 2018-06-29 | L180: 563 | M180: INE464A01028
A181: BBTC | B181: EQ | C181: 1419.2 | D181: 1459.5 | E181: 1419.2 | F181: 1443.9 | G181: 1440 | H181: 1408.65 | I181: 121000 | J181: 174985913.1 | K181: 2018-06-29 | L181: 4493 | M181: INE050A01025
A182: BDL | B182: EQ | C182: 372.9 | D182: 377.8 | E182: 372.05 | F182: 376.15 | G182: 376 | H182: 371.9 | I182: 13955 | J182: 5224748.25 | K182: 2018-06-29 | L182: 1087 | M182: INE171Z01018
A183: BEARDSELL | B183: EQ | C183: 34.2 | D183: 37.05 | E183: 33.3 | F183: 36.95 | G183: 37 | H183: 34.65 | I183: 2391 | J183: 86182.4 | K183: 2018-06-29 | L183: 47 | M183: INE520H01022
A184: BEDMUTHA | B184: BE | C184: 18.1 | D184: 19.4 | E184: 17.9 | F184: 18.65 | G184: 18.65 | H184: 18.7 | I184: 4885 | J184: 93695.75 | K184: 2018-06-29 | L184: 18 | M184: INE844K01012
A185: BEL | B185: EQ | C185: 104.65 | D185: 109.3 | E185: 104.4 | F185: 108.65 | G185: 108.6 | H185: 103.75 | I185: 6423500 | J185: 693964413.9 | K185: 2018-06-29 | L185: 42086 | M185: INE263A01024
A186: BEML | B186: EQ | C186: 800 | D186: 816.9 | E186: 775 | F186: 809.3 | G186: 812 | H186: 798.6 | I186: 2088367 | J186: 1668415502 | K186: 2018-06-29 | L186: 50872 | M186: INE258A01016
A187: BEPL | B187: EQ | C187: 142.9 | D187: 143.4 | E187: 138.5 | F187: 143.4 | G187: 143.4 | H187: 136.6 | I187: 472172 | J187: 67146378.65 | K187: 2018-06-29 | L187: 4232 | M187: INE922A01025
A188: BERGEPAINT | B188: EQ | C188: 284.75 | D188: 285 | E188: 275.6 | F188: 281 | G188: 280.5 | H188: 281.05 | I188: 647971 | J188: 181084155.2 | K188: 2018-06-29 | L188: 9057 | M188: INE463A01038
A189: BFINVEST | B189: EQ | C189: 229.65 | D189: 237 | E189: 229 | F189: 232.7 | G189: 233 | H189: 227.35 | I189: 128742 | J189: 30013969.1 | K189: 2018-06-29 | L189: 3073 | M189: INE878K01010
A190: BFUTILITIE | B190: EQ | C190: 311.8 | D190: 317.5 | E190: 308.65 | F190: 312.65 | G190: 313 | H190: 308.15 | I190: 289231 | J190: 90599350.45 | K190: 2018-06-29 | L190: 8299 | M190: INE243D01012
A191: BGLOBAL | B191: BE | C191: 3.1 | D191: 3.25 | E191: 2.95 | F191: 2.95 | G191: 2.95 | H191: 3.1 | I191: 60509 | J191: 184850.25 | K191: 2018-06-29 | L191: 44 | M191: INE224M01013
A192: BGRENERGY | B192: EQ | C192: 92.15 | D192: 94.9 | E192: 92.15 | F192: 93.75 | G192: 93.6 | H192: 91.45 | I192: 122500 | J192: 11481646.35 | K192: 2018-06-29 | L192: 1633 | M192: INE661I01014
A193: BHAGERIA | B193: EQ | C193: 281.15 | D193: 290.95 | E193: 280 | F193: 287.5 | G193: 289.9 | H193: 281.95 | I193: 8038 | J193: 2302598.6 | K193: 2018-06-29 | L193: 283 | M193: INE354C01027
A194: BHAGYANGR | B194: EQ | C194: 38.35 | D194: 39.4 | E194: 37.15 | F194: 37.5 | G194: 37.6 | H194: 37.35 | I194: 18271 | J194: 697202.05 | K194: 2018-06-29 | L194: 203 | M194: INE458B01036
A195: BHAGYAPROP | B195: BE | C195: 20.9 | D195: 20.9 | E195: 20.25 | F195: 20.25 | G195: 20.25 | H195: 20.25 | I195: 1115 | J195: 22601.25 | K195: 2018-06-29 | L195: 6 | M195: INE363W01018
A196: BHANDARI | B196: EQ | C196: 2.15 | D196: 2.35 | E196: 2.1 | F196: 2.3 | G196: 2.35 | H196: 2.15 | I196: 115107 | J196: 264589.15 | K196: 2018-06-29 | L196: 95 | M196: INE474E01029
A197: BHARATFIN | B197: EQ | C197: 1179 | D197: 1184.3 | E197: 1153.15 | F197: 1156.5 | G197: 1160.8 | H197: 1174.75 | I197: 704534 | J197: 817871103.9 | K197: 2018-06-29 | L197: 23105 | M197: INE180K01011
A198: BHARATFORG | B198: EQ | C198: 605.05 | D198: 615.7 | E198: 602.5 | F198: 612.7 | G198: 614 | H198: 604.4 | I198: 697986 | J198: 424722861.1 | K198: 2018-06-29 | L198: 14435 | M198: INE465A01025
A199: BHARATGEAR | B199: EQ | C199: 154 | D199: 155 | E199: 148.1 | F199: 153.55 | G199: 153.9 | H199: 149.85 | I199: 18407 | J199: 2808335.95 | K199: 2018-06-29 | L199: 466 | M199: INE561C01019
A200: BHARATRAS | B200: EQ | C200: 6059 | D200: 6475.85 | E200: 5900 | F200: 6415.95 | G200: 6370 | H200: 5951.85 | I200: 6812 | J200: 43193822 | K200: 2018-06-29 | L200: 1798 | M200: INE838B01013
... 1441 more rows

Sheet Sheet1 (hidden)

Sheet Sheet3 (hidden)
